Workbook

Sheet Figure 3a
A1: Time course | BV1: α5 | BZ1: α5 | CD1: α3 | CH1: α3 | CL1: α2 | CP1: α2
P2: treat: | Q2: dzp | R2: veh | S2: veh | T2: veh | U2: dzp | V2: dzp | W2: veh | X2: dzp | Y2: dzp | Z2: dzp | AA2: avg | AB2: dzp | AC2: dzp | AD2: avg | AE2: veh | AF2: dzp | AG2: dzp | AH2: dzp | AI2: dzp | AJ2: dzp | AK2: veh | AL2: veh | AM2: dzp | AN2: veh | AO2: dzp | AP2: dzp | AQ2: veh | AR2: veh | AS2: dzp | AT2: dzp | AU2: dzp | AV2: veh | AW2: veh | AX2: dzp | AY2: dzp | AZ2: veh | BA2: veh | BB2: dzp | BC2: veh | BD2: veh | BE2: veh | BF2: dzp | BG2: dzp | BH2: veh | BI2: veh | BJ2: dzp | BK2: veh | BL2: dzp | BM2: dzp | BN2: veh | BO2: veh | BP2: dzp | BQ2: dzp | BR2: veh | BS2: dzp | BV2: veh | BZ2: dzp | CD2: veh | CH2: dzp | CL2: veh | CP2: dzp
B3: α5 | F3: α3 | J3: α2 | P3: gene: | Q3: α5 | R3: α5 | S3: α5 | T3: α5 | U3: α5 | V3: α2 | W3: α2 | X3: α2 | Y3: α2 | Z3: α2 | AA3: α2 | AB3: α2 | AC3: α2 | AD3: α2 | AE3: α2 | AF3: α2 | AG3: α5 | AH3: α5 | AI3: α5 | AJ3: α5 | AK3: α5 | AL3: α5 | AM3: α5 | AN3: α5 | AO3: α5 | AP3: α5 | AQ3: α5 | AR3: α3 | AS3: α3 | AT3: α3 | AU3: α3 | AV3: α3 | AW3: α3 | AX3: α3 | AY3: α3 | AZ3: α3 | BA3: α3 | BB3: α3 | BC3: α2 | BD3: α2 | BE3: α2 | BF3: α2 | BG3: α2 | BH3: α3 | BI3: α3 | BJ3: α3 | BK3: α3 | BL3: α3 | BM3: α3 | BN3: α2 | BO3: α2 | BP3: α2 | BQ3: α2 | BR3: α2 | BS3: α2 | BV3: avg | BW3: SD | BX3: n | BY3: SEM | BZ3: avg | CA3: SD | CB3: n | CC3: SEM | CD3: avg | CE3: SD | CF3: n | CG3: SEM | CH3: avg | CI3: SD | CJ3: n | CK3: SEM | CL3: avg | CM3: SD | CN3: n | CO3: SEM | CP3: avg | CQ3: SD | CR3: n | CS3: SEM
B4: veh | D4: dzp | F4: veh | H4: dzp | J4: veh | L4: dzp | P4: 0 | Q4: 0 | R4: 0 | S4: 0 | T4: 0 | U4: 0 | V4: 0 | W4: 0 | X4: 0 | Y4: 0 | Z4: 0 | AA4: =AVERAGE(Y4:Z4) -> 0 | AB4: 0 | AC4: 0 | AD4: =AVERAGE(AB4:AC4) -> 0 | AE4: 0 | AF4: 0 | AG4: 0 | AH4: 0 | AI4: 0 | AJ4: 0 | AK4: 0 | AL4: 0 | AM4: 0 | AN4: 0 | AO4: 0 | AP4: 0 | AQ4: 0 | AR4: 0 | AS4: 0 | AT4: 0 | AU4: 0 | AV4: 0 | AW4: 0 | AX4: 0 | AY4: 0 | AZ4: 0 | BA4: 0 | BB4: 0 | BC4: 0 | BD4: 0 | BE4: 0 | BF4: 0 | BG4: 0 | BH4: 0 | BI4: 0 | BJ4: 0 | BK4: 0 | BL4: 0 | BM4: 0 | BN4: 0 | BO4: 0 | BP4: 0 | BQ4: 0 | BR4: 0 | BS4: 0 | BU4: =P4 -> 0 | BV4: =AVERAGE(R4,S4,T4,AK4,AL4,AN4,AQ4) -> 0 | BW4: =STDEV(R4,S4,T4,AK4,AL4,AN4,AQ4) -> 0 | BX4: =COUNT(R4,S4,T4,AK4,AL4,AN4,AQ4) -> 7 | BY4: =BW4/SQRT(BX4) -> 0 | BZ4: =AVERAGE(Q4,U4,AG4,AH4,AI4,AJ4,AM4,AO4,AP4) -> 0 | CA4: =STDEV(Q4,U4,AG4,AH4,AI4,AJ4,AM4,AO4,AP4) -> 0 | CB4: =COUNT(Q4,U4,AG4,AH4,AI4,AJ4,AM4,AO4,AP4) -> 9 | CC4: =CA4/SQRT(CB4) -> 0 | CD4: =AVERAGE(AR4,AV4,AW4,AZ4,BA4,BH4,BI4,BK4) -> 0 | CE4: =STDEV(AR4,AV4,AW4,AZ4,BA4,BH4,BI4,BK4) -> 0 | CF4: =COUNT(AR4,AV4,AW4,AZ4,BA4,BH4,BI4,BK4) -> 8 | CG4: =CE4/SQRT(CF4) -> 0 | CH4: =AVERAGE(AS4,AT4,AX4,AY4,BB4,BJ4,BL4,BM4) -> 0 | CI4: =STDEV(AS4,AT4,AX4,AY4,BB4,BJ4,BL4,BM4) -> 0 | CJ4: =COUNT(AS4,AT4,AX4,AY4,BB4,BJ4,BL4,BM4) -> 8 | CK4: =CI4/SQRT(CJ4) -> 0 | CL4: =AVERAGE(W4,AE4,BC4,BD4,BE4,BN4,BO4,BR4) -> 0 | CM4: =STDEV(W4,AE4,BC4,BD4,BE4,BN4,BO4,BR4) -> 0 | CN4: =COUNT(W4,AE4,BC4,BD4,BE4,BN4,BO4,BR4) -> 8 | CO4: =CM4/SQRT(CN4) -> 0 | CP4: =AVERAGE(V4,X4,AA4,AD4,AF4,BF4,BG4,BP4,BQ4,BS4) -> 0 | CQ4: =STDEV(V4,X4,AA4,AD4,AF4,BF4,BG4,BP4,BQ4,BS4) -> 0 | CR4: =COUNT(V4,X4,AA4,AD4,AF4,BF4,BG4,BP4,BQ4,BS4) -> 10 | CS4: =CQ4/SQRT(CR4) -> 0
A5: time | B5: avg | C5: SEM | D5: avg | E5: SEM | F5: avg | G5: SEM | H5: avg | I5: SEM | J5: avg | K5: SEM | L5: avg | M5: SEM | P5: 1 | Q5: 0 | R5: 0 | S5: 1 | T5: 0 | U5: 0 | V5: 0 | W5: 0 | X5: 0 | Y5: 0 | Z5: 0 | AA5: =AVERAGE(Y5:Z5) -> 0 | AB5: 0 | AC5: 0 | AD5: =AVERAGE(AB5:AC5) -> 0 | AE5: 0 | AF5: 0 | AG5: 0 | AH5: 0 | AI5: 0 | AJ5: 0 | AK5: 0 | AL5: 0 | AM5: 1 | AN5: 0 | AO5: 0 | AP5: 0 | AQ5: 0 | AR5: 0 | AS5: 0 | AT5: 0 | AU5: 0 | AV5: 0 | AW5: 1 | AX5: 0 | AY5: 0 | AZ5: 0 | BA5: 0 | BB5: 0 | BC5: 0 | BD5: 0 | BE5: 0 | BF5: 0 | BG5: 0 | BH5: 0 | BI5: 0 | BJ5: 0 | BK5: 0 | BL5: 0 | BM5: 0 | BN5: 0 | BO5: 0 | BP5: 0 | BQ5: 0 | BR5: 0 | BS5: 0 | BU5: =P7 -> 1.5 | BV5: =AVERAGE(R7,S7,T7,AK7,AL7,AN7,AQ7) -> 1.428571429 | BW5: =STDEV(R7,S7,T7,AK7,AL7,AN7,AQ7) -> 1.988059595 | BX5: =COUNT(R7,S7,T7,AK7,AL7,AN7,AQ7) -> 7 | BY5: =BW5/SQRT(BX5) -> 0.7514158971 | BZ5: =AVERAGE(Q7,U7,AG7,AH7,AI7,AJ7,AM7,AO7,AP7) -> 0.5555555556 | CA5: =STDEV(Q7,U7,AG7,AH7,AI7,AJ7,AM7,AO7,AP7) -> 0.8819171037 | CB5: =COUNT(Q7,U7,AG7,AH7,AI7,AJ7,AM7,AO7,AP7) -> 9 | CC5: =CA5/SQRT(CB5) -> 0.2939723679 | CD5: =AVERAGE(AR7,AV7,AW7,AZ7,BA7,BH7,BI7,BK7) -> 0.5 | CE5: =STDEV(AR7,AV7,AW7,AZ7,BA7,BH7,BI7,BK7) -> 1.414213562 | CF5: =COUNT(AR7,AV7,AW7,AZ7,BA7,BH7,BI7,BK7) -> 8 | CG5: =CE5/SQRT(CF5) -> 0.5 | CH5: =AVERAGE(AS7,AT7,AX7,AY7,BB7,BJ7,BL7,BM7) -> 0 | CI5: =STDEV(AS7,AT7,AX7,AY7,BB7,BJ7,BL7,BM7) -> 0 | CJ5: =COUNT(AS7,AT7,AX7,AY7,BB7,BJ7,BL7,BM7) -> 8 | CK5: =CI5/SQRT(CJ5) -> 0 | CL5: =AVERAGE(W7,AE7,BC7,BD7,BE7,BN7,BO7,BR7) -> 0.125 | CM5: =STDEV(W7,AE7,BC7,BD7,BE7,BN7,BO7,BR7) -> 0.3535533906 | CN5: =COUNT(W7,AE7,BC7,BD7,BE7,BN7,BO7,BR7) -> 8 | CO5: =CM5/SQRT(CN5) -> 0.125 | CP5: =AVERAGE(V7,X7,AA7,AD7,AF7,BF7,BG7,BP7,BQ7,BS7) -> 0.25 | CQ5: =STDEV(V7,X7,AA7,AD7,AF7,BF7,BG7,BP7,BQ7,BS7) -> 0.6346477588 | CR5: =COUNT(V7,X7,AA7,AD7,AF7,BF7,BG7,BP7,BQ7,BS7) -> 10 | CS5: =CQ5/SQRT(CR5) -> 0.200693243
A6: 0 | B6: =BV4 -> 0 | C6: =BY4 -> 0 | D6: =BZ4 -> 0 | E6: =CC4 -> 0 | F6: =CD4 -> 0 | G6: =CG4 -> 0 | H6: =CH4 -> 0 | I6: =CK4 -> 0 | J6: =CL4 -> 0 | K6: =CO4 -> 0 | L6: =CP4 -> 0 | M6: =CS4 -> 0 | P6: 2 | Q6: 1 | R6: 3 | S6: 1 | T6: 5 | U6: 2 | V6: 0 | W6: 0 | X6: 0 | Y6: 1 | Z6: 0 | AA6: =AVERAGE(Y6:Z6) -> 0.5 | AB6: 0 | AC6: 0 | AD6: =AVERAGE(AB6:AC6) -> 0 | AE6: 0 | AF6: 2 | AG6: 0 | AH6: 0 | AI6: 0 | AJ6: 0 | AK6: 0 | AL6: 0 | AM6: 1 | AN6: 0 | AO6: 0 | AP6: 0 | AQ6: 0 | AR6: 0 | AS6: 0 | AT6: 0 | AU6: 0 | AV6: 0 | AW6: 3 | AX6: 0 | AY6: 0 | AZ6: 0 | BA6: 0 | BB6: 0 | BC6: 1 | BD6: 0 | BE6: 0 | BF6: 0 | BG6: 0 | BH6: 0 | BI6: 0 | BJ6: 0 | BK6: 0 | BL6: 0 | BM6: 0 | BN6: 0 | BO6: 0 | BP6: 0 | BQ6: 0 | BR6: 0 | BS6: 0 | BU6: =P10 -> 3.5 | BV6: =AVERAGE(R10,S10,T10,AK10,AL10,AN10,AQ10) -> 8.571428571 | BW6: =STDEV(R10,S10,T10,AK10,AL10,AN10,AQ10) -> 7.742892286 | BX6: =COUNT(R10,S10,T10,AK10,AL10,AN10,AQ10) -> 7 | BY6: 2.926538202 | BZ6: =AVERAGE(Q10,U10,AG10,AH10,AI10,AJ10,AM10,AO10,AP10) -> 9.333333333 | CA6: =STDEV(Q10,U10,AG10,AH10,AI10,AJ10,AM10,AO10,AP10) -> 4.924428901 | CB6: =COUNT(Q10,U10,AG10,AH10,AI10,AJ10,AM10,AO10,AP10) -> 9 | CC6: 1.6414763 | CD6: =AVERAGE(AR10,AV10,AW10,AZ10,BA10,BH10,BI10,BK10) -> 5.875 | CE6: =STDEV(AR10,AV10,AW10,AZ10,BA10,BH10,BI10,BK10) -> 6.081294505 | CF6: =COUNT(AR10,AV10,AW10,AZ10,BA10,BH10,BI10,BK10) -> 8 | CG6: 2.150062291 | CH6: =AVERAGE(AS10,AT10,AX10,AY10,BB10,BJ10,BL10,BM10) -> 1.25 | CI6: =STDEV(AS10,AT10,AX10,AY10,BB10,BJ10,BL10,BM10) -> 3.535533906 | CJ6: =COUNT(AS10,AT10,AX10,AY10,BB10,BJ10,BL10,BM10) -> 8 | CK6: 1.25 | CL6: =AVERAGE(W10,AE10,BC10,BD10,BE10,BN10,BO10,BR10) -> 6.5 | CM6: =STDEV(W10,AE10,BC10,BD10,BE10,BN10,BO10,BR10) -> 5.855400438 | CN6: =COUNT(W10,AE10,BC10,BD10,BE10,BN10,BO10,BR10) -> 8 | CO6: 2.070196678 | CP6: =AVERAGE(V10,X10,AA10,AD10,AF10,BF10,BG10,BP10,BQ10,BS10) -> 3.45 | CQ6: =STDEV(V10,X10,AA10,AD10,AF10,BF10,BG10,BP10,BQ10,BS10) -> 3.370212654 | CR6: =COUNT(V10,X10,AA10,AD10,AF10,BF10,BG10,BP10,BQ10,BS10) -> 10 | CS6: 1.065754819
A7: 1.5 | B7: =BV5 -> 1.428571429 | C7: =BY5 -> 0.7514158971 | D7: =BZ5 -> 0.5555555556 | E7: =CC5 -> 0.2939723679 | F7: =CD5 -> 0.5 | G7: =CG5 -> 0.5 | H7: =CH5 -> 0 | I7: =CK5 -> 0 | J7: =CL5 -> 0.125 | K7: =CO5 -> 0.125 | L7: =CP5 -> 0.25 | M7: =CS5 -> 0.200693243 | O7: 2 min sum | P7: =AVERAGE(P5:P6) -> 1.5 | Q7: =SUM(Q5:Q6) -> 1 | R7: =SUM(R5:R6) -> 3 | S7: 2 | T7: 5 | U7: 2 | V7: 0 | W7: 0 | X7: 0 | Y7: 1 | Z7: 0 | AA7: 0.5 | AB7: 0 | AC7: 0 | AD7: 0 | AE7: 0 | AF7: 2 | AG7: 0 | AH7: 0 | AI7: 0 | AJ7: 0 | AK7: 0 | AL7: 0 | AM7: 2 | AN7: 0 | AO7: 0 | AP7: 0 | AQ7: 0 | AR7: 0 | AS7: 0 | AT7: 0 | AU7: 0 | AV7: 0 | AW7: 4 | AX7: 0 | AY7: 0 | AZ7: 0 | BA7: 0 | BB7: 0 | BC7: 1 | BD7: 0 | BE7: 0 | BF7: 0 | BG7: 0 | BH7: 0 | BI7: 0 | BJ7: 0 | BK7: 0 | BL7: 0 | BM7: 0 | BN7: 0 | BO7: 0 | BP7: 0 | BQ7: 0 | BR7: 0 | BS7: 0 | BU7: =P13 -> 5.5 | BV7: =AVERAGE(R13,S13,T13,AK13,AL13,AN13,AQ13) -> 12.42857143 | BW7: =STDEV(R13,S13,T13,AK13,AL13,AN13,AQ13) -> 9.641181512 | BX7: =COUNT(R13,S13,T13,AK13,AL13,AN13,AQ13) -> 7 | BY7: 3.644024089 | BZ7: =AVERAGE(Q13,U13,AG13,AH13,AI13,AJ13,AM13,AO13,AP13) -> 8.888888889 | CA7: =STDEV(Q13,U13,AG13,AH13,AI13,AJ13,AM13,AO13,AP13) -> 5.325515103 | CB7: =COUNT(Q13,U13,AG13,AH13,AI13,AJ13,AM13,AO13,AP13) -> 9 | CC7: 1.775171701 | CD7: =AVERAGE(AR13,AV13,AW13,AZ13,BA13,BH13,BI13,BK13) -> 10 | CE7: =STDEV(AR13,AV13,AW13,AZ13,BA13,BH13,BI13,BK13) -> 5.345224838 | CF7: =COUNT(AR13,AV13,AW13,AZ13,BA13,BH13,BI13,BK13) -> 8 | CG7: 1.889822365 | CH7: =AVERAGE(AS13,AT13,AX13,AY13,BB13,BJ13,BL13,BM13) -> 0.5 | CI7: =STDEV(AS13,AT13,AX13,AY13,BB13,BJ13,BL13,BM13) -> 1.069044968 | CJ7: =COUNT(AS13,AT13,AX13,AY13,BB13,BJ13,BL13,BM13) -> 8 | CK7: 0.377964473 | CL7: =AVERAGE(W13,AE13,BC13,BD13,BE13,BN13,BO13,BR13) -> 14.75 | CM7: =STDEV(W13,AE13,BC13,BD13,BE13,BN13,BO13,BR13) -> 7.90569415 | CN7: =COUNT(W13,AE13,BC13,BD13,BE13,BN13,BO13,BR13) -> 8 | CO7: 2.795084972 | CP7: =AVERAGE(V13,X13,AA13,AD13,AF13,BF13,BG13,BP13,BQ13,BS13) -> 4.15 | CQ7: =STDEV(V13,X13,AA13,AD13,AF13,BF13,BG13,BP13,BQ13,BS13) -> 4.307938409 | CR7: =COUNT(V13,X13,AA13,AD13,AF13,BF13,BG13,BP13,BQ13,BS13) -> 10 | CS7: 1.362289739
A8: 3.5 | B8: 8.571428571 | C8: 2.926538202 | D8: 9.333333333 | E8: 1.6414763 | F8: 5.875 | G8: 2.150062291 | H8: 1.25 | I8: 1.25 | J8: 6.5 | K8: 2.070196678 | L8: 3.45 | M8: 1.065754819 | P8: 3 | Q8: 4 | R8: 5 | S8: 9 | T8: 9 | U8: 1 | V8: 0 | W8: 2 | X8: 2 | Y8: 1 | Z8: 0 | AA8: =AVERAGE(Y8:Z8) -> 0.5 | AB8: 2 | AC8: 0 | AD8: =AVERAGE(AB8:AC8) -> 1 | AE8: 6 | AF8: 6 | AG8: 2 | AH8: 3 | AI8: 8 | AJ8: 3 | AK8: 0 | AL8: 1 | AM8: 4 | AN8: 0 | AO8: 1 | AP8: 2 | AQ8: 0 | AR8: 1 | AS8: 0 | AT8: 0 | AU8: 4 | AV8: 2 | AW8: 8 | AX8: 0 | AY8: 0 | AZ8: 3 | BA8: 0 | BB8: 0 | BC8: 0 | BD8: 0 | BE8: 6 | BF8: 0 | BG8: 0 | BH8: 0 | BI8: 0 | BJ8: 0 | BK8: 2 | BL8: 0 | BM8: 10 | BN8: 0 | BO8: 0 | BP8: 1 | BQ8: 0 | BR8: 3 | BS8: 1 | BU8: =P16 -> 7.5 | BV8: =AVERAGE(R16,S16,T16,AK16,AL16,AN16,AQ16) -> 12.28571429 | BW8: =STDEV(R16,S16,T16,AK16,AL16,AN16,AQ16) -> 7.761320457 | BX8: =COUNT(R16,S16,T16,AK16,AL16,AN16,AQ16) -> 7 | BY8: 2.933503396 | BZ8: =AVERAGE(Q16,U16,AG16,AH16,AI16,AJ16,AM16,AO16,AP16) -> 2.555555556 | CA8: =STDEV(Q16,U16,AG16,AH16,AI16,AJ16,AM16,AO16,AP16) -> 2.554951619 | CB8: =COUNT(Q16,U16,AG16,AH16,AI16,AJ16,AM16,AO16,AP16) -> 9 | CC8: 0.8516505398 | CD8: =AVERAGE(AR16,AV16,AW16,AZ16,BA16,BH16,BI16,BK16) -> 3.25 | CE8: =STDEV(AR16,AV16,AW16,AZ16,BA16,BH16,BI16,BK16) -> 5.311712126 | CF8: =COUNT(AR16,AV16,AW16,AZ16,BA16,BH16,BI16,BK16) -> 8 | CG8: 1.877973832 | CH8: =AVERAGE(AS16,AT16,AX16,AY16,BB16,BJ16,BL16,BM16) -> 2.875 | CI8: =STDEV(AS16,AT16,AX16,AY16,BB16,BJ16,BL16,BM16) -> 3.979860012 | CJ8: =COUNT(AS16,AT16,AX16,AY16,BB16,BJ16,BL16,BM16) -> 8 | CK8: 1.407093001 | CL8: =AVERAGE(W16,AE16,BC16,BD16,BE16,BN16,BO16,BR16) -> 11.75 | CM8: =STDEV(W16,AE16,BC16,BD16,BE16,BN16,BO16,BR16) -> 7.535629654 | CN8: =COUNT(W16,AE16,BC16,BD16,BE16,BN16,BO16,BR16) -> 8 | CO8: 2.664247415 | CP8: =AVERAGE(V16,X16,AA16,AD16,AF16,BF16,BG16,BP16,BQ16,BS16) -> 1.85 | CQ8: =STDEV(V16,X16,AA16,AD16,AF16,BF16,BG16,BP16,BQ16,BS16) -> 2.625198405 | CR8: =COUNT(V16,X16,AA16,AD16,AF16,BF16,BG16,BP16,BQ16,BS16) -> 10 | CS8: 0.830160627
A9: 5.5 | B9: 12.42857143 | C9: 3.644024089 | D9: 8.888888889 | E9: 1.775171701 | F9: 10 | G9: 1.889822365 | H9: 0.5 | I9: 0.377964473 | J9: 14.75 | K9: 2.795084972 | L9: 4.15 | M9: 1.362289739 | P9: 4 | Q9: 3 | R9: 4 | S9: 5 | T9: 13 | U9: 5 | V9: 0 | W9: 0 | X9: 1 | Y9: 2 | Z9: 5 | AA9: =AVERAGE(Y9:Z9) -> 3.5 | AB9: 4 | AC9: 1 | AD9: =AVERAGE(AB9:AC9) -> 2.5 | AE9: 4 | AF9: 6 | AG9: 7 | AH9: 5 | AI9: 6 | AJ9: 13 | AK9: 0 | AL9: 7 | AM9: 12 | AN9: 0 | AO9: 1 | AP9: 4 | AQ9: 7 | AR9: 7 | AS9: 0 | AT9: 0 | AU9: 0 | AV9: 7 | AW9: 10 | AX9: 0 | AY9: 0 | AZ9: 4 | BA9: 0 | BB9: 0 | BC9: 14 | BD9: 0 | BE9: 9 | BF9: 2 | BG9: 0 | BH9: 0 | BI9: 1 | BJ9: 0 | BK9: 2 | BL9: 0 | BM9: 0 | BN9: 4 | BO9: 1 | BP9: 3 | BQ9: 2 | BR9: 3 | BS9: 3 | BU9: =P19 -> 9.5 | BV9: =AVERAGE(R19,S19,T19,AK19,AL19,AN19,AQ19) -> 2.428571429 | BW9: =STDEV(R19,S19,T19,AK19,AL19,AN19,AQ19) -> 4.237025012 | BX9: =COUNT(R19,S19,T19,AK19,AL19,AN19,AQ19) -> 7 | BY9: 1.601444926 | BZ9: =AVERAGE(Q19,U19,AG19,AH19,AI19,AJ19,AM19,AO19,AP19) -> 2.444444444 | CA9: =STDEV(Q19,U19,AG19,AH19,AI19,AJ19,AM19,AO19,AP19) -> 6.247221605 | CB9: =COUNT(Q19,U19,AG19,AH19,AI19,AJ19,AM19,AO19,AP19) -> 9 | CC9: 2.082407202 | CD9: =AVERAGE(AR19,AV19,AW19,AZ19,BA19,BH19,BI19,BK19) -> 2.875 | CE9: =STDEV(AR19,AV19,AW19,AZ19,BA19,BH19,BI19,BK19) -> 5.841660723 | CF9: =COUNT(AR19,AV19,AW19,AZ19,BA19,BH19,BI19,BK19) -> 8 | CG9: 2.065338955 | CH9: =AVERAGE(AS19,AT19,AX19,AY19,BB19,BJ19,BL19,BM19) -> 1.625 | CI9: =STDEV(AS19,AT19,AX19,AY19,BB19,BJ19,BL19,BM19) -> 4.206712323 | CJ9: =COUNT(AS19,AT19,AX19,AY19,BB19,BJ19,BL19,BM19) -> 8 | CK9: 1.487297405 | CL9: =AVERAGE(W19,AE19,BC19,BD19,BE19,BN19,BO19,BR19) -> 3.875 | CM9: =STDEV(W19,AE19,BC19,BD19,BE19,BN19,BO19,BR19) -> 4.517821852 | CN9: =COUNT(W19,AE19,BC19,BD19,BE19,BN19,BO19,BR19) -> 8 | CO9: 1.597291234 | CP9: =AVERAGE(V19,X19,AA19,AD19,AF19,BF19,BG19,BP19,BQ19,BS19) -> 1.3 | CQ9: =STDEV(V19,X19,AA19,AD19,AF19,BF19,BG19,BP19,BQ19,BS19) -> 1.946506843 | CR9: =COUNT(V19,X19,AA19,AD19,AF19,BF19,BG19,BP19,BQ19,BS19) -> 10 | CS9: 0.6155395104
A10: 7.5 | B10: 12.28571429 | C10: 2.933503396 | D10: 2.555555556 | E10: 0.8516505398 | F10: 3.25 | G10: 1.877973832 | H10: 2.875 | I10: 1.407093001 | J10: 11.75 | K10: 2.664247415 | L10: 1.85 | M10: 0.830160627 | O10: 2 min sum | P10: =AVERAGE(P8:P9) -> 3.5 | Q10: =SUM(Q8:Q9) -> 7 | R10: =SUM(R8:R9) -> 9 | S10: 14 | T10: 22 | U10: 6 | V10: 0 | W10: 2 | X10: 3 | Y10: 3 | Z10: 5 | AA10: 4 | AB10: 6 | AC10: 1 | AD10: 3.5 | AE10: 10 | AF10: 12 | AG10: 9 | AH10: 8 | AI10: 14 | AJ10: 16 | AK10: 0 | AL10: 8 | AM10: 16 | AN10: 0 | AO10: 2 | AP10: 6 | AQ10: 7 | AR10: 8 | AS10: 0 | AT10: 0 | AU10: 4 | AV10: 9 | AW10: 18 | AX10: 0 | AY10: 0 | AZ10: 7 | BA10: 0 | BB10: 0 | BC10: 14 | BD10: 0 | BE10: 15 | BF10: 2 | BG10: 0 | BH10: 0 | BI10: 1 | BJ10: 0 | BK10: 4 | BL10: 0 | BM10: 10 | BN10: 4 | BO10: 1 | BP10: 4 | BQ10: 2 | BR10: 6 | BS10: 4 | BU10: =P22 -> 11.5 | BV10: =AVERAGE(R22,S22,T22,AK22,AL22,AN22,AQ22) -> 0 | BW10: =STDEV(R22,S22,T22,AK22,AL22,AN22,AQ22) -> 0 | BX10: =COUNT(R22,S22,T22,AK22,AL22,AN22,AQ22) -> 7 | BY10: 0 | BZ10: =AVERAGE(Q22,U22,AG22,AH22,AI22,AJ22,AM22,AO22,AP22) -> 0.8888888889 | CA10: =STDEV(Q22,U22,AG22,AH22,AI22,AJ22,AM22,AO22,AP22) -> 1.054092553 | CB10: =COUNT(Q22,U22,AG22,AH22,AI22,AJ22,AM22,AO22,AP22) -> 9 | CC10: 0.3513641845 | CD10: =AVERAGE(AR22,AV22,AW22,AZ22,BA22,BH22,BI22,BK22) -> 2.625 | CE10: =STDEV(AR22,AV22,AW22,AZ22,BA22,BH22,BI22,BK22) -> 5.974648824 | CF10: =COUNT(AR22,AV22,AW22,AZ22,BA22,BH22,BI22,BK22) -> 8 | CG10: 2.112357349 | CH10: =AVERAGE(AS22,AT22,AX22,AY22,BB22,BJ22,BL22,BM22) -> 0 | CI10: =STDEV(AS22,AT22,AX22,AY22,BB22,BJ22,BL22,BM22) -> 0 | CJ10: =COUNT(AS22,AT22,AX22,AY22,BB22,BJ22,BL22,BM22) -> 8 | CK10: 0 | CL10: =AVERAGE(W22,AE22,BC22,BD22,BE22,BN22,BO22,BR22) -> 0 | CM10: =STDEV(W22,AE22,BC22,BD22,BE22,BN22,BO22,BR22) -> 0 | CN10: =COUNT(W22,AE22,BC22,BD22,BE22,BN22,BO22,BR22) -> 8 | CO10: 0 | CP10: =AVERAGE(V22,X22,AA22,AD22,AF22,BF22,BG22,BP22,BQ22,BS22) -> 0.25 | CQ10: =STDEV(V22,X22,AA22,AD22,AF22,BF22,BG22,BP22,BQ22,BS22) -> 0.4249182928 | CR10: =COUNT(V22,X22,AA22,AD22,AF22,BF22,BG22,BP22,BQ22,BS22) -> 10 | CS10: 0.1343709625
A11: 9.5 | B11: 2.428571429 | C11: 1.601444926 | D11: 2.444444444 | E11: 2.082407202 | F11: 2.875 | G11: 2.065338955 | H11: 1.625 | I11: 1.487297405 | J11: 3.875 | K11: 1.597291234 | L11: 1.3 | M11: 0.6155395104 | P11: 5 | Q11: 5 | R11: 13 | S11: 4 | T11: 11 | U11: 7 | V11: 0 | W11: 5 | X11: 2 | Y11: 6 | Z11: 9 | AA11: =AVERAGE(Y11:Z11) -> 7.5 | AB11: 2 | AC11: 1 | AD11: =AVERAGE(AB11:AC11) -> 1.5 | AE11: 10 | AF11: 6 | AG11: 0 | AH11: 5 | AI11: 1 | AJ11: 2 | AK11: 0 | AL11: 0 | AM11: 5 | AN11: 0 | AO11: 8 | AP11: 8 | AQ11: 4 | AR11: 8 | AS11: 0 | AT11: 0 | AU11: 11 | AV11: 10 | AW11: 5 | AX11: 0 | AY11: 1 | AZ11: 10 | BA11: 7 | BB11: 0 | BC11: 0 | BD11: 1 | BE11: 8 | BF11: 0 | BG11: 2 | BH11: 0 | BI11: 4 | BJ11: 0 | BK11: 0 | BL11: 0 | BM11: 0 | BN11: 0 | BO11: 1 | BP11: 1 | BQ11: 1 | BR11: 3 | BS11: 3 | BU11: =P25 -> 13.5 | BV11: =AVERAGE(R25,S25,T25,AK25,AL25,AN25,AQ25) -> 0 | BW11: =STDEV(R25,S25,T25,AK25,AL25,AN25,AQ25) -> 0 | BX11: =COUNT(R25,S25,T25,AK25,AL25,AN25,AQ25) -> 7 | BY11: 0 | BZ11: =AVERAGE(Q25,U25,AG25,AH25,AI25,AJ25,AM25,AO25,AP25) -> 3.444444444 | CA11: =STDEV(Q25,U25,AG25,AH25,AI25,AJ25,AM25,AO25,AP25) -> 7.195677715 | CB11: =COUNT(Q25,U25,AG25,AH25,AI25,AJ25,AM25,AO25,AP25) -> 9 | CC11: 2.398559238 | CD11: =AVERAGE(AR25,AV25,AW25,AZ25,BA25,BH25,BI25,BK25) -> 2.625 | CE11: =STDEV(AR25,AV25,AW25,AZ25,BA25,BH25,BI25,BK25) -> 4.068608046 | CF11: =COUNT(AR25,AV25,AW25,AZ25,BA25,BH25,BI25,BK25) -> 8 | CG11: 1.43847017 | CH11: =AVERAGE(AS25,AT25,AX25,AY25,BB25,BJ25,BL25,BM25) -> 0 | CI11: =STDEV(AS25,AT25,AX25,AY25,BB25,BJ25,BL25,BM25) -> 0 | CJ11: =COUNT(AS25,AT25,AX25,AY25,BB25,BJ25,BL25,BM25) -> 8 | CK11: 0 | CL11: =AVERAGE(W25,AE25,BC25,BD25,BE25,BN25,BO25,BR25) -> 0.25 | CM11: =STDEV(W25,AE25,BC25,BD25,BE25,BN25,BO25,BR25) -> 0.7071067812 | CN11: =COUNT(W25,AE25,BC25,BD25,BE25,BN25,BO25,BR25) -> 8 | CO11: 0.25 | CP11: =AVERAGE(V25,X25,AA25,AD25,AF25,BF25,BG25,BP25,BQ25,BS25) -> 0.6 | CQ11: =STDEV(V25,X25,AA25,AD25,AF25,BF25,BG25,BP25,BQ25,BS25) -> 0.8432740427 | CR11: =COUNT(V25,X25,AA25,AD25,AF25,BF25,BG25,BP25,BQ25,BS25) -> 10 | CS11: 0.2666666667
A12: 11.5 | B12: 0 | C12: 0 | D12: 0.8888888889 | E12: 0.3513641845 | F12: 2.625 | G12: 2.112357349 | H12: 0 | I12: 0 | J12: 0 | K12: 0 | L12: 0.25 | M12: 0.1343709625 | P12: 6 | Q12: 2 | R12: 17 | S12: 6 | T12: 9 | U12: 11 | V12: 0 | W12: 27 | X12: 1 | Y12: 1 | Z12: 13 | AA12: =AVERAGE(Y12:Z12) -> 7 | AB12: 1 | AC12: 0 | AD12: =AVERAGE(AB12:AC12) -> 0.5 | AE12: 1 | AF12: 1 | AG12: 10 | AH12: 4 | AI12: 2 | AJ12: 0 | AK12: 1 | AL12: 6 | AM12: 0 | AN12: 11 | AO12: 3 | AP12: 7 | AQ12: 5 | AR12: 1 | AS12: 0 | AT12: 0 | AU12: 16 | AV12: 5 | AW12: 8 | AX12: 3 | AY12: 0 | AZ12: 6 | BA12: 6 | BB12: 0 | BC12: 15 | BD12: 8 | BE12: 11 | BF12: 1 | BG12: 0 | BH12: 0 | BI12: 2 | BJ12: 0 | BK12: 8 | BL12: 0 | BM12: 0 | BN12: 11 | BO12: 6 | BP12: 2 | BQ12: 1 | BR12: 11 | BS12: 4 | BU12: =P28 -> 15.5 | BV12: =AVERAGE(R28,S28,T28,AK28,AL28,AN28,AQ28) -> 0 | BW12: =STDEV(R28,S28,T28,AK28,AL28,AN28,AQ28) -> 0 | BX12: =COUNT(R28,S28,T28,AK28,AL28,AN28,AQ28) -> 7 | BY12: 0 | BZ12: =AVERAGE(Q28,U28,AG28,AH28,AI28,AJ28,AM28,AO28,AP28) -> 1.333333333 | CA12: =STDEV(Q28,U28,AG28,AH28,AI28,AJ28,AM28,AO28,AP28) -> 2.645751311 | CB12: =COUNT(Q28,U28,AG28,AH28,AI28,AJ28,AM28,AO28,AP28) -> 9 | CC12: 0.8819171037 | CD12: =AVERAGE(AR28,AV28,AW28,AZ28,BA28,BH28,BI28,BK28) -> 0 | CE12: =STDEV(AR28,AV28,AW28,AZ28,BA28,BH28,BI28,BK28) -> 0 | CF12: =COUNT(AR28,AV28,AW28,AZ28,BA28,BH28,BI28,BK28) -> 8 | CG12: 0 | CH12: =AVERAGE(AS28,AT28,AX28,AY28,BB28,BJ28,BL28,BM28) -> 0 | CI12: =STDEV(AS28,AT28,AX28,AY28,BB28,BJ28,BL28,BM28) -> 0 | CJ12: =COUNT(AS28,AT28,AX28,AY28,BB28,BJ28,BL28,BM28) -> 8 | CK12: 0 | CL12: =AVERAGE(W28,AE28,BC28,BD28,BE28,BN28,BO28,BR28) -> 0.125 | CM12: =STDEV(W28,AE28,BC28,BD28,BE28,BN28,BO28,BR28) -> 0.3535533906 | CN12: =COUNT(W28,AE28,BC28,BD28,BE28,BN28,BO28,BR28) -> 8 | CO12: 0.125 | CP12: =AVERAGE(V28,X28,AA28,AD28,AF28,BF28,BG28,BP28,BQ28,BS28) -> 0.3 | CQ12: =STDEV(V28,X28,AA28,AD28,AF28,BF28,BG28,BP28,BQ28,BS28) -> 0.6749485577 | CR12: =COUNT(V28,X28,AA28,AD28,AF28,BF28,BG28,BP28,BQ28,BS28) -> 10 | CS12: 0.2134374746
A13: 13.5 | B13: 0 | C13: 0 | D13: 3.444444444 | E13: 2.398559238 | F13: 2.625 | G13: 1.43847017 | H13: 0 | I13: 0 | J13: 0.25 | K13: 0.25 | L13: 0.6 | M13: 0.2666666667 | O13: 2 min sum | P13: =AVERAGE(P11:P12) -> 5.5 | Q13: =SUM(Q11:Q12) -> 7 | R13: =SUM(R11:R12) -> 30 | S13: 10 | T13: 20 | U13: 18 | V13: 0 | W13: 32 | X13: 3 | Y13: 7 | Z13: 22 | AA13: 14.5 | AB13: 3 | AC13: 1 | AD13: 2 | AE13: 11 | AF13: 7 | AG13: 10 | AH13: 9 | AI13: 3 | AJ13: 2 | AK13: 1 | AL13: 6 | AM13: 5 | AN13: 11 | AO13: 11 | AP13: 15 | AQ13: 9 | AR13: 9 | AS13: 0 | AT13: 0 | AU13: 27 | AV13: 15 | AW13: 13 | AX13: 3 | AY13: 1 | AZ13: 16 | BA13: 13 | BB13: 0 | BC13: 15 | BD13: 9 | BE13: 19 | BF13: 1 | BG13: 2 | BH13: 0 | BI13: 6 | BJ13: 0 | BK13: 8 | BL13: 0 | BM13: 0 | BN13: 11 | BO13: 7 | BP13: 3 | BQ13: 2 | BR13: 14 | BS13: 7 | BU13: =P31 -> 17.5 | BV13: =AVERAGE(R31,S31,T31,AK31,AL31,AN31,AQ31) -> 0.1428571429 | BW13: =STDEV(R31,S31,T31,AK31,AL31,AN31,AQ31) -> 0.377964473 | BX13: =COUNT(R31,S31,T31,AK31,AL31,AN31,AQ31) -> 7 | BY13: 0.1428571429 | BZ13: =AVERAGE(Q31,U31,AG31,AH31,AI31,AJ31,AM31,AO31,AP31) -> 0.6666666667 | CA13: =STDEV(Q31,U31,AG31,AH31,AI31,AJ31,AM31,AO31,AP31) -> 2 | CB13: =COUNT(Q31,U31,AG31,AH31,AI31,AJ31,AM31,AO31,AP31) -> 9 | CC13: 0.6666666667 | CD13: =AVERAGE(AR31,AV31,AW31,AZ31,BA31,BH31,BI31,BK31) -> 0 | CE13: =STDEV(AR31,AV31,AW31,AZ31,BA31,BH31,BI31,BK31) -> 0 | CF13: =COUNT(AR31,AV31,AW31,AZ31,BA31,BH31,BI31,BK31) -> 8 | CG13: 0 | CH13: =AVERAGE(AS31,AT31,AX31,AY31,BB31,BJ31,BL31,BM31) -> 0.375 | CI13: =STDEV(AS31,AT31,AX31,AY31,BB31,BJ31,BL31,BM31) -> 1.060660172 | CJ13: =COUNT(AS31,AT31,AX31,AY31,BB31,BJ31,BL31,BM31) -> 8 | CK13: 0.375 | CL13: =AVERAGE(W31,AE31,BC31,BD31,BE31,BN31,BO31,BR31) -> 1 | CM13: =STDEV(W31,AE31,BC31,BD31,BE31,BN31,BO31,BR31) -> 2.828427125 | CN13: =COUNT(W31,AE31,BC31,BD31,BE31,BN31,BO31,BR31) -> 8 | CO13: 1 | CP13: =AVERAGE(V31,X31,AA31,AD31,AF31,BF31,BG31,BP31,BQ31,BS31) -> 0.05 | CQ13: =STDEV(V31,X31,AA31,AD31,AF31,BF31,BG31,BP31,BQ31,BS31) -> 0.158113883 | CR13: =COUNT(V31,X31,AA31,AD31,AF31,BF31,BG31,BP31,BQ31,BS31) -> 10 | CS13: 0.05
A14: 15.5 | B14: 0 | C14: 0 | D14: 1.333333333 | E14: 0.8819171037 | F14: 0 | G14: 0 | H14: 0 | I14: 0 | J14: 0.125 | K14: 0.125 | L14: 0.3 | M14: 0.2134374746 | P14: 7 | Q14: 0 | R14: 5 | S14: 8 | T14: 0 | U14: 0 | V14: 0 | W14: 7 | X14: 0 | Y14: 3 | Z14: 8 | AA14: =AVERAGE(Y14:Z14) -> 5.5 | AB14: 0 | AC14: 0 | AD14: =AVERAGE(AB14:AC14) -> 0 | AE14: 11 | AF14: 6 | AG14: 6 | AH14: 0 | AI14: 0 | AJ14: 0 | AK14: 8 | AL14: 2 | AM14: 0 | AN14: 11 | AO14: 2 | AP14: 1 | AQ14: 12 | AR14: 0 | AS14: 0 | AT14: 0 | AU14: 0 | AV14: 0 | AW14: 1 | AX14: 4 | AY14: 8 | AZ14: 9 | BA14: 0 | BB14: 0 | BC14: 9 | BD14: 6 | BE14: 18 | BF14: 0 | BG14: 2 | BH14: 0 | BI14: 0 | BJ14: 0 | BK14: 0 | BL14: 0 | BM14: 8 | BN14: 13 | BO14: 5 | BP14: 0 | BQ14: 0 | BR14: 2 | BS14: 2 | BU14: =P34 -> 19.5 | BV14: =AVERAGE(R34,S34,T34,AK34,AL34,AN34,AQ34) -> 0 | BW14: =STDEV(R34,S34,T34,AK34,AL34,AN34,AQ34) -> 0 | BX14: =COUNT(R34,S34,T34,AK34,AL34,AN34,AQ34) -> 7 | BY14: 0 | BZ14: =AVERAGE(Q34,U34,AG34,AH34,AI34,AJ34,AM34,AO34,AP34) -> 0.4444444444 | CA14: =STDEV(Q34,U34,AG34,AH34,AI34,AJ34,AM34,AO34,AP34) -> 1.333333333 | CB14: =COUNT(Q34,U34,AG34,AH34,AI34,AJ34,AM34,AO34,AP34) -> 9 | CC14: 0.4444444444 | CD14: =AVERAGE(AR34,AV34,AW34,AZ34,BA34,BH34,BI34,BK34) -> 0.375 | CE14: =STDEV(AR34,AV34,AW34,AZ34,BA34,BH34,BI34,BK34) -> 1.060660172 | CF14: =COUNT(AR34,AV34,AW34,AZ34,BA34,BH34,BI34,BK34) -> 8 | CG14: 0.375 | CH14: =AVERAGE(AS34,AT34,AX34,AY34,BB34,BJ34,BL34,BM34) -> 0.75 | CI14: =STDEV(AS34,AT34,AX34,AY34,BB34,BJ34,BL34,BM34) -> 2.121320344 | CJ14: =COUNT(AS34,AT34,AX34,AY34,BB34,BJ34,BL34,BM34) -> 8 | CK14: 0.75 | CL14: =AVERAGE(W34,AE34,BC34,BD34,BE34,BN34,BO34,BR34) -> 0.5 | CM14: =STDEV(W34,AE34,BC34,BD34,BE34,BN34,BO34,BR34) -> 1.414213562 | CN14: =COUNT(W34,AE34,BC34,BD34,BE34,BN34,BO34,BR34) -> 8 | CO14: 0.5 | CP14: =AVERAGE(V34,X34,AA34,AD34,AF34,BF34,BG34,BP34,BQ34,BS34) -> 0.7 | CQ14: =STDEV(V34,X34,AA34,AD34,AF34,BF34,BG34,BP34,BQ34,BS34) -> 2.213594362 | CR14: =COUNT(V34,X34,AA34,AD34,AF34,BF34,BG34,BP34,BQ34,BS34) -> 10 | CS14: 0.7
A15: 17.5 | B15: 0.1428571429 | C15: 0.1428571429 | D15: 0.6666666667 | E15: 0.6666666667 | F15: 0 | G15: 0 | H15: 0.375 | I15: 0.375 | J15: 1 | K15: 1 | L15: 0.05 | M15: 0.05 | P15: 8 | Q15: 0 | R15: 0 | S15: 15 | T15: 13 | U15: 0 | V15: 0 | W15: 0 | X15: 0 | Y15: 2 | Z15: 0 | AA15: =AVERAGE(Y15:Z15) -> 1 | AB15: 0 | AC15: 0 | AD15: =AVERAGE(AB15:AC15) -> 0 | AE15: 6 | AF15: 0 | AG15: 0 | AH15: 1 | AI15: 5 | AJ15: 0 | AK15: 1 | AL15: 0 | AM15: 3 | AN15: 10 | AO15: 0 | AP15: 5 | AQ15: 1 | AR15: 14 | AS15: 0 | AT15: 0 | AU15: 0 | AV15: 0 | AW15: 0 | AX15: 3 | AY15: 0 | AZ15: 0 | BA15: 0 | BB15: 0 | BC15: 1 | BD15: 3 | BE15: 0 | BF15: 0 | BG15: 1 | BH15: 2 | BI15: 0 | BJ15: 0 | BK15: 0 | BL15: 0 | BM15: 0 | BN15: 12 | BO15: 0 | BP15: 0 | BQ15: 0 | BR15: 1 | BS15: 1
A16: 19.5 | B16: 0 | C16: 0 | D16: 0.4444444444 | E16: 0.4444444444 | F16: 0.375 | G16: 0.375 | H16: 0.75 | I16: 0.75 | J16: 0.5 | K16: 0.5 | L16: =CP14 -> 0.7 | M16: =CS14 -> 0.7 | O16: 2 min sum | P16: =AVERAGE(P14:P15) -> 7.5 | Q16: =SUM(Q14:Q15) -> 0 | R16: =SUM(R14:R15) -> 5 | S16: 23 | T16: 13 | U16: 0 | V16: 0 | W16: 7 | X16: 0 | Y16: 5 | Z16: 8 | AA16: 6.5 | AB16: 0 | AC16: 0 | AD16: 0 | AE16: 17 | AF16: 6 | AG16: 6 | AH16: 1 | AI16: 5 | AJ16: 0 | AK16: 9 | AL16: 2 | AM16: 3 | AN16: 21 | AO16: 2 | AP16: 6 | AQ16: 13 | AR16: 14 | AS16: 0 | AT16: 0 | AU16: 0 | AV16: 0 | AW16: 1 | AX16: 7 | AY16: 8 | AZ16: 9 | BA16: 0 | BB16: 0 | BC16: 10 | BD16: 9 | BE16: 18 | BF16: 0 | BG16: 3 | BH16: 2 | BI16: 0 | BJ16: 0 | BK16: 0 | BL16: 0 | BM16: 8 | BN16: 25 | BO16: 5 | BP16: 0 | BQ16: 0 | BR16: 3 | BS16: 3
P17: 9 | Q17: 0 | R17: 0 | S17: 0 | T17: 0 | U17: 0 | V17: 0 | W17: 0 | X17: 2 | Y17: 1 | Z17: 0 | AA17: =AVERAGE(Y17:Z17) -> 0.5 | AB17: 0 | AC17: 0 | AD17: =AVERAGE(AB17:AC17) -> 0 | AE17: 6 | AF17: 1 | AG17: 0 | AH17: 0 | AI17: 0 | AJ17: 0 | AK17: 7 | AL17: 0 | AM17: 11 | AN17: 0 | AO17: 1 | AP17: 0 | AQ17: 0 | AR17: 0 | AS17: 0 | AT17: 0 | AU17: 0 | AV17: 0 | AW17: 0 | AX17: 3 | AY17: 0 | AZ17: 0 | BA17: 0 | BB17: 0 | BC17: 5 | BD17: 0 | BE17: 11 | BF17: 0 | BG17: 0 | BH17: 3 | BI17: 0 | BJ17: 0 | BK17: 0 | BL17: 0 | BM17: 0 | BN17: 0 | BO17: 0 | BP17: 0 | BQ17: 0 | BR17: 9 | BS17: 3
P18: 10 | Q18: 0 | R18: 0 | S18: 0 | T18: 10 | U18: 0 | V18: 0 | W18: 0 | X18: 0 | Y18: 1 | Z18: 0 | AA18: =AVERAGE(Y18:Z18) -> 0.5 | AB18: 0 | AC18: 0 | AD18: =AVERAGE(AB18:AC18) -> 0 | AE18: 0 | AF18: 2 | AG18: 1 | AH18: 0 | AI18: 0 | AJ18: 0 | AK18: 0 | AL18: 0 | AM18: 8 | AN18: 0 | AO18: 1 | AP18: 0 | AQ18: 0 | AR18: 16 | AS18: 0 | AT18: 0 | AU18: 8 | AV18: 0 | AW18: 0 | AX18: 9 | AY18: 0 | AZ18: 0 | BA18: 0 | BB18: 1 | BC18: 0 | BD18: 0 | BE18: 0 | BF18: 0 | BG18: 0 | BH18: 4 | BI18: 0 | BJ18: 0 | BK18: 0 | BL18: 0 | BM18: 0 | BN18: 0 | BO18: 0 | BP18: 0 | BQ18: 1 | BR18: 0 | BS18: 3
O19: 2 min sum | P19: =AVERAGE(P17:P18) -> 9.5 | Q19: =SUM(Q17:Q18) -> 0 | R19: =SUM(R17:R18) -> 0 | S19: 0 | T19: 10 | U19: 0 | V19: 0 | W19: 0 | X19: 2 | Y19: 2 | Z19: 0 | AA19: 1 | AB19: 0 | AC19: 0 | AD19: 0 | AE19: 6 | AF19: 3 | AG19: 1 | AH19: 0 | AI19: 0 | AJ19: 0 | AK19: 7 | AL19: 0 | AM19: 19 | AN19: 0 | AO19: 2 | AP19: 0 | AQ19: 0 | AR19: 16 | AS19: 0 | AT19: 0 | AU19: 8 | AV19: 0 | AW19: 0 | AX19: 12 | AY19: 0 | AZ19: 0 | BA19: 0 | BB19: 1 | BC19: 5 | BD19: 0 | BE19: 11 | BF19: 0 | BG19: 0 | BH19: 7 | BI19: 0 | BJ19: 0 | BK19: 0 | BL19: 0 | BM19: 0 | BN19: 0 | BO19: 0 | BP19: 0 | BQ19: 1 | BR19: 9 | BS19: 6
P20: 11 | Q20: 0 | R20: 0 | S20: 0 | T20: 0 | U20: 0 | V20: 0 | W20: 0 | X20: 0 | Y20: 0 | Z20: 0 | AA20: =AVERAGE(Y20:Z20) -> 0 | AB20: 0 | AC20: 0 | AD20: =AVERAGE(AB20:AC20) -> 0 | AE20: 0 | AF20: 0 | AG20: 0 | AH20: 1 | AI20: 0 | AJ20: 0 | AK20: 0 | AL20: 0 | AM20: 1 | AN20: 0 | AO20: 0 | AP20: 0 | AQ20: 0 | AR20: 0 | AS20: 0 | AT20: 0 | AU20: 0 | AV20: 0 | AW20: 0 | AX20: 0 | AY20: 0 | AZ20: 0 | BA20: 0 | BB20: 0 | BC20: 0 | BD20: 0 | BE20: 0 | BF20: 0 | BG20: 0 | BH20: 1 | BI20: 0 | BJ20: 0 | BK20: 6 | BL20: 0 | BM20: 0 | BN20: 0 | BO20: 0 | BP20: 0 | BQ20: 1 | BR20: 0 | BS20: 0
P21: 12 | Q21: 0 | R21: 0 | S21: 0 | T21: 0 | U21: 3 | V21: 0 | W21: 0 | X21: 0 | Y21: 1 | Z21: 0 | AA21: =AVERAGE(Y21:Z21) -> 0.5 | AB21: 0 | AC21: 0 | AD21: =AVERAGE(AB21:AC21) -> 0 | AE21: 0 | AF21: 0 | AG21: 2 | AH21: 0 | AI21: 0 | AJ21: 0 | AK21: 0 | AL21: 0 | AM21: 0 | AN21: 0 | AO21: 0 | AP21: 1 | AQ21: 0 | AR21: 0 | AS21: 0 | AT21: 0 | AU21: 0 | AV21: 0 | AW21: 0 | AX21: 0 | AY21: 0 | AZ21: 0 | BA21: 0 | BB21: 0 | BC21: 0 | BD21: 0 | BE21: 0 | BF21: 0 | BG21: 0 | BH21: 3 | BI21: 0 | BJ21: 0 | BK21: 11 | BL21: 0 | BM21: 0 | BN21: 0 | BO21: 0 | BP21: 0 | BQ21: 0 | BR21: 0 | BS21: 1
O22: 2 min sum | P22: =AVERAGE(P20:P21) -> 11.5 | Q22: =SUM(Q20:Q21) -> 0 | R22: =SUM(R20:R21) -> 0 | S22: 0 | T22: 0 | U22: 3 | V22: 0 | W22: 0 | X22: 0 | Y22: 1 | Z22: 0 | AA22: 0.5 | AB22: 0 | AC22: 0 | AD22: 0 | AE22: 0 | AF22: 0 | AG22: 2 | AH22: 1 | AI22: 0 | AJ22: 0 | AK22: 0 | AL22: 0 | AM22: 1 | AN22: 0 | AO22: 0 | AP22: 1 | AQ22: 0 | AR22: 0 | AS22: 0 | AT22: 0 | AU22: 0 | AV22: 0 | AW22: 0 | AX22: 0 | AY22: 0 | AZ22: 0 | BA22: 0 | BB22: 0 | BC22: 0 | BD22: 0 | BE22: 0 | BF22: 0 | BG22: 0 | BH22: 4 | BI22: 0 | BJ22: 0 | BK22: 17 | BL22: 0 | BM22: 0 | BN22: 0 | BO22: 0 | BP22: 0 | BQ22: 1 | BR22: 0 | BS22: 1
P23: 13 | Q23: 0 | R23: 0 | S23: 0 | T23: 0 | U23: 12 | V23: 2 | W23: 0 | X23: 0 | Y23: 2 | Z23: 0 | AA23: =AVERAGE(Y23:Z23) -> 1 | AB23: 0 | AC23: 0 | AD23: =AVERAGE(AB23:AC23) -> 0 | AE23: 2 | AF23: 0 | AG23: 0 | AH23: 2 | AI23: 0 | AJ23: 0 | AK23: 0 | AL23: 0 | AM23: 0 | AN23: 0 | AO23: 0 | AP23: 0 | AQ23: 0 | AR23: 0 | AS23: 0 | AT23: 0 | AU23: 0 | AV23: 0 | AW23: 0 | AX23: 0 | AY23: 0 | AZ23: 0 | BA23: 0 | BB23: 0 | BC23: 0 | BD23: 0 | BE23: 0 | BF23: 0 | BG23: 0 | BH23: 7 | BI23: 3 | BJ23: 0 | BK23: 9 | BL23: 0 | BM23: 0 | BN23: 0 | BO23: 0 | BP23: 0 | BQ23: 1 | BR23: 0 | BS23: 0
P24: 14 | Q24: 0 | R24: 0 | S24: 0 | T24: 0 | U24: 8 | V24: 0 | W24: 0 | X24: 0 | Y24: 2 | Z24: 0 | AA24: =AVERAGE(Y24:Z24) -> 1 | AB24: 0 | AC24: 0 | AD24: =AVERAGE(AB24:AC24) -> 0 | AE24: 0 | AF24: 0 | AG24: 0 | AH24: 9 | AI24: 0 | AJ24: 0 | AK24: 0 | AL24: 0 | AM24: 0 | AN24: 0 | AO24: 0 | AP24: 0 | AQ24: 0 | AR24: 0 | AS24: 0 | AT24: 0 | AU24: 0 | AV24: 0 | AW24: 0 | AX24: 0 | AY24: 0 | AZ24: 0 | BA24: 0 | BB24: 0 | BC24: 0 | BD24: 0 | BE24: 0 | BF24: 0 | BG24: 0 | BH24: 2 | BI24: 0 | BJ24: 0 | BK24: 0 | BL24: 0 | BM24: 0 | BN24: 0 | BO24: 0 | BP24: 0 | BQ24: 0 | BR24: 0 | BS24: 1
O25: 2 min sum | P25: =AVERAGE(P23:P24) -> 13.5 | Q25: =SUM(Q23:Q24) -> 0 | R25: =SUM(R23:R24) -> 0 | S25: 0 | T25: 0 | U25: 20 | V25: 2 | W25: 0 | X25: 0 | Y25: 4 | Z25: 0 | AA25: 2 | AB25: 0 | AC25: 0 | AD25: 0 | AE25: 2 | AF25: 0 | AG25: 0 | AH25: 11 | AI25: 0 | AJ25: 0 | AK25: 0 | AL25: 0 | AM25: 0 | AN25: 0 | AO25: 0 | AP25: 0 | AQ25: 0 | AR25: 0 | AS25: 0 | AT25: 0 | AU25: 0 | AV25: 0 | AW25: 0 | AX25: 0 | AY25: 0 | AZ25: 0 | BA25: 0 | BB25: 0 | BC25: 0 | BD25: 0 | BE25: 0 | BF25: 0 | BG25: 0 | BH25: 9 | BI25: 3 | BJ25: 0 | BK25: 9 | BL25: 0 | BM25: 0 | BN25: 0 | BO25: 0 | BP25: 0 | BQ25: 1 | BR25: 0 | BS25: 1
P26: 15 | Q26: 0 | R26: 0 | S26: 0 | T26: 0 | U26: 6 | V26: 0 | W26: 0 | X26: 1 | Y26: 0 | Z26: 0 | AA26: =AVERAGE(Y26:Z26) -> 0 | AB26: 0 | AC26: 0 | AD26: =AVERAGE(AB26:AC26) -> 0 | AE26: 0 | AF26: 0 | AG26: 0 | AH26: 0 | AI26: 0 | AJ26: 0 | AK26: 0 | AL26: 0 | AM26: 0 | AN26: 0 | AO26: 0 | AP26: 0 | AQ26: 0 | AR26: 0 | AS26: 0 | AT26: 0 | AU26: 0 | AV26: 0 | AW26: 0 | AX26: 0 | AY26: 0 | AZ26: 0 | BA26: 0 | BB26: 0 | BC26: 0 | BD26: 0 | BE26: 0 | BF26: 0 | BG26: 0 | BH26: 0 | BI26: 0 | BJ26: 0 | BK26: 0 | BL26: 0 | BM26: 0 | BN26: 0 | BO26: 0 | BP26: 0 | BQ26: 0 | BR26: 0 | BS26: 1
P27: 16 | Q27: 0 | R27: 0 | S27: 0 | T27: 0 | U27: 0 | V27: 0 | W27: 1 | X27: 1 | Y27: 0 | Z27: 0 | AA27: =AVERAGE(Y27:Z27) -> 0 | AB27: 0 | AC27: 0 | AD27: =AVERAGE(AB27:AC27) -> 0 | AE27: 0 | AF27: 0 | AG27: 0 | AH27: 0 | AI27: 6 | AJ27: 0 | AK27: 0 | AL27: 0 | AM27: 0 | AN27: 0 | AO27: 0 | AP27: 0 | AQ27: 0 | AR27: 0 | AS27: 0 | AT27: 0 | AU27: 2 | AV27: 0 | AW27: 0 | AX27: 0 | AY27: 0 | AZ27: 0 | BA27: 0 | BB27: 0 | BC27: 0 | BD27: 0 | BE27: 0 | BF27: 0 | BG27: 0 | BH27: 0 | BI27: 0 | BJ27: 0 | BK27: 0 | BL27: 0 | BM27: 0 | BN27: 0 | BO27: 0 | BP27: 0 | BQ27: 0 | BR27: 0 | BS27: 0
O28: 2 min sum | P28: =AVERAGE(P26:P27) -> 15.5 | Q28: =SUM(Q26:Q27) -> 0 | R28: =SUM(R26:R27) -> 0 | S28: 0 | T28: 0 | U28: 6 | V28: 0 | W28: 1 | X28: 2 | Y28: 0 | Z28: 0 | AA28: 0 | AB28: 0 | AC28: 0 | AD28: 0 | AE28: 0 | AF28: 0 | AG28: 0 | AH28: 0 | AI28: 6 | AJ28: 0 | AK28: 0 | AL28: 0 | AM28: 0 | AN28: 0 | AO28: 0 | AP28: 0 | AQ28: 0 | AR28: 0 | AS28: 0 | AT28: 0 | AU28: 2 | AV28: 0 | AW28: 0 | AX28: 0 | AY28: 0 | AZ28: 0 | BA28: 0 | BB28: 0 | BC28: 0 | BD28: 0 | BE28: 0 | BF28: 0 | BG28: 0 | BH28: 0 | BI28: 0 | BJ28: 0 | BK28: 0 | BL28: 0 | BM28: 0 | BN28: 0 | BO28: 0 | BP28: 0 | BQ28: 0 | BR28: 0 | BS28: 1
P29: 17 | Q29: 0 | R29: 0 | S29: 0 | T29: 0 | U29: 0 | V29: 0 | W29: 0 | X29: 0 | Y29: 0 | Z29: 0 | AA29: =AVERAGE(Y29:Z29) -> 0 | AB29: 0 | AC29: 0 | AD29: =AVERAGE(AB29:AC29) -> 0 | AE29: 0 | AF29: 0 | AG29: 0 | AH29: 0 | AI29: 4 | AJ29: 0 | AK29: 0 | AL29: 0 | AM29: 0 | AN29: 0 | AO29: 0 | AP29: 0 | AQ29: 0 | AR29: 0 | AS29: 0 | AT29: 0 | AU29: 10 | AV29: 0 | AW29: 0 | AX29: 0 | AY29: 0 | AZ29: 0 | BA29: 0 | BB29: 0 | BC29: 0 | BD29: 2 | BE29: 0 | BF29: 0 | BG29: 0 | BH29: 0 | BI29: 0 | BJ29: 0 | BK29: 0 | BL29: 0 | BM29: 0 | BN29: 0 | BO29: 0 | BP29: 0 | BQ29: 0 | BR29: 0 | BS29: 0
P30: 18 | Q30: 0 | R30: 0 | S30: 0 | T30: 0 | U30: 0 | V30: 0 | W30: 0 | X30: 0 | Y30: 0 | Z30: 1 | AA30: =AVERAGE(Y30:Z30) -> 0.5 | AB30: 0 | AC30: 0 | AD30: =AVERAGE(AB30:AC30) -> 0 | AE30: 0 | AF30: 0 | AG30: 0 | AH30: 0 | AI30: 2 | AJ30: 0 | AK30: 0 | AL30: 0 | AM30: 0 | AN30: 0 | AO30: 0 | AP30: 0 | AQ30: 1 | AR30: 0 | AS30: 0 | AT30: 0 | AU30: 0 | AV30: 0 | AW30: 0 | AX30: 0 | AY30: 3 | AZ30: 0 | BA30: 0 | BB30: 0 | BC30: 0 | BD30: 6 | BE30: 0 | BF30: 0 | BG30: 0 | BH30: 0 | BI30: 0 | BJ30: 0 | BK30: 0 | BL30: 0 | BM30: 0 | BN30: 0 | BO30: 0 | BP30: 0 | BQ30: 0 | BR30: 0 | BS30: 0
O31: 2 min sum | P31: =AVERAGE(P29:P30) -> 17.5 | Q31: =SUM(Q29:Q30) -> 0 | R31: =SUM(R29:R30) -> 0 | S31: 0 | T31: 0 | U31: 0 | V31: 0 | W31: 0 | X31: 0 | Y31: 0 | Z31: 1 | AA31: 0.5 | AB31: 0 | AC31: 0 | AD31: 0 | AE31: 0 | AF31: 0 | AG31: 0 | AH31: 0 | AI31: 6 | AJ31: 0 | AK31: 0 | AL31: 0 | AM31: 0 | AN31: 0 | AO31: 0 | AP31: 0 | AQ31: 1 | AR31: 0 | AS31: 0 | AT31: 0 | AU31: 10 | AV31: 0 | AW31: 0 | AX31: 0 | AY31: 3 | AZ31: 0 | BA31: 0 | BB31: 0 | BC31: 0 | BD31: 8 | BE31: 0 | BF31: 0 | BG31: 0 | BH31: 0 | BI31: 0 | BJ31: 0 | BK31: 0 | BL31: 0 | BM31: 0 | BN31: 0 | BO31: 0 | BP31: 0 | BQ31: 0 | BR31: 0 | BS31: 0
P32: 19 | Q32: 0 | R32: 0 | S32: 0 | T32: 0 | U32: 0 | V32: 0 | W32: 0 | X32: 0 | Y32: 0 | Z32: 0 | AA32: =AVERAGE(Y32:Z32) -> 0 | AB32: 0 | AC32: 0 | AD32: =AVERAGE(AB32:AC32) -> 0 | AE32: 0 | AF32: 0 | AG32: 0 | AH32: 0 | AI32: 4 | AJ32: 0 | AK32: 0 | AL32: 0 | AM32: 0 | AN32: 0 | AO32: 0 | AP32: 0 | AQ32: 0 | AR32: 0 | AS32: 0 | AT32: 0 | AU32: 0 | AV32: 0 | AW32: 0 | AX32: 0 | AY32: 1 | AZ32: 0 | BA32: 0 | BB32: 0 | BC32: 0 | BD32: 0 | BE32: 0 | BF32: 0 | BG32: 0 | BH32: 0 | BI32: 0 | BJ32: 0 | BK32: 0 | BL32: 0 | BM32: 0 | BN32: 0 | BO32: 0 | BP32: 0 | BQ32: 0 | BR32: 0 | BS32: 0
P33: 20 | Q33: 0 | R33: 0 | S33: 0 | T33: 0 | U33: 0 | V33: 0 | W33: 0 | X33: 0 | Y33: 0 | Z33: 0 | AA33: =AVERAGE(Y33:Z33) -> 0 | AB33: 0 | AC33: 0 | AD33: =AVERAGE(AB33:AC33) -> 0 | AE33: 0 | AF33: 0 | AG33: 0 | AH33: 0 | AI33: 0 | AJ33: 0 | AK33: 0 | AL33: 0 | AM33: 0 | AN33: 0 | AO33: 0 | AP33: 0 | AQ33: 0 | AR33: 0 | AS33: 0 | AT33: 0 | AU33: 0 | AV33: 3 | AW33: 0 | AX33: 0 | AY33: 5 | AZ33: 0 | BA33: 0 | BB33: 0 | BC33: 0 | BD33: 4 | BE33: 0 | BF33: 0 | BG33: 0 | BH33: 0 | BI33: 0 | BJ33: 0 | BK33: 0 | BL33: 0 | BM33: 0 | BN33: 0 | BO33: 0 | BP33: 7 | BQ33: 0 | BR33: 0 | BS33: 0
O34: 2 min sum | P34: =AVERAGE(P32:P33) -> 19.5 | Q34: =SUM(Q32:Q33) -> 0 | R34: =SUM(R32:R33) -> 0 | S34: 0 | T34: 0 | U34: 0 | V34: 0 | W34: 0 | X34: 0 | Y34: 0 | Z34: 0 | AA34: 0 | AB34: 0 | AC34: 0 | AD34: 0 | AE34: 0 | AF34: 0 | AG34: 0 | AH34: 0 | AI34: 4 | AJ34: 0 | AK34: 0 | AL34: 0 | AM34: 0 | AN34: 0 | AO34: 0 | AP34: 0 | AQ34: 0 | AR34: 0 | AS34: 0 | AT34: 0 | AU34: 0 | AV34: 3 | AW34: 0 | AX34: 0 | AY34: 6 | AZ34: 0 | BA34: 0 | BB34: 0 | BC34: 0 | BD34: 4 | BE34: 0 | BF34: 0 | BG34: 0 | BH34: 0 | BI34: 0 | BJ34: 0 | BK34: 0 | BL34: 0 | BM34: 0 | BN34: 0 | BO34: 0 | BP34: 7 | BQ34: 0 | BR34: 0 | BS34: 0

Sheet 3b
A1: Scatter plot
B3: α5 | D3: α2 | F3: α3
B4: veh | C4: dzp | D4: veh | E4: dzp | F4: veh | G4: dzp
B5: 47 | C5: 15 | D5: 42 | E5: 2 | F5: 47 | G5: 0
B6: 49 | C6: 55 | D6: 46 | E6: 10 | F6: 27 | G6: 0
B7: 70 | C7: 28 | D7: 45 | E7: 6 | F7: 36 | G7: 22
B8: 16 | C8: 30 | D8: 30 | E8: 5.5 | F8: 32 | G8: 18
B9: 32 | C9: 38 | D9: 63 | E9: 30 | F9: 13 | G9: 1
B10: 30 | C10: 18 | D10: 40 | E10: 3 | F10: 22 | G10: 0
B11: 17 | C11: 46 | D11: 13 | E11: 5 | F11: 10 | G11: 0
C12: 17 | D12: 32 | E12: 14 | F12: 38 | G12: 18
C13: 28 | E13: 7
E14: 23
A16: avg | B16: =AVERAGE(B5:B14) -> 37.28571429 | C16: =AVERAGE(C5:C14) -> 30.55555556 | D16: 38.875 | E16: 10.55 | F16: 28.125 | G16: 7.375
A17: SEM | B17: =STDEV(B5:B14)/SQRT(COUNT(B5:B14)) -> 7.315066923 | C17: =STDEV(C5:C14)/SQRT(COUNT(C5:C14)) -> 4.546400014 | D17: 5.135442323 | E17: 2.915904662 | F17: 4.485840819 | G17: 3.530163392

Sheet 3c
A1: α2
A3: dose | B3: 0 | C3: 0.1 | D3: 0.3 | E3: 1 | F3: 3 | G3: 10 | H3: 30
B4: 50 | C4: 93 | D4: 69 | E4: 48 | F4: 20 | G4: 9 | H4: 10
B5: 36 | C5: 47 | D5: 32 | E5: 0 | F5: 43 | G5: 1 | H5: 0
B6: 35 | C6: 35 | D6: 17 | E6: 20 | F6: 28 | G6: 0 | H6: 12
B7: 32 | C7: 107 | D7: 73 | E7: 7 | F7: 7 | G7: 14 | H7: 4
B8: 68 | C8: 19 | E8: 12 | F8: 1 | G8: 2 | H8: 8
B9: 40 | C9: 33 | E9: 55 | F9: 15 | G9: 16 | H9: 2
B10: 26 | C10: 41 | G10: 1
A13: avg | B13: =AVERAGE(B4:B11) -> 41 | C13: 53.57142857 | D13: 47.75 | E13: 23.66666667 | F13: 19 | G13: 6.142857143 | H13: 6
A14: SEM | B14: =STDEV(B4:B11)/SQRT(COUNT(B4:B11)) -> 5.296000288 | C14: 12.51067571 | D14: 13.792359 | E14: 9.24000962 | F14: 6.169819014 | G14: 2.558166861 | H14: 1.932183566

Sheet 3d
A1: α3
A3: dose | B3: 0 | C3: 0.1 | D3: 0.3 | E3: 1 | F3: 3 | G3: 10 | H3: 30
B4: 31 | C4: 29 | D4: 25 | E4: 0 | F4: 0 | G4: 0 | H4: 1
B5: 31 | C5: 15 | D5: 12 | E5: 1 | F5: 0 | G5: 0 | H5: 0
B6: 62 | C6: 16 | D6: 0 | E6: 0 | F6: 7 | G6: 25 | H6: 0
B7: 8 | C7: 77 | D7: 0 | E7: 39 | F7: 0 | G7: 0 | H7: 0
B8: 44 | C8: 19 | D8: 43 | E8: 26 | F8: 0 | G8: 0 | H8: 0
B9: 47 | C9: 22 | D9: 73 | E9: 10 | F9: 0 | G9: 0 | H9: 0
B10: 25
B11: 18
A13: avg | B13: =AVERAGE(B4:B11) -> 33.25 | C13: 29.66666667 | D13: 25.5 | E13: 12.66666667 | F13: 1.166666667 | G13: 4.166666667 | H13: 0.1666666667
A14: SEM | B14: =STDEV(B4:B11)/SQRT(COUNT(B4:B11)) -> 6.093761447 | C14: 9.687334228 | D14: 11.61249327 | E14: 6.671664793 | F14: 1.166666667 | G14: 4.166666667 | H14: 0.1666666667

Sheet 3e
A1: α2
B2: time | C2: vehicle | E2: DZP | I2: treat | J2: D | K2: V | L2: V | M2: D | N2: D | O2: D | P2: V | Q2: V | R2: D | S2: V | T2: D | U2: D | V2: V | W2: V | X2: D
B3: 10 | C3: 38.28571429 | D3: 18.51089034 | E3: 1.25 | F3: 0.5590169944 | I3: 0 | J3: 0 | K3: 0 | L3: 0 | M3: 0 | N3: 0 | O3: 0 | P3: 0 | Q3: 0 | R3: 0 | S3: 0 | T3: 0 | U3: 2 | V3: 0 | W3: 0 | X3: 0
B4: 20 | C4: 42.28571429 | D4: 18.54045035 | E4: 0.5 | F4: 0.377964473 | I4: 1 | J4: 0 | K4: 0 | L4: 0 | M4: 0 | N4: 0 | O4: 0 | P4: 0 | Q4: 13 | R4: 0 | S4: 1 | T4: 0 | U4: 1 | V4: 0 | W4: 0 | X4: 0
B5: 30 | C5: 60 | D5: 19.17836082 | E5: 0.125 | F5: 0.125 | I5: 2 | J5: 1 | K5: 0 | L5: 0 | M5: 0 | N5: 0 | O5: 0 | P5: 11 | Q5: 10 | R5: 0 | S5: 0 | T5: 0 | U5: 0 | V5: 0 | W5: 0 | X5: 0
B6: 40 | C6: 40.57142857 | D6: 20.8107769 | E6: 0.875 | F6: 0.3503824441 | I6: 3 | J6: 0 | K6: 0 | L6: 0 | M6: 0 | N6: 0 | O6: 0 | P6: 26 | Q6: 23 | R6: 0 | S6: 0 | T6: 0 | U6: 0 | V6: 0 | W6: 0 | X6: 0
B7: 50 | C7: 25.57142857 | D7: 18.46084291 | E7: 7.25 | F7: 4.731165667 | I7: 4 | J7: 0 | K7: 0 | L7: 1 | M7: 0 | N7: 0 | O7: 0 | P7: 22 | Q7: 6 | R7: 0 | S7: 0 | T7: 0 | U7: 0 | V7: 0 | W7: 0 | X7: 0
B8: 60 | C8: 57.85714286 | D8: 17.18585877 | E8: 6.25 | F8: 3.885642069 | I8: 5 | J8: 0 | K8: 0 | L8: 0 | M8: 0 | N8: 0 | O8: 0 | P8: 27 | Q8: 4 | R8: 1 | S8: 0 | T8: 0 | U8: 0 | V8: 0 | W8: 0 | X8: 0
B9: 70 | C9: 34.28571429 | D9: 12.30701365 | E9: 7.5 | F9: 4.468141192 | I9: 6 | J9: 0 | K9: 0 | L9: 0 | M9: 0 | N9: 0 | O9: 0 | P9: 9 | Q9: 10 | R9: 1 | S9: 0 | T9: 0 | U9: 0 | V9: 0 | W9: 0 | X9: 0
B10: 80 | C10: 36 | D10: 14.83400213 | E10: 1 | F10: 0.5 | I10: 7 | J10: 0 | K10: 0 | L10: 0 | M10: 0 | N10: 0 | O10: 0 | P10: 0 | Q10: 15 | R10: 0 | S10: 14 | T10: 0 | U10: 0 | V10: 12 | W10: 0 | X10: 0
B11: 90 | C11: 28.57142857 | D11: 16.79123516 | E11: 2.75 | F11: 1.114033854 | I11: 8 | J11: 0 | K11: 0 | L11: 0 | M11: 0 | N11: 0 | O11: 0 | P11: 0 | Q11: 10 | R11: 0 | S11: 0 | T11: 0 | U11: 1 | V11: 5 | W11: 0 | X11: 0
B12: 100 | C12: 39.42857143 | D12: 18.04868699 | E12: 9.75 | F12: 6.131738276 | I12: 9 | J12: 0 | K12: 0 | L12: 0 | M12: 0 | N12: 0 | O12: 0 | P12: 10 | Q12: 20 | R12: 0 | S12: 9 | T12: 0 | U12: 0 | V12: 10 | W12: 0 | X12: 3 | AA12: =J2 -> D | AB12: =K2 -> V | AC12: =L2 -> V | AD12: =M2 -> D | AE12: =N2 -> D | AF12: D | AG12: V | AH12: V | AI12: D | AJ12: V | AK12: D | AL12: D | AM12: V | AN12: V | AO12: D
B13: 110 | C13: 35.71428571 | D13: 15.55131948 | E13: 11.75 | F13: 7.396306994 | H13: avg 10 min | I13: 10 | J13: =SUM(J3:J12) -> 1 | K13: =SUM(K3:K12) -> 0 | L13: 1 | M13: 0 | N13: 0 | O13: 0 | P13: 105 | Q13: 111 | R13: 2 | S13: 24 | T13: 0 | U13: 4 | V13: 27 | W13: 0 | X13: 3 | Z13: =I13 -> 10 | AA13: =J13 -> 1 | AB13: =K13 -> 0 | AC13: =L13 -> 1 | AD13: =M13 -> 0 | AE13: =N13 -> 0 | AF13: 0 | AG13: 105 | AH13: 111 | AI13: 2 | AJ13: 24 | AK13: 0 | AL13: 4 | AM13: 27 | AN13: 0 | AO13: 3
B14: 120 | C14: 44.42857143 | D14: 15.24850835 | E14: 28.625 | F14: 9.112270965 | I14: 10 | J14: 0 | K14: 0 | L14: 0 | M14: 0 | N14: 0 | O14: 0 | P14: 21 | Q14: 24 | R14: 0 | S14: 0 | T14: 0 | U14: 0 | V14: 0 | W14: 0 | X14: 0 | Z14: =I24 -> 20 | AA14: =J24 -> 0 | AB14: =K24 -> 0 | AC14: =L24 -> 19 | AD14: =M24 -> 0 | AE14: =N24 -> 3 | AF14: 0 | AG14: 62 | AH14: 101 | AI14: 0 | AJ14: 112 | AK14: 0 | AL14: 1 | AM14: 0 | AN14: 2 | AO14: 0
B15: 130 | C15: 27.71428571 | D15: 16.27547715 | E15: 29 | F15: 7.720566226 | I15: 11 | J15: 0 | K15: 0 | L15: 0 | M15: 0 | N15: 0 | O15: 0 | P15: 7 | Q15: 10 | R15: 0 | S15: 19 | T15: 0 | U15: 0 | V15: 0 | W15: 0 | X15: 0 | Z15: =I35 -> 30 | AA15: =J35 -> 0 | AB15: =K35 -> 0 | AC15: =L35 -> 36 | AD15: =M35 -> 0 | AE15: =N35 -> 0 | AF15: 0 | AG15: 79 | AH15: 29 | AI15: 0 | AJ15: 145 | AK15: 0 | AL15: 0 | AM15: 102 | AN15: 29 | AO15: 1
B16: 140 | C16: 38.28571429 | D16: 13.66733033 | E16: 38 | F16: 15.48386257 | I16: 12 | J16: 0 | K16: 0 | L16: 0 | M16: 0 | N16: 0 | O16: 0 | P16: 0 | Q16: 25 | R16: 0 | S16: 13 | T16: 0 | U16: 0 | V16: 0 | W16: 0 | X16: 0 | Z16: =I46 -> 40 | AA16: =J46 -> 2 | AB16: =K46 -> 2 | AC16: =L46 -> 21 | AD16: =M46 -> 0 | AE16: =N46 -> 2 | AF16: 0 | AG16: 52 | AH16: 29 | AI16: 2 | AJ16: 159 | AK16: 0 | AL16: 0 | AM16: 21 | AN16: 0 | AO16: 1
B17: 150 | C17: 87.28571429 | D17: 27.88728528 | E17: 9.5 | F17: 5.554920599 | I17: 13 | J17: 0 | K17: 0 | L17: 0 | M17: 0 | N17: 0 | O17: 0 | P17: 0 | Q17: 6 | R17: 0 | S17: 17 | T17: 0 | U17: 0 | V17: 0 | W17: 0 | X17: 0 | Z17: =I57 -> 50 | AA17: =J57 -> 7 | AB17: =K57 -> 0 | AC17: =L57 -> 7 | AD17: =M57 -> 0 | AE17: =N57 -> 2 | AF17: 0 | AG17: 0 | AH17: 131 | AI17: 10 | AJ17: 0 | AK17: 39 | AL17: 0 | AM17: 0 | AN17: 41 | AO17: 0
B18: 160 | C18: 35.85714286 | D18: 15.18211443 | E18: 24.375 | F18: 18.46612487 | I18: 14 | J18: 0 | K18: 0 | L18: 0 | M18: 0 | N18: 3 | O18: 0 | P18: 0 | Q18: 2 | R18: 0 | S18: 27 | T18: 0 | U18: 0 | V18: 0 | W18: 0 | X18: 0 | Z18: =I68 -> 60 | AA18: =J68 -> 32 | AB18: =K68 -> 0 | AC18: =L68 -> 0 | AD18: =M68 -> 3 | AE18: =N68 -> 0 | AF18: 0 | AG18: 107 | AH18: 96 | AI18: 10 | AJ18: 76 | AK18: 5 | AL18: 0 | AM18: 36 | AN18: 90 | AO18: 0
B19: 170 | C19: 23 | D19: 15.11070261 | E19: 36.25 | F19: 18.1430329 | I19: 15 | J19: 0 | K19: 0 | L19: 0 | M19: 0 | N19: 0 | O19: 0 | P19: 0 | Q19: 0 | R19: 0 | S19: 27 | T19: 0 | U19: 0 | V19: 0 | W19: 0 | X19: 0 | Z19: =I79 -> 70 | AA19: =J79 -> 1 | AB19: =K79 -> 10 | AC19: =L79 -> 34 | AD19: =M79 -> 3 | AE19: =N79 -> 0 | AF19: 0 | AG19: 15 | AH19: 51 | AI19: 0 | AJ19: 98 | AK19: 3 | AL19: 18 | AM19: 30 | AN19: 2 | AO19: 35
B20: 180 | C20: 19.28571429 | D20: 12.94441282 | E20: 8 | F20: 5.140872633 | I20: 16 | J20: 0 | K20: 0 | L20: 0 | M20: 0 | N20: 0 | O20: 0 | P20: 0 | Q20: 8 | R20: 0 | S20: 9 | T20: 0 | U20: 0 | V20: 0 | W20: 0 | X20: 0 | Z20: =I90 -> 80 | AA20: =J90 -> 3 | AB20: =K90 -> 86 | AC20: =L90 -> 71 | AD20: =M90 -> 2 | AE20: =N90 -> 3 | AF20: 0 | AG20: 0 | AH20: 74 | AI20: 0 | AJ20: 0 | AK20: 0 | AL20: 0 | AM20: 1 | AN20: 20 | AO20: 0
B21: 190 | C21: 20 | D21: 10.4014651 | E21: 18.75 | F21: 11.9324737 | I21: 17 | J21: 0 | K21: 0 | L21: 0 | M21: 0 | N21: 0 | O21: 0 | P21: 0 | Q21: 0 | R21: 0 | S21: 0 | T21: 0 | U21: 1 | V21: 0 | W21: 0 | X21: 0 | Z21: =I101 -> 90 | AA21: =J101 -> 5 | AB21: =K101 -> 5 | AC21: =L101 -> 13 | AD21: =M101 -> 5 | AE21: =N101 -> 4 | AF21: 0 | AG21: 111 | AH21: 0 | AI21: 0 | AJ21: 0 | AK21: 0 | AL21: 0 | AM21: 0 | AN21: 71 | AO21: 8
B22: 200 | C22: 1.428571429 | D22: 0.947607083 | E22: 23.875 | F22: 12.97860533 | I22: 18 | J22: 0 | K22: 0 | L22: 0 | M22: 0 | N22: 0 | O22: 0 | P22: 18 | Q22: 26 | R22: 0 | S22: 0 | T22: 0 | U22: 0 | V22: 0 | W22: 0 | X22: 0 | Z22: =I112 -> 100 | AA22: =J112 -> 14 | AB22: =K112 -> 31 | AC22: =L112 -> 0 | AD22: =M112 -> 1 | AE22: =N112 -> 0 | AF22: 0 | AG22: 127 | AH22: 75 | AI22: 0 | AJ22: 43 | AK22: 13 | AL22: 0 | AM22: 0 | AN22: 0 | AO22: 50
B23: 210 | C23: 33.71428571 | D23: 15.98319696 | E23: 22.25 | F23: 10.51996401 | I23: 19 | J23: 0 | K23: 0 | L23: 19 | M23: 0 | N23: 0 | O23: 0 | P23: 16 | Q23: 0 | R23: 0 | S23: 0 | T23: 0 | U23: 0 | V23: 0 | W23: 2 | X23: 0 | Z23: =I123 -> 110 | AA23: =J123 -> 2 | AB23: =K123 -> 12 | AC23: =L123 -> 0 | AD23: =M123 -> 1 | AE23: =N123 -> 1 | AF23: 1 | AG23: 82 | AH23: 0 | AI23: 1 | AJ23: 83 | AK23: 56 | AL23: 0 | AM23: 73 | AN23: 0 | AO23: 32
B24: 220 | C24: 26.71428571 | D24: 12.61841867 | E24: 20.25 | F24: 10.98172183 | H24: avg 10 min | I24: 20 | J24: =SUM(J14:J23) -> 0 | K24: =SUM(K14:K23) -> 0 | L24: 19 | M24: 0 | N24: 3 | O24: 0 | P24: 62 | Q24: 101 | R24: 0 | S24: 112 | T24: 0 | U24: 1 | V24: 0 | W24: 2 | X24: 0 | Z24: =I134 -> 120 | AA24: =J134 -> 3 | AB24: =K134 -> 30 | AC24: =L134 -> 126 | AD24: =M134 -> 9 | AE24: =N134 -> 6 | AF24: 47 | AG24: 50 | AH24: 55 | AI24: 1 | AJ24: 21 | AK24: 57 | AL24: 54 | AM24: 29 | AN24: 0 | AO24: 52
B25: 230 | C25: 42.57142857 | D25: 22.86383831 | E25: 7.375 | F25: 4.613402448 | I25: 20 | J25: 0 | K25: 0 | L25: 1 | M25: 0 | N25: 0 | O25: 0 | P25: 36 | Q25: 11 | R25: 0 | S25: 5 | T25: 0 | U25: 0 | V25: 0 | W25: 0 | X25: 0 | Z25: =I145 -> 130 | AA25: =J145 -> 36 | AB25: =K145 -> 24 | AC25: =L145 -> 12 | AD25: =M145 -> 2 | AE25: =N145 -> 51 | AF25: 0 | AG25: 123 | AH25: 13 | AI25: 26 | AJ25: 0 | AK25: 17 | AL25: 60 | AM25: 22 | AN25: 0 | AO25: 40
B26: 240 | C26: 30.28571429 | D26: 13.73683662 | E26: 9.625 | F26: 5.328285371 | I26: 21 | J26: 0 | K26: 0 | L26: 4 | M26: 0 | N26: 0 | O26: 0 | P26: 18 | Q26: 2 | R26: 0 | S26: 0 | T26: 0 | U26: 0 | V26: 0 | W26: 16 | X26: 1 | Z26: =I156 -> 140 | AA26: =J156 -> 99 | AB26: =K156 -> 70 | AC26: =L156 -> 66 | AD26: =M156 -> 0 | AE26: =N156 -> 46 | AF26: 0 | AG26: 44 | AH26: 5 | AI26: 0 | AJ26: 0 | AK26: 94 | AL26: 65 | AM26: 0 | AN26: 83 | AO26: 0
I27: 22 | J27: 0 | K27: 0 | L27: 31 | M27: 0 | N27: 0 | O27: 0 | P27: 18 | Q27: 6 | R27: 0 | S27: 16 | T27: 0 | U27: 0 | V27: 14 | W27: 6 | X27: 0 | Z27: =I167 -> 150 | AA27: =J167 -> 5 | AB27: =K167 -> 95 | AC27: =L167 -> 144 | AD27: =M167 -> 0 | AE27: =N167 -> 30 | AF27: 0 | AG27: 197 | AH27: 120 | AI27: 0 | AJ27: 0 | AK27: 39 | AL27: 2 | AM27: 0 | AN27: 55 | AO27: 0
I28: 23 | J28: 0 | K28: 0 | L28: 0 | M28: 0 | N28: 0 | O28: 0 | P28: 0 | Q28: 3 | R28: 0 | S28: 30 | T28: 0 | U28: 0 | V28: 20 | W28: 7 | X28: 0 | Z28: =I178 -> 160 | AA28: =J178 -> 44 | AB28: =K178 -> 26 | AC28: =L178 -> 7 | AD28: =M178 -> 0 | AE28: =N178 -> 0 | AF28: 148 | AG28: 26 | AH28: 24 | AI28: 0 | AJ28: 120 | AK28: 0 | AL28: 0 | AM28: 48 | AN28: 0 | AO28: 3
I29: 24 | J29: 0 | K29: 0 | L29: 0 | M29: 0 | N29: 0 | O29: 0 | P29: 7 | Q29: 7 | R29: 0 | S29: 11 | T29: 0 | U29: 0 | V29: 25 | W29: 0 | X29: 0 | Z29: =I189 -> 170 | AA29: =J189 -> 120 | AB29: =K189 -> 0 | AC29: =L189 -> 0 | AD29: =M189 -> 96 | AE29: =N189 -> 0 | AF29: 73 | AG29: 106 | AH29: 11 | AI29: 0 | AJ29: 44 | AK29: 0 | AL29: 0 | AM29: 0 | AN29: 0 | AO29: 1
I30: 25 | J30: 0 | K30: 0 | L30: 0 | M30: 0 | N30: 0 | O30: 0 | P30: 0 | Q30: 0 | R30: 0 | S30: 10 | T30: 0 | U30: 0 | V30: 8 | W30: 0 | X30: 0 | Z30: =I200 -> 180 | AA30: =J200 -> 14 | AB30: =K200 -> 0 | AC30: =L200 -> 0 | AD30: =M200 -> 4 | AE30: =N200 -> 42 | AF30: 0 | AG30: 36 | AH30: 91 | AI30: 4 | AJ30: 0 | AK30: 0 | AL30: 0 | AM30: 0 | AN30: 8 | AO30: 0
I31: 26 | J31: 0 | K31: 0 | L31: 0 | M31: 0 | N31: 0 | O31: 0 | P31: 0 | Q31: 0 | R31: 0 | S31: 5 | T31: 0 | U31: 0 | V31: 20 | W31: 0 | X31: 0 | Z31: =I211 -> 190 | AA31: =J211 -> 61 | AB31: =K211 -> 28 | AC31: =L211 -> 0 | AD31: =M211 -> 0 | AE31: =N211 -> 84 | AF31: 1 | AG31: 68 | AH31: 0 | AI31: 2 | AJ31: 0 | AK31: 0 | AL31: 2 | AM31: 0 | AN31: 44 | AO31: 0
I32: 27 | J32: 0 | K32: 0 | L32: 0 | M32: 0 | N32: 0 | O32: 0 | P32: 0 | Q32: 0 | R32: 0 | S32: 29 | T32: 0 | U32: 0 | V32: 0 | W32: 0 | X32: 0 | Z32: =I222 -> 200 | AA32: =J222 -> 37 | AB32: =K222 -> 0 | AC32: =L222 -> 0 | AD32: =M222 -> 0 | AE32: =N222 -> 102 | AF32: 1 | AG32: 4 | AH32: 6 | AI32: 3 | AJ32: 0 | AK32: 1 | AL32: 47 | AM32: 0 | AN32: 0 | AO32: 0
I33: 28 | J33: 0 | K33: 0 | L33: 0 | M33: 0 | N33: 0 | O33: 0 | P33: 0 | Q33: 0 | R33: 0 | S33: 17 | T33: 0 | U33: 0 | V33: 15 | W33: 0 | X33: 0 | Z33: =I233 -> 210 | AA33: =J233 -> 4 | AB33: =K233 -> 81 | AC33: =L233 -> 85 | AD33: =M233 -> 69 | AE33: =N233 -> 39 | AF33: 0 | AG33: 0 | AH33: 70 | AI33: 0 | AJ33: 0 | AK33: 62 | AL33: 4 | AM33: 0 | AN33: 0 | AO33: 0
I34: 29 | J34: 0 | K34: 0 | L34: 0 | M34: 0 | N34: 0 | O34: 0 | P34: 0 | Q34: 0 | R34: 0 | S34: 22 | T34: 0 | U34: 0 | V34: 0 | W34: 0 | X34: 0 | Z34: =I244 -> 220 | AA34: =J244 -> 0 | AB34: =K244 -> 9 | AC34: =L244 -> 84 | AD34: =M244 -> 43 | AE34: =N244 -> 0 | AF34: 0 | AG34: 55 | AH34: 0 | AI34: 0 | AJ34: 0 | AK34: 36 | AL34: 0 | AM34: 39 | AN34: 0 | AO34: 83
H35: avg 10 min | I35: 30 | J35: =SUM(J25:J34) -> 0 | K35: =SUM(K25:K34) -> 0 | L35: 36 | M35: 0 | N35: 0 | O35: 0 | P35: 79 | Q35: 29 | R35: 0 | S35: 145 | T35: 0 | U35: 0 | V35: 102 | W35: 29 | X35: 1 | Z35: =I255 -> 230 | AA35: =J255 -> 1 | AB35: =K255 -> 19 | AC35: =L255 -> 0 | AD35: =M255 -> 28 | AE35: =N255 -> 1 | AF35: 0 | AG35: 159 | AH35: 0 | AI35: 0 | AJ35: 0 | AK35: 0 | AL35: 0 | AM35: 90 | AN35: 30 | AO35: 29
I36: 0 | J36: 0 | K36: 0 | L36: 0 | M36: 0 | N36: 0 | O36: 0 | P36: 0 | Q36: 0 | R36: 2 | S36: 49 | T36: 0 | U36: 0 | V36: 0 | W36: 0 | X36: 0 | Z36: =I266 -> 240 | AA36: =J266 -> 37 | AB36: =K266 -> 80 | AC36: =L266 -> 0 | AD36: =M266 -> 29 | AE36: =N266 -> 11 | AF36: 0 | AG36: 56 | AH36: 0 | AI36: 0 | AJ36: 0 | AK36: 0 | AL36: 0 | AM36: 7 | AN36: 69 | AO36: 0
I37: 1 | J37: 1 | K37: 0 | L37: 0 | M37: 0 | N37: 1 | O37: 0 | P37: 0 | Q37: 0 | R37: 0 | S37: 23 | T37: 0 | U37: 0 | V37: 7 | W37: 0 | X37: 0
I38: 2 | J38: 1 | K38: 0 | L38: 0 | M38: 0 | N38: 1 | O38: 0 | P38: 0 | Q38: 0 | R38: 0 | S38: 11 | T38: 0 | U38: 0 | V38: 14 | W38: 0 | X38: 1
I39: 3 | J39: 0 | K39: 0 | L39: 0 | M39: 0 | N39: 0 | O39: 0 | P39: 0 | Q39: 2 | R39: 0 | S39: 0 | T39: 0 | U39: 0 | V39: 0 | W39: 0 | X39: 0
I40: 4 | J40: 0 | K40: 0 | L40: 0 | M40: 0 | N40: 0 | O40: 0 | P40: 0 | Q40: 20 | R40: 0 | S40: 14 | T40: 0 | U40: 0 | V40: 0 | W40: 0 | X40: 0
I41: 5 | J41: 0 | K41: 0 | L41: 0 | M41: 0 | N41: 0 | O41: 0 | P41: 0 | Q41: 0 | R41: 0 | S41: 13 | T41: 0 | U41: 0 | V41: 0 | W41: 0 | X41: 0
I42: 6 | J42: 0 | K42: 0 | L42: 0 | M42: 0 | N42: 0 | O42: 0 | P42: 21 | Q42: 0 | R42: 0 | S42: 4 | T42: 0 | U42: 0 | V42: 0 | W42: 0 | X42: 0
I43: 7 | J43: 0 | K43: 0 | L43: 0 | M43: 0 | N43: 0 | O43: 0 | P43: 21 | Q43: 0 | R43: 0 | S43: 22 | T43: 0 | U43: 0 | V43: 0 | W43: 0 | X43: 0
I44: 8 | J44: 0 | K44: 2 | L44: 21 | M44: 0 | N44: 0 | O44: 0 | P44: 10 | Q44: 7 | R44: 0 | S44: 11 | T44: 0 | U44: 0 | V44: 0 | W44: 0 | X44: 0
I45: 9 | J45: 0 | K45: 0 | L45: 0 | M45: 0 | N45: 0 | O45: 0 | P45: 0 | Q45: 0 | R45: 0 | S45: 12 | T45: 0 | U45: 0 | V45: 0 | W45: 0 | X45: 0
H46: avg 10 min | I46: 40 | J46: =SUM(J36:J45) -> 2 | K46: 2 | L46: 21 | M46: 0 | N46: 2 | O46: 0 | P46: 52 | Q46: 29 | R46: 2 | S46: 159 | T46: 0 | U46: 0 | V46: 21 | W46: 0 | X46: 1
I47: 10 | J47: 1 | K47: 0 | L47: 0 | M47: 0 | N47: 0 | O47: 0 | P47: 0 | Q47: 0 | R47: 0 | S47: 0 | T47: 0 | U47: 0 | V47: 0 | W47: 0 | X47: 0
I48: 11 | J48: 0 | K48: 0 | L48: 7 | M48: 0 | N48: 0 | O48: 0 | P48: 0 | Q48: 19 | R48: 0 | S48: 0 | T48: 2 | U48: 0 | V48: 0 | W48: 0 | X48: 0
I49: 12 | J49: 0 | K49: 0 | L49: 0 | M49: 0 | N49: 0 | O49: 0 | P49: 0 | Q49: 18 | R49: 0 | S49: 0 | T49: 0 | U49: 0 | V49: 0 | W49: 0 | X49: 0
I50: 13 | J50: 0 | K50: 0 | L50: 0 | M50: 0 | N50: 0 | O50: 0 | P50: 0 | Q50: 0 | R50: 0 | S50: 0 | T50: 1 | U50: 0 | V50: 0 | W50: 0 | X50: 0
I51: 14 | J51: 0 | K51: 0 | L51: 0 | M51: 0 | N51: 0 | O51: 0 | P51: 0 | Q51: 8 | R51: 0 | S51: 0 | T51: 9 | U51: 0 | V51: 0 | W51: 0 | X51: 0
I52: 15 | J52: 0 | K52: 0 | L52: 0 | M52: 0 | N52: 2 | O52: 0 | P52: 0 | Q52: 15 | R52: 0 | S52: 0 | T52: 8 | U52: 0 | V52: 0 | W52: 0 | X52: 0
I53: 16 | J53: 1 | K53: 0 | L53: 0 | M53: 0 | N53: 0 | O53: 0 | P53: 0 | Q53: 22 | R53: 0 | S53: 0 | T53: 13 | U53: 0 | V53: 0 | W53: 0 | X53: 0
I54: 17 | J54: 0 | K54: 0 | L54: 0 | M54: 0 | N54: 0 | O54: 0 | P54: 0 | Q54: 19 | R54: 0 | S54: 0 | T54: 6 | U54: 0 | V54: 0 | W54: 20 | X54: 0
I55: 18 | J55: 1 | K55: 0 | L55: 0 | M55: 0 | N55: 0 | O55: 0 | P55: 0 | Q55: 9 | R55: 0 | S55: 0 | T55: 0 | U55: 0 | V55: 0 | W55: 0 | X55: 0
I56: 19 | J56: 4 | K56: 0 | L56: 0 | M56: 0 | N56: 0 | O56: 0 | P56: 0 | Q56: 21 | R56: 10 | S56: 0 | T56: 0 | U56: 0 | V56: 0 | W56: 21 | X56: 0
H57: avg 10 min | I57: 50 | J57: =SUM(J47:J56) -> 7 | K57: =SUM(K47:K56) -> 0 | L57: 7 | M57: 0 | N57: 2 | O57: 0 | P57: 0 | Q57: 131 | R57: 10 | S57: 0 | T57: 39 | U57: 0 | V57: 0 | W57: 41 | X57: 0
I58: 20 | J58: 0 | K58: 0 | L58: 0 | M58: 0 | N58: 0 | O58: 0 | P58: 0 | Q58: 7 | R58: 9 | S58: 0 | T58: 0 | U58: 0 | V58: 0 | W58: 28 | X58: 0
I59: 21 | J59: 0 | K59: 0 | L59: 0 | M59: 0 | N59: 0 | O59: 0 | P59: 15 | Q59: 11 | R59: 0 | S59: 1 | T59: 0 | U59: 0 | V59: 0 | W59: 24 | X59: 0
I60: 22 | J60: 4 | K60: 0 | L60: 0 | M60: 0 | N60: 0 | O60: 0 | P60: 0 | Q60: 2 | R60: 0 | S60: 15 | T60: 0 | U60: 0 | V60: 0 | W60: 4 | X60: 0
I61: 23 | J61: 12 | K61: 0 | L61: 0 | M61: 3 | N61: 0 | O61: 0 | P61: 36 | Q61: 22 | R61: 1 | S61: 2 | T61: 0 | U61: 0 | V61: 0 | W61: 18 | X61: 0
I62: 24 | J62: 0 | K62: 0 | L62: 0 | M62: 0 | N62: 0 | O62: 0 | P62: 26 | Q62: 19 | R62: 0 | S62: 34 | T62: 1 | U62: 0 | V62: 12 | W62: 1 | X62: 0
I63: 25 | J63: 1 | K63: 0 | L63: 0 | M63: 0 | N63: 0 | O63: 0 | P63: 10 | Q63: 17 | R63: 0 | S63: 12 | T63: 4 | U63: 0 | V63: 4 | W63: 0 | X63: 0
I64: 26 | J64: 14 | K64: 0 | L64: 0 | M64: 0 | N64: 0 | O64: 0 | P64: 20 | Q64: 0 | R64: 0 | S64: 8 | T64: 0 | U64: 0 | V64: 10 | W64: 3 | X64: 0
I65: 27 | J65: 1 | K65: 0 | L65: 0 | M65: 0 | N65: 0 | O65: 0 | P65: 0 | Q65: 11 | R65: 0 | S65: 4 | T65: 0 | U65: 0 | V65: 1 | W65: 6 | X65: 0
I66: 28 | J66: 0 | K66: 0 | L66: 0 | M66: 0 | N66: 0 | O66: 0 | P66: 0 | Q66: 5 | R66: 0 | S66: 0 | T66: 0 | U66: 0 | V66: 0 | W66: 6 | X66: 0
I67: 29 | J67: 0 | K67: 0 | L67: 0 | M67: 0 | N67: 0 | O67: 0 | P67: 0 | Q67: 2 | R67: 0 | S67: 0 | T67: 0 | U67: 0 | V67: 9 | W67: 0 | X67: 0
H68: avg 10 min | I68: 60 | J68: =SUM(J58:J67) -> 32 | K68: =SUM(K58:K67) -> 0 | L68: 0 | M68: 3 | N68: 0 | O68: 0 | P68: 107 | Q68: 96 | R68: 10 | S68: 76 | T68: 5 | U68: 0 | V68: 36 | W68: 90 | X68: 0
I69: 0 | J69: 0 | K69: 0 | L69: 0 | M69: 0 | N69: 0 | O69: 0 | P69: 3 | Q69: 12 | R69: 0 | S69: 9 | T69: 0 | U69: 0 | V69: 11 | W69: 2 | X69: 0
I70: 1 | J70: 0 | K70: 0 | L70: 0 | M70: 0 | N70: 0 | O70: 0 | P70: 2 | Q70: 12 | R70: 0 | S70: 1 | T70: 3 | U70: 0 | V70: 3 | W70: 0 | X70: 7
I71: 2 | J71: 1 | K71: 0 | L71: 0 | M71: 0 | N71: 0 | O71: 0 | P71: 10 | Q71: 5 | R71: 0 | S71: 0 | T71: 0 | U71: 0 | V71: 0 | W71: 0 | X71: 10
I72: 3 | J72: 0 | K72: 0 | L72: 0 | M72: 0 | N72: 0 | O72: 0 | P72: 0 | Q72: 3 | R72: 0 | S72: 17 | T72: 0 | U72: 0 | V72: 7 | W72: 0 | X72: 17
I73: 4 | J73: 0 | K73: 0 | L73: 4 | M73: 0 | N73: 0 | O73: 0 | P73: 0 | Q73: 0 | R73: 0 | S73: 24 | T73: 0 | U73: 0 | V73: 0 | W73: 0 | X73: 1
I74: 5 | J74: 0 | K74: 0 | L74: 0 | M74: 0 | N74: 0 | O74: 0 | P74: 0 | Q74: 10 | R74: 0 | S74: 27 | T74: 0 | U74: 10 | V74: 1 | W74: 0 | X74: 0
I75: 6 | J75: 0 | K75: 0 | L75: 0 | M75: 3 | N75: 0 | O75: 0 | P75: 0 | Q75: 6 | R75: 0 | S75: 18 | T75: 0 | U75: 7 | V75: 2 | W75: 0 | X75: 0
I76: 7 | J76: 0 | K76: 0 | L76: 0 | M76: 0 | N76: 0 | O76: 0 | P76: 0 | Q76: 0 | R76: 0 | S76: 0 | T76: 0 | U76: 1 | V76: 0 | W76: 0 | X76: 0
I77: 8 | J77: 0 | K77: 7 | L77: 14 | M77: 0 | N77: 0 | O77: 0 | P77: 0 | Q77: 0 | R77: 0 | S77: 2 | T77: 0 | U77: 0 | V77: 6 | W77: 0 | X77: 0
I78: 9 | J78: 0 | K78: 3 | L78: 16 | M78: 0 | N78: 0 | O78: 0 | P78: 0 | Q78: 3 | R78: 0 | S78: 0 | T78: 0 | U78: 0 | V78: 0 | W78: 0 | X78: 0
H79: avg 10 min | I79: 70 | J79: =SUM(J69:J78) -> 1 | K79: 10 | L79: 34 | M79: 3 | N79: 0 | O79: 0 | P79: 15 | Q79: 51 | R79: 0 | S79: 98 | T79: 3 | U79: 18 | V79: 30 | W79: 2 | X79: 35
I80: 10 | J80: 0 | K80: 32 | L80: 20 | M80: 0 | N80: 0 | O80: 0 | P80: 0 | Q80: 5 | R80: 0 | S80: 0 | T80: 0 | U80: 0 | V80: 0 | W80: 0 | X80: 0
I81: 11 | J81: 0 | K81: 5 | L81: 14 | M81: 0 | N81: 0 | O81: 0 | P81: 0 | Q81: 0 | R81: 0 | S81: 0 | T81: 0 | U81: 0 | V81: 1 | W81: 0 | X81: 0
I82: 12 | J82: 0 | K82: 0 | L82: 0 | M82: 0 | N82: 0 | O82: 0 | P82: 0 | Q82: 0 | R82: 0 | S82: 0 | T82: 0 | U82: 0 | V82: 0 | W82: 0 | X82: 0
I83: 13 | J83: 0 | K83: 0 | L83: 0 | M83: 0 | N83: 0 | O83: 0 | P83: 0 | Q83: 0 | R83: 0 | S83: 0 | T83: 0 | U83: 0 | V83: 0 | W83: 0 | X83: 0
I84: 14 | J84: 0 | K84: 0 | L84: 0 | M84: 0 | N84: 2 | O84: 0 | P84: 0 | Q84: 16 | R84: 0 | S84: 0 | T84: 0 | U84: 0 | V84: 0 | W84: 0 | X84: 0
I85: 15 | J85: 0 | K85: 18 | L85: 7 | M85: 0 | N85: 0 | O85: 0 | P85: 0 | Q85: 14 | R85: 0 | S85: 0 | T85: 0 | U85: 0 | V85: 0 | W85: 0 | X85: 0
I86: 16 | J86: 3 | K86: 26 | L86: 3 | M86: 1 | N86: 1 | O86: 0 | P86: 0 | Q86: 17 | R86: 0 | S86: 0 | T86: 0 | U86: 0 | V86: 0 | W86: 0 | X86: 0
I87: 17 | J87: 0 | K87: 5 | L87: 7 | M87: 0 | N87: 0 | O87: 0 | P87: 0 | Q87: 12 | R87: 0 | S87: 0 | T87: 0 | U87: 0 | V87: 0 | W87: 0 | X87: 0
I88: 18 | J88: 0 | K88: 0 | L88: 0 | M88: 1 | N88: 0 | O88: 0 | P88: 0 | Q88: 10 | R88: 0 | S88: 0 | T88: 0 | U88: 0 | V88: 0 | W88: 0 | X88: 0
I89: 19 | J89: 0 | K89: 0 | L89: 20 | M89: 0 | N89: 0 | O89: 0 | P89: 0 | Q89: 0 | R89: 0 | S89: 0 | T89: 0 | U89: 0 | V89: 0 | W89: 20 | X89: 0
H90: avg 10 min | I90: 80 | J90: =SUM(J80:J89) -> 3 | K90: =SUM(K80:K89) -> 86 | L90: 71 | M90: 2 | N90: 3 | O90: 0 | P90: 0 | Q90: 74 | R90: 0 | S90: 0 | T90: 0 | U90: 0 | V90: 1 | W90: 20 | X90: 0
I91: 20 | J91: 3 | K91: 0 | L91: 13 | M91: 0 | N91: 0 | O91: 0 | P91: 0 | Q91: 0 | R91: 0 | S91: 0 | T91: 0 | U91: 0 | V91: 0 | W91: 11 | X91: 0
I92: 21 | J92: 0 | K92: 0 | L92: 0 | M92: 0 | N92: 0 | O92: 0 | P92: 0 | Q92: 0 | R92: 0 | S92: 0 | T92: 0 | U92: 0 | V92: 0 | W92: 11 | X92: 0
I93: 22 | J93: 0 | K93: 0 | L93: 0 | M93: 0 | N93: 0 | O93: 0 | P93: 0 | Q93: 0 | R93: 0 | S93: 0 | T93: 0 | U93: 0 | V93: 0 | W93: 4 | X93: 0
I94: 23 | J94: 0 | K94: 0 | L94: 0 | M94: 5 | N94: 0 | O94: 0 | P94: 0 | Q94: 0 | R94: 0 | S94: 0 | T94: 0 | U94: 0 | V94: 0 | W94: 30 | X94: 0
I95: 24 | J95: 0 | K95: 1 | L95: 0 | M95: 0 | N95: 0 | O95: 0 | P95: 0 | Q95: 0 | R95: 0 | S95: 0 | T95: 0 | U95: 0 | V95: 0 | W95: 15 | X95: 0
I96: 25 | J96: 0 | K96: 0 | L96: 0 | M96: 0 | N96: 1 | O96: 0 | P96: 9 | Q96: 0 | R96: 0 | S96: 0 | T96: 0 | U96: 0 | V96: 0 | W96: 0 | X96: 3
I97: 26 | J97: 1 | K97: 0 | L97: 0 | M97: 0 | N97: 3 | O97: 0 | P97: 32 | Q97: 0 | R97: 0 | S97: 0 | T97: 0 | U97: 0 | V97: 0 | W97: 0 | X97: 3
I98: 27 | J98: 1 | K98: 0 | L98: 0 | M98: 0 | N98: 0 | O98: 0 | P98: 24 | Q98: 0 | R98: 0 | S98: 0 | T98: 0 | U98: 0 | V98: 0 | W98: 0 | X98: 0
I99: 28 | J99: 0 | K99: 0 | L99: 0 | M99: 0 | N99: 0 | O99: 0 | P99: 24 | Q99: 0 | R99: 0 | S99: 0 | T99: 0 | U99: 0 | V99: 0 | W99: 0 | X99: 1
I100: 29 | J100: 0 | K100: 4 | L100: 0 | M100: 0 | N100: 0 | O100: 0 | P100: 22 | Q100: 0 | R100: 0 | S100: 0 | T100: 0 | U100: 0 | V100: 0 | W100: 0 | X100: 1
H101: avg 10 min | I101: 90 | J101: =SUM(J91:J100) -> 5 | K101: =SUM(K91:K100) -> 5 | L101: 13 | M101: 5 | N101: 4 | O101: 0 | P101: 111 | Q101: 0 | R101: 0 | S101: 0 | T101: 0 | U101: 0 | V101: 0 | W101: 71 | X101: 8
I102: 0 | J102: 0 | K102: 28 | L102: 0 | M102: 0 | N102: 0 | O102: 0 | P102: 24 | Q102: 17 | R102: 0 | S102: 0 | T102: 0 | U102: 0 | V102: 0 | W102: 0 | X102: 2
I103: 1 | J103: 0 | K103: 0 | L103: 0 | M103: 0 | N103: 0 | O103: 0 | P103: 1 | Q103: 2 | R103: 0 | S103: 0 | T103: 0 | U103: 0 | V103: 0 | W103: 0 | X103: 0
I104: 2 | J104: 2 | K104: 1 | L104: 0 | M104: 0 | N104: 0 | O104: 0 | P104: 0 | Q104: 15 | R104: 0 | S104: 0 | T104: 0 | U104: 0 | V104: 0 | W104: 0 | X104: 6
I105: 3 | J105: 2 | K105: 0 | L105: 0 | M105: 1 | N105: 0 | O105: 0 | P105: 15 | Q105: 11 | R105: 0 | S105: 0 | T105: 0 | U105: 0 | V105: 0 | W105: 0 | X105: 14
I106: 4 | J106: 1 | K106: 0 | L106: 0 | M106: 0 | N106: 0 | O106: 0 | P106: 0 | Q106: 10 | R106: 0 | S106: 0 | T106: 0 | U106: 0 | V106: 0 | W106: 0 | X106: 14
I107: 5 | J107: 4 | K107: 0 | L107: 0 | M107: 0 | N107: 0 | O107: 0 | P107: 0 | Q107: 5 | R107: 0 | S107: 1 | T107: 0 | U107: 0 | V107: 0 | W107: 0 | X107: 3
I108: 6 | J108: 3 | K108: 0 | L108: 0 | M108: 0 | N108: 0 | O108: 0 | P108: 14 | Q108: 15 | R108: 0 | S108: 26 | T108: 0 | U108: 0 | V108: 0 | W108: 0 | X108: 7
I109: 7 | J109: 0 | K109: 0 | L109: 0 | M109: 0 | N109: 0 | O109: 0 | P109: 28 | Q109: 0 | R109: 0 | S109: 9 | T109: 10 | U109: 0 | V109: 0 | W109: 0 | X109: 0
I110: 8 | J110: 0 | K110: 2 | L110: 0 | M110: 0 | N110: 0 | O110: 0 | P110: 33 | Q110: 0 | R110: 0 | S110: 4 | T110: 3 | U110: 0 | V110: 0 | W110: 0 | X110: 4
I111: 9 | J111: 2 | K111: 0 | L111: 0 | M111: 0 | N111: 0 | O111: 0 | P111: 12 | Q111: 0 | R111: 0 | S111: 3 | T111: 0 | U111: 0 | V111: 0 | W111: 0 | X111: 0
H112: avg 10 min | I112: 100 | J112: =SUM(J102:J111) -> 14 | K112: 31 | L112: 0 | M112: 1 | N112: 0 | O112: 0 | P112: 127 | Q112: 75 | R112: 0 | S112: 43 | T112: 13 | U112: 0 | V112: 0 | W112: 0 | X112: 50
I113: 10 | J113: 0 | K113: 1 | L113: 0 | M113: 0 | N113: 0 | O113: 0 | P113: 30 | Q113: 0 | R113: 0 | S113: 19 | T113: 8 | U113: 0 | V113: 0 | W113: 0 | X113: 3
I114: 11 | J114: 1 | K114: 0 | L114: 0 | M114: 1 | N114: 0 | O114: 0 | P114: 19 | Q114: 0 | R114: 1 | S114: 27 | T114: 3 | U114: 0 | V114: 0 | W114: 0 | X114: 11
I115: 12 | J115: 0 | K115: 0 | L115: 0 | M115: 0 | N115: 0 | O115: 0 | P115: 6 | Q115: 0 | R115: 0 | S115: 2 | T115: 22 | U115: 0 | V115: 0 | W115: 0 | X115: 11
I116: 13 | J116: 0 | K116: 0 | L116: 0 | M116: 0 | N116: 1 | O116: 0 | P116: 20 | Q116: 0 | R116: 0 | S116: 9 | T116: 10 | U116: 0 | V116: 14 | W116: 0 | X116: 3
I117: 14 | J117: 0 | K117: 0 | L117: 0 | M117: 0 | N117: 0 | O117: 0 | P117: 6 | Q117: 0 | R117: 0 | S117: 9 | T117: 1 | U117: 0 | V117: 5 | W117: 0 | X117: 0
I118: 15 | J118: 0 | K118: 0 | L118: 0 | M118: 0 | N118: 0 | O118: 0 | P118: 1 | Q118: 0 | R118: 0 | S118: 9 | T118: 0 | U118: 0 | V118: 2 | W118: 0 | X118: 2
I119: 16 | J119: 0 | K119: 0 | L119: 0 | M119: 0 | N119: 0 | O119: 0 | P119: 0 | Q119: 0 | R119: 0 | S119: 0 | T119: 0 | U119: 0 | V119: 16 | W119: 0 | X119: 0
I120: 17 | J120: 0 | K120: 0 | L120: 0 | M120: 0 | N120: 0 | O120: 0 | P120: 0 | Q120: 0 | R120: 0 | S120: 8 | T120: 0 | U120: 0 | V120: 6 | W120: 0 | X120: 2
I121: 18 | J121: 1 | K121: 0 | L121: 0 | M121: 0 | N121: 0 | O121: 1 | P121: 0 | Q121: 0 | R121: 0 | S121: 0 | T121: 12 | U121: 0 | V121: 15 | W121: 0 | X121: 0
I122: 19 | J122: 0 | K122: 11 | L122: 0 | M122: 0 | N122: 0 | O122: 0 | P122: 0 | Q122: 0 | R122: 0 | S122: 0 | T122: 0 | U122: 0 | V122: 15 | W122: 0 | X122: 0
H123: avg 10 min | I123: 110 | J123: =SUM(J113:J122) -> 2 | K123: =SUM(K113:K122) -> 12 | L123: 0 | M123: 1 | N123: 1 | O123: 1 | P123: 82 | Q123: 0 | R123: 1 | S123: 83 | T123: 56 | U123: 0 | V123: 73 | W123: 0 | X123: 32
I124: 20 | J124: 0 | K124: 15 | L124: 11 | M124: 0 | N124: 0 | O124: 7 | P124: 0 | Q124: 0 | R124: 0 | S124: 21 | T124: 1 | U124: 2 | V124: 3 | W124: 0 | X124: 0
I125: 21 | J125: 0 | K125: 5 | L125: 12 | M125: 0 | N125: 0 | O125: 8 | P125: 0 | Q125: 0 | R125: 0 | S125: 0 | T125: 1 | U125: 0 | V125: 0 | W125: 0 | X125: 0
I126: 22 | J126: 0 | K126: 2 | L126: 12 | M126: 0 | N126: 0 | O126: 21 | P126: 0 | Q126: 7 | R126: 1 | S126: 0 | T126: 0 | U126: 0 | V126: 0 | W126: 0 | X126: 1
I127: 23 | J127: 0 | K127: 8 | L127: 33 | M127: 0 | N127: 0 | O127: 11 | P127: 0 | Q127: 0 | R127: 0 | S127: 0 | T127: 7 | U127: 9 | V127: 0 | W127: 0 | X127: 0
I128: 24 | J128: 0 | K128: 0 | L128: 0 | M128: 0 | N128: 0 | O128: 0 | P128: 0 | Q128: 13 | R128: 0 | S128: 0 | T128: 2 | U128: 14 | V128: 2 | W128: 0 | X128: 0
I129: 25 | J129: 0 | K129: 0 | L129: 8 | M129: 0 | N129: 0 | O129: 0 | P129: 13 | Q129: 23 | R129: 0 | S129: 0 | T129: 2 | U129: 10 | V129: 0 | W129: 0 | X129: 6
I130: 26 | J130: 1 | K130: 0 | L130: 11 | M130: 0 | N130: 1 | O130: 0 | P130: 0 | Q130: 6 | R130: 0 | S130: 0 | T130: 11 | U130: 0 | V130: 1 | W130: 0 | X130: 10
I131: 27 | J131: 1 | K131: 0 | L131: 0 | M131: 0 | N131: 3 | O131: 0 | P131: 15 | Q131: 0 | R131: 0 | S131: 0 | T131: 6 | U131: 7 | V131: 9 | W131: 0 | X131: 16
I132: 28 | J132: 0 | K132: 0 | L132: 11 | M132: 0 | N132: 2 | O132: 0 | P132: 21 | Q132: 0 | R132: 0 | S132: 0 | T132: 7 | U132: 6 | V132: 8 | W132: 0 | X132: 12
I133: 29 | J133: 1 | K133: 0 | L133: 28 | M133: 9 | N133: 0 | O133: 0 | P133: 1 | Q133: 6 | R133: 0 | S133: 0 | T133: 20 | U133: 6 | V133: 6 | W133: 0 | X133: 7
H134: avg 10 min | I134: 120 | J134: =SUM(J124:J133) -> 3 | K134: =SUM(K124:K133) -> 30 | L134: 126 | M134: 9 | N134: 6 | O134: 47 | P134: 50 | Q134: 55 | R134: 1 | S134: 21 | T134: 57 | U134: 54 | V134: 29 | W134: 0 | X134: 52
I135: 0 | J135: 1 | K135: 0 | L135: 10 | M135: 2 | N135: 5 | O135: 0 | P135: 0 | Q135: 0 | R135: 0 | S135: 0 | T135: 5 | U135: 1 | V135: 18 | W135: 0 | X135: 17
I136: 1 | J136: 2 | K136: 0 | L136: 2 | M136: 0 | N136: 22 | O136: 0 | P136: 7 | Q136: 0 | R136: 0 | S136: 0 | T136: 0 | U136: 0 | V136: 0 | W136: 0 | X136: 1
I137: 2 | J137: 0 | K137: 0 | L137: 0 | M137: 0 | N137: 3 | O137: 0 | P137: 13 | Q137: 0 | R137: 0 | S137: 0 | T137: 0 | U137: 0 | V137: 0 | W137: 0 | X137: 12
I138: 3 | J138: 0 | K138: 0 | L138: 0 | M138: 0 | N138: 0 | O138: 0 | P138: 22 | Q138: 1 | R138: 0 | S138: 0 | T138: 0 | U138: 0 | V138: 2 | W138: 0 | X138: 6
I139: 4 | J139: 16 | K139: 0 | L139: 0 | M139: 0 | N139: 0 | O139: 0 | P139: 15 | Q139: 0 | R139: 0 | S139: 0 | T139: 0 | U139: 19 | V139: 2 | W139: 0 | X139: 4
I140: 5 | J140: 13 | K140: 0 | L140: 0 | M140: 0 | N140: 0 | O140: 0 | P140: 15 | Q140: 12 | R140: 0 | S140: 0 | T140: 0 | U140: 11 | V140: 0 | W140: 0 | X140: 0
I141: 6 | J141: 0 | K141: 0 | L141: 0 | M141: 0 | N141: 0 | O141: 0 | P141: 17 | Q141: 0 | R141: 8 | S141: 0 | T141: 0 | U141: 12 | V141: 0 | W141: 0 | X141: 0
I142: 7 | J142: 1 | K142: 1 | L142: 0 | M142: 0 | N142: 0 | O142: 0 | P142: 10 | Q142: 0 | R142: 7 | S142: 0 | T142: 0 | U142: 0 | V142: 0 | W142: 0 | X142: 0
I143: 8 | J143: 3 | K143: 23 | L143: 0 | M143: 0 | N143: 8 | O143: 0 | P143: 16 | Q143: 0 | R143: 11 | S143: 0 | T143: 4 | U143: 8 | V143: 0 | W143: 0 | X143: 0
I144: 9 | J144: 0 | K144: 0 | L144: 0 | M144: 0 | N144: 13 | O144: 0 | P144: 8 | Q144: 0 | R144: 0 | S144: 0 | T144: 8 | U144: 9 | V144: 0 | W144: 0 | X144: 0
H145: avg 10 min | I145: 130 | J145: =SUM(J135:J144) -> 36 | K145: 24 | L145: 12 | M145: 2 | N145: 51 | O145: 0 | P145: 123 | Q145: 13 | R145: 26 | S145: 0 | T145: 17 | U145: 60 | V145: 22 | W145: 0 | X145: 40
I146: 10 | J146: 13 | K146: 0 | L146: 0 | M146: 0 | N146: 11 | O146: 0 | P146: 5 | Q146: 0 | R146: 0 | S146: 0 | T146: 4 | U146: 20 | V146: 0 | W146: 0 | X146: 0
I147: 11 | J147: 19 | K147: 0 | L147: 0 | M147: 0 | N147: 4 | O147: 0 | P147: 9 | Q147: 0 | R147: 0 | S147: 0 | T147: 3 | U147: 22 | V147: 0 | W147: 0 | X147: 0
I148: 12 | J148: 11 | K148: 0 | L148: 0 | M148: 0 | N148: 2 | O148: 0 | P148: 0 | Q148: 0 | R148: 0 | S148: 0 | T148: 4 | U148: 9 | V148: 0 | W148: 0 | X148: 0
I149: 13 | J149: 16 | K149: 5 | L149: 6 | M149: 0 | N149: 2 | O149: 0 | P149: 0 | Q149: 0 | R149: 0 | S149: 0 | T149: 0 | U149: 14 | V149: 0 | W149: 0 | X149: 0
I150: 14 | J150: 4 | K150: 0 | L150: 22 | M150: 0 | N150: 0 | O150: 0 | P150: 0 | Q150: 0 | R150: 0 | S150: 0 | T150: 14 | U150: 0 | V150: 0 | W150: 19 | X150: 0
I151: 15 | J151: 13 | K151: 13 | L151: 11 | M151: 0 | N151: 0 | O151: 0 | P151: 0 | Q151: 0 | R151: 0 | S151: 0 | T151: 11 | U151: 0 | V151: 0 | W151: 8 | X151: 0
I152: 16 | J152: 10 | K152: 20 | L152: 0 | M152: 0 | N152: 0 | O152: 0 | P152: 0 | Q152: 0 | R152: 0 | S152: 0 | T152: 17 | U152: 0 | V152: 0 | W152: 0 | X152: 0
I153: 17 | J153: 13 | K153: 13 | L153: 0 | M153: 0 | N153: 0 | O153: 0 | P153: 0 | Q153: 0 | R153: 0 | S153: 0 | T153: 22 | U153: 0 | V153: 0 | W153: 28 | X153: 0
I154: 18 | J154: 0 | K154: 19 | L154: 0 | M154: 0 | N154: 5 | O154: 0 | P154: 0 | Q154: 0 | R154: 0 | S154: 0 | T154: 1 | U154: 0 | V154: 0 | W154: 11 | X154: 0
I155: 19 | J155: 0 | K155: 0 | L155: 27 | M155: 0 | N155: 22 | O155: 0 | P155: 30 | Q155: 5 | R155: 0 | S155: 0 | T155: 18 | U155: 0 | V155: 0 | W155: 17 | X155: 0
H156: avg 10 min | I156: 140 | J156: =SUM(J146:J155) -> 99 | K156: =SUM(K146:K155) -> 70 | L156: 66 | M156: 0 | N156: 46 | O156: 0 | P156: 44 | Q156: 5 | R156: 0 | S156: 0 | T156: 94 | U156: 65 | V156: 0 | W156: 83 | X156: 0
I157: 20 | J157: 1 | K157: 2 | L157: 4 | M157: 0 | N157: 13 | O157: 0 | P157: 7 | Q157: 0 | R157: 0 | S157: 0 | T157: 10 | U157: 0 | V157: 0 | W157: 3 | X157: 0
I158: 21 | J158: 1 | K158: 0 | L158: 13 | M158: 0 | N158: 1 | O158: 0 | P158: 24 | Q158: 5 | R158: 0 | S158: 0 | T158: 13 | U158: 0 | V158: 0 | W158: 0 | X158: 0
I159: 22 | J159: 3 | K159: 0 | L159: 17 | M159: 0 | N159: 8 | O159: 0 | P159: 33 | Q159: 14 | R159: 0 | S159: 0 | T159: 15 | U159: 0 | V159: 0 | W159: 13 | X159: 0
I160: 23 | J160: 0 | K160: 0 | L160: 0 | M160: 0 | N160: 4 | O160: 0 | P160: 37 | Q160: 0 | R160: 0 | S160: 0 | T160: 1 | U160: 0 | V160: 0 | W160: 26 | X160: 0
I161: 24 | J161: 0 | K161: 23 | L161: 9 | M161: 0 | N161: 3 | O161: 0 | P161: 22 | Q161: 13 | R161: 0 | S161: 0 | T161: 0 | U161: 0 | V161: 0 | W161: 2 | X161: 0
I162: 25 | J162: 0 | K162: 9 | L162: 10 | M162: 0 | N162: 0 | O162: 0 | P162: 16 | Q162: 20 | R162: 0 | S162: 0 | T162: 0 | U162: 0 | V162: 0 | W162: 0 | X162: 0
I163: 26 | J163: 0 | K163: 0 | L163: 31 | M163: 0 | N163: 1 | O163: 0 | P163: 24 | Q163: 13 | R163: 0 | S163: 0 | T163: 0 | U163: 0 | V163: 0 | W163: 0 | X163: 0
I164: 27 | J164: 0 | K164: 7 | L164: 18 | M164: 0 | N164: 0 | O164: 0 | P164: 6 | Q164: 10 | R164: 0 | S164: 0 | T164: 0 | U164: 0 | V164: 0 | W164: 11 | X164: 0
I165: 28 | J165: 0 | K165: 36 | L165: 21 | M165: 0 | N165: 0 | O165: 0 | P165: 25 | Q165: 11 | R165: 0 | S165: 0 | T165: 0 | U165: 2 | V165: 0 | W165: 0 | X165: 0
I166: 29 | J166: 0 | K166: 18 | L166: 21 | M166: 0 | N166: 0 | O166: 0 | P166: 3 | Q166: 34 | R166: 0 | S166: 0 | T166: 0 | U166: 0 | V166: 0 | W166: 0 | X166: 0
H167: avg 10 min | I167: 150 | J167: =SUM(J157:J166) -> 5 | K167: =SUM(K157:K166) -> 95 | L167: 144 | M167: 0 | N167: 30 | O167: 0 | P167: 197 | Q167: 120 | R167: 0 | S167: 0 | T167: 39 | U167: 2 | V167: 0 | W167: 55 | X167: 0
I168: 0 | J168: 0 | K168: 0 | L168: 7 | M168: 0 | N168: 0 | O168: 0 | P168: 7 | Q168: 4 | R168: 0 | S168: 22 | T168: 0 | U168: 0 | V168: 0 | W168: 0 | X168: 2
I169: 1 | J169: 0 | K169: 0 | L169: 0 | M169: 0 | N169: 0 | O169: 1 | P169: 7 | Q169: 14 | R169: 0 | S169: 8 | T169: 0 | U169: 0 | V169: 2 | W169: 0 | X169: 0
I170: 2 | J170: 0 | K170: 0 | L170: 0 | M170: 0 | N170: 0 | O170: 3 | P170: 11 | Q170: 0 | R170: 0 | S170: 17 | T170: 0 | U170: 0 | V170: 20 | W170: 0 | X170: 0
I171: 3 | J171: 2 | K171: 11 | L171: 0 | M171: 0 | N171: 0 | O171: 25 | P171: 1 | Q171: 5 | R171: 0 | S171: 0 | T171: 0 | U171: 0 | V171: 17 | W171: 0 | X171: 1
I172: 4 | J172: 0 | K172: 1 | L172: 0 | M172: 0 | N172: 0 | O172: 26 | P172: 0 | Q172: 0 | R172: 0 | S172: 22 | T172: 0 | U172: 0 | V172: 5 | W172: 0 | X172: 0
I173: 5 | J173: 15 | K173: 14 | L173: 0 | M173: 0 | N173: 0 | O173: 30 | P173: 0 | Q173: 1 | R173: 0 | S173: 21 | T173: 0 | U173: 0 | V173: 0 | W173: 0 | X173: 0
I174: 6 | J174: 6 | K174: 0 | L174: 0 | M174: 0 | N174: 0 | O174: 8 | P174: 0 | Q174: 0 | R174: 0 | S174: 17 | T174: 0 | U174: 0 | V174: 0 | W174: 0 | X174: 0
I175: 7 | J175: 15 | K175: 0 | L175: 0 | M175: 0 | N175: 0 | O175: 11 | P175: 0 | Q175: 0 | R175: 0 | S175: 8 | T175: 0 | U175: 0 | V175: 0 | W175: 0 | X175: 0
I176: 8 | J176: 5 | K176: 0 | L176: 0 | M176: 0 | N176: 0 | O176: 25 | P176: 0 | Q176: 0 | R176: 0 | S176: 3 | T176: 0 | U176: 0 | V176: 4 | W176: 0 | X176: 0
I177: 9 | J177: 1 | K177: 0 | L177: 0 | M177: 0 | N177: 0 | O177: 19 | P177: 0 | Q177: 0 | R177: 0 | S177: 2 | T177: 0 | U177: 0 | V177: 0 | W177: 0 | X177: 0
H178: avg 10 min | I178: 160 | J178: =SUM(J168:J177) -> 44 | K178: 26 | L178: 7 | M178: 0 | N178: 0 | O178: 148 | P178: 26 | Q178: 24 | R178: 0 | S178: 120 | T178: 0 | U178: 0 | V178: 48 | W178: 0 | X178: 3
I179: 10 | J179: 15 | K179: 0 | L179: 0 | M179: 0 | N179: 0 | O179: 9 | P179: 0 | Q179: 0 | R179: 0 | S179: 9 | T179: 0 | U179: 0 | V179: 0 | W179: 0 | X179: 0
I180: 11 | J180: 13 | K180: 0 | L180: 0 | M180: 0 | N180: 0 | O180: 0 | P180: 0 | Q180: 0 | R180: 0 | S180: 7 | T180: 0 | U180: 0 | V180: 0 | W180: 0 | X180: 0
I181: 12 | J181: 12 | K181: 0 | L181: 0 | M181: 19 | N181: 0 | O181: 0 | P181: 0 | Q181: 0 | R181: 0 | S181: 15 | T181: 0 | U181: 0 | V181: 0 | W181: 0 | X181: 0
I182: 13 | J182: 15 | K182: 0 | L182: 0 | M182: 2 | N182: 0 | O182: 11 | P182: 0 | Q182: 0 | R182: 0 | S182: 0 | T182: 0 | U182: 0 | V182: 0 | W182: 0 | X182: 1
I183: 14 | J183: 15 | K183: 0 | L183: 0 | M183: 12 | N183: 0 | O183: 26 | P183: 0 | Q183: 0 | R183: 0 | S183: 1 | T183: 0 | U183: 0 | V183: 0 | W183: 0 | X183: 0
I184: 15 | J184: 19 | K184: 0 | L184: 0 | M184: 18 | N184: 0 | O184: 13 | P184: 0 | Q184: 0 | R184: 0 | S184: 12 | T184: 0 | U184: 0 | V184: 0 | W184: 0 | X184: 0
I185: 16 | J185: 14 | K185: 0 | L185: 0 | M185: 3 | N185: 0 | O185: 12 | P185: 35 | Q185: 0 | R185: 0 | S185: 0 | T185: 0 | U185: 0 | V185: 0 | W185: 0 | X185: 0
I186: 17 | J186: 15 | K186: 0 | L186: 0 | M186: 17 | N186: 0 | O186: 2 | P186: 25 | Q186: 0 | R186: 0 | S186: 0 | T186: 0 | U186: 0 | V186: 0 | W186: 0 | X186: 0
I187: 18 | J187: 2 | K187: 0 | L187: 0 | M187: 11 | N187: 0 | O187: 0 | P187: 22 | Q187: 5 | R187: 0 | S187: 0 | T187: 0 | U187: 0 | V187: 0 | W187: 0 | X187: 0
I188: 19 | J188: 0 | K188: 0 | L188: 0 | M188: 14 | N188: 0 | O188: 0 | P188: 24 | Q188: 6 | R188: 0 | S188: 0 | T188: 0 | U188: 0 | V188: 0 | W188: 0 | X188: 0
H189: avg 10 min | I189: 170 | J189: =SUM(J179:J188) -> 120 | K189: =SUM(K179:K188) -> 0 | L189: 0 | M189: 96 | N189: 0 | O189: 73 | P189: 106 | Q189: 11 | R189: 0 | S189: 44 | T189: 0 | U189: 0 | V189: 0 | W189: 0 | X189: 1
I190: 20 | J190: 0 | K190: 0 | L190: 0 | M190: 1 | N190: 0 | O190: 0 | P190: 18 | Q190: 11 | R190: 0 | S190: 0 | T190: 0 | U190: 0 | V190: 0 | W190: 0 | X190: 0
I191: 21 | J191: 3 | K191: 0 | L191: 0 | M191: 2 | N191: 0 | O191: 0 | P191: 12 | Q191: 7 | R191: 0 | S191: 0 | T191: 0 | U191: 0 | V191: 0 | W191: 0 | X191: 0
I192: 22 | J192: 1 | K192: 0 | L192: 0 | M192: 1 | N192: 0 | O192: 0 | P192: 2 | Q192: 20 | R192: 4 | S192: 0 | T192: 0 | U192: 0 | V192: 0 | W192: 0 | X192: 0
I193: 23 | J193: 6 | K193: 0 | L193: 0 | M193: 0 | N193: 0 | O193: 0 | P193: 4 | Q193: 13 | R193: 0 | S193: 0 | T193: 0 | U193: 0 | V193: 0 | W193: 0 | X193: 0
I194: 24 | J194: 1 | K194: 0 | L194: 0 | M194: 0 | N194: 0 | O194: 0 | P194: 0 | Q194: 25 | R194: 0 | S194: 0 | T194: 0 | U194: 0 | V194: 0 | W194: 0 | X194: 0
I195: 25 | J195: 2 | K195: 0 | L195: 0 | M195: 0 | N195: 0 | O195: 0 | P195: 0 | Q195: 9 | R195: 0 | S195: 0 | T195: 0 | U195: 0 | V195: 0 | W195: 0 | X195: 0
I196: 26 | J196: 1 | K196: 0 | L196: 0 | M196: 0 | N196: 1 | O196: 0 | P196: 0 | Q196: 6 | R196: 0 | S196: 0 | T196: 0 | U196: 0 | V196: 0 | W196: 8 | X196: 0
I197: 27 | J197: 0 | K197: 0 | L197: 0 | M197: 0 | N197: 7 | O197: 0 | P197: 0 | Q197: 0 | R197: 0 | S197: 0 | T197: 0 | U197: 0 | V197: 0 | W197: 0 | X197: 0
I198: 28 | J198: 0 | K198: 0 | L198: 0 | M198: 0 | N198: 18 | O198: 0 | P198: 0 | Q198: 0 | R198: 0 | S198: 0 | T198: 0 | U198: 0 | V198: 0 | W198: 0 | X198: 0
I199: 29 | J199: 0 | K199: 0 | L199: 0 | M199: 0 | N199: 16 | O199: 0 | P199: 0 | Q199: 0 | R199: 0 | S199: 0 | T199: 0 | U199: 0 | V199: 0 | W199: 0 | X199: 0
H200: avg 10 min | I200: 180 | J200: =SUM(J190:J199) -> 14 | K200: =SUM(K190:K199) -> 0 | L200: 0 | M200: 4 | N200: 42 | O200: 0 | P200: 36 | Q200: 91 | R200: 4 | S200: 0 | T200: 0 | U200: 0 | V200: 0 | W200: 8 | X200: 0
... 66 more rows

Sheet 3f
A1: α3
B2: time | C2: vehicle | E2: DZP | I2: treat | J2: V | K2: D | L2: D | M2: V | N2: D | O2: V | P2: D | Q2: V | R2: V | S2: D | T2: D | U2: V | V2: D | W2: D | X2: V
B3: 10 | C3: 19.42857143 | D3: 8.199469039 | E3: 3.5 | F3: 1.954847455 | I3: 0 | J3: 0 | K3: 0 | L3: 0 | M3: 0 | N3: 4 | O3: 0 | P3: 0 | Q3: 0 | R3: 0 | S3: 0 | T3: 0 | U3: 7 | V3: 0 | W3: 0 | X3: 0
B4: 20 | C4: 30.14285714 | D4: 10.64006035 | E4: 5.75 | F4: 2.289338644 | I4: 1 | J4: 6 | K4: 0 | L4: 0 | M4: 0 | N4: 0 | O4: 0 | P4: 0 | Q4: 0 | R4: 3 | S4: 0 | T4: 0 | U4: 16 | V4: 0 | W4: 0 | X4: 0
B5: 30 | C5: 31.71428571 | D5: 8.865971023 | E5: 4.75 | F5: 2.670941514 | I5: 2 | J5: 13 | K5: 0 | L5: 0 | M5: 0 | N5: 0 | O5: 2 | P5: 0 | Q5: 0 | R5: 4 | S5: 1 | T5: 0 | U5: 8 | V5: 0 | W5: 0 | X5: 0
B6: 40 | C6: 59.42857143 | D6: 14.99183451 | E6: 7.75 | F6: 2.980591983 | I6: 3 | J6: 1 | K6: 0 | L6: 0 | M6: 0 | N6: 2 | O6: 0 | P6: 0 | Q6: 0 | R6: 4 | S6: 0 | T6: 0 | U6: 0 | V6: 0 | W6: 0 | X6: 0
B7: 50 | C7: 46.14285714 | D7: 10.60868595 | E7: 4 | F7: 1.917960226 | I7: 4 | J7: 7 | K7: 0 | L7: 0 | M7: 0 | N7: 0 | O7: 0 | P7: 0 | Q7: 0 | R7: 6 | S7: 0 | T7: 0 | U7: 2 | V7: 0 | W7: 0 | X7: 0
B8: 60 | C8: 32.42857143 | D8: 10.48322275 | E8: 10.5 | F8: 4.234214382 | I8: 5 | J8: 12 | K8: 0 | L8: 0 | M8: 0 | N8: 2 | O8: 0 | P8: 0 | Q8: 0 | R8: 1 | S8: 0 | T8: 0 | U8: 3 | V8: 0 | W8: 0 | X8: 0
B9: 70 | C9: 15.14285714 | D9: 8.084166098 | E9: 3 | F9: 1.253566341 | I9: 6 | J9: 0 | K9: 0 | L9: 4 | M9: 1 | N9: 7 | O9: 1 | P9: 0 | Q9: 0 | R9: 0 | S9: 0 | T9: 0 | U9: 0 | V9: 0 | W9: 0 | X9: 0
B10: 80 | C10: 28.57142857 | D10: 8.380411238 | E10: 3 | F10: 1.426784597 | I10: 7 | J10: 7 | K10: 0 | L10: 2 | M10: 0 | N10: 0 | O10: 1 | P10: 0 | Q10: 0 | R10: 0 | S10: 0 | T10: 0 | U10: 0 | V10: 1 | W10: 0 | X10: 0
B11: 90 | C11: 27.28571429 | D11: 6.971760336 | E11: 4.375 | F11: 2.026057925 | I11: 8 | J11: 9 | K11: 0 | L11: 2 | M11: 0 | N11: 0 | O11: 4 | P11: 0 | Q11: 2 | R11: 1 | S11: 0 | T11: 0 | U11: 0 | V11: 0 | W11: 0 | X11: 0
B12: 100 | C12: 32.28571429 | D12: 10.38935876 | E12: 1.5 | F12: 0.6267831705 | I12: 9 | J12: 5 | K12: 1 | L12: 1 | M12: 0 | N12: 0 | O12: 0 | P12: 0 | Q12: 10 | R12: 0 | S12: 0 | T12: 0 | U12: 0 | V12: 1 | W12: 0 | X12: 0 | AA12: V | AB12: D | AC12: D | AD12: V | AE12: D | AF12: V | AG12: D | AH12: V | AI12: V | AJ12: D | AK12: D | AL12: V | AM12: D | AN12: D | AO12: V
B13: 110 | C13: 24.85714286 | D13: 7.974448993 | E13: 2.625 | F13: 1.625 | H13: avg 10 min | I13: 10 | J13: =SUM(J3:J12) -> 60 | K13: 1 | L13: 9 | M13: 1 | N13: 15 | O13: 8 | P13: 0 | Q13: 12 | R13: 19 | S13: 1 | T13: 0 | U13: 36 | V13: 2 | W13: 0 | X13: 0 | Z13: =I13 -> 10 | AA13: 60 | AB13: 1 | AC13: 9 | AD13: 1 | AE13: 15 | AF13: 8 | AG13: 0 | AH13: 12 | AI13: 19 | AJ13: 1 | AK13: 0 | AL13: 36 | AM13: 2 | AN13: 0 | AO13: 0
B14: 120 | C14: 10 | D14: 6.506407099 | E14: 4.25 | F14: 3.473110997 | I14: 10 | J14: 0 | K14: 3 | L14: 2 | M14: 0 | N14: 0 | O14: 0 | P14: 0 | Q14: 0 | R14: 0 | S14: 0 | T14: 0 | U14: 0 | V14: 1 | W14: 0 | X14: 0 | Z14: =I24 -> 20 | AA14: 79 | AB14: 15 | AC14: 16 | AD14: 0 | AE14: 6 | AF14: 31 | AG14: 0 | AH14: 34 | AI14: 50 | AJ14: 2 | AK14: 0 | AL14: 1 | AM14: 6 | AN14: 1 | AO14: 16
B15: 130 | C15: 15.14285714 | D15: 4.038084007 | E15: 1.75 | F15: 1.030776406 | I15: 11 | J15: 0 | K15: 0 | L15: 3 | M15: 0 | N15: 1 | O15: 0 | P15: 0 | Q15: 8 | R15: 0 | S15: 0 | T15: 0 | U15: 0 | V15: 3 | W15: 0 | X15: 0 | Z15: =I35 -> 30 | AA15: 50 | AB15: 3 | AC15: 22 | AD15: 28 | AE15: 9 | AF15: 47 | AG15: 0 | AH15: 40 | AI15: 57 | AJ15: 2 | AK15: 1 | AL15: 0 | AM15: 1 | AN15: 0 | AO15: 0
B16: 140 | C16: 10.57142857 | D16: 5.947617141 | E16: 3.375 | F16: 1.721061757 | I16: 12 | J16: 15 | K16: 1 | L16: 2 | M16: 0 | N16: 2 | O16: 1 | P16: 0 | Q16: 0 | R16: 3 | S16: 0 | T16: 0 | U16: 0 | V16: 1 | W16: 0 | X16: 13 | Z16: =I46 -> 40 | AA16: 107 | AB16: 12 | AC16: 26 | AD16: 52 | AE16: 9 | AF16: 16 | AG16: 0 | AH16: 69 | AI16: 96 | AJ16: 0 | AK16: 6 | AL16: 0 | AM16: 4 | AN16: 5 | AO16: 76
B17: 150 | C17: 22 | D17: 11.3913083 | E17: 0.5 | F17: 0.5 | I17: 13 | J17: 9 | K17: 4 | L17: 1 | M17: 0 | N17: 1 | O17: 8 | P17: 0 | Q17: 11 | R17: 11 | S17: 0 | T17: 0 | U17: 0 | V17: 0 | W17: 0 | X17: 3 | Z17: =I57 -> 50 | AA17: 83 | AB17: 14 | AC17: 10 | AD17: 25 | AE17: 6 | AF17: 57 | AG17: 1 | AH17: 51 | AI17: 71 | AJ17: 0 | AK17: 0 | AL17: 35 | AM17: 1 | AN17: 0 | AO17: 1
B18: 160 | C18: 14.57142857 | D18: 7.677602375 | E18: 2.875 | F18: 2.108126284 | I18: 14 | J18: 6 | K18: 0 | L18: 0 | M18: 0 | N18: 0 | O18: 14 | P18: 0 | Q18: 0 | R18: 0 | S18: 0 | T18: 0 | U18: 0 | V18: 1 | W18: 0 | X18: 0 | Z18: =I68 -> 60 | AA18: 58 | AB18: 11 | AC18: 30 | AD18: 0 | AE18: 10 | AF18: 22 | AG18: 0 | AH18: 0 | AI18: 70 | AJ18: 27 | AK18: 0 | AL18: 27 | AM18: 6 | AN18: 0 | AO18: 50
B19: 170 | C19: 10.71428571 | D19: 5.617635012 | E19: 2.25 | F19: 1.292146608 | I19: 15 | J19: 16 | K19: 2 | L19: 3 | M19: 0 | N19: 0 | O19: 0 | P19: 0 | Q19: 0 | R19: 9 | S19: 0 | T19: 0 | U19: 1 | V19: 0 | W19: 1 | X19: 0 | Z19: =I79 -> 70 | AA19: 8 | AB19: 6 | AC19: 10 | AD19: 17 | AE19: 2 | AF19: 2 | AG19: 0 | AH19: 7 | AI19: 62 | AJ19: 0 | AK19: 0 | AL19: 10 | AM19: 4 | AN19: 2 | AO19: 0
B20: 180 | C20: 26.42857143 | D20: 11.02995303 | E20: 3.375 | F20: 2.235568799 | I20: 16 | J20: 9 | K20: 3 | L20: 1 | M20: 0 | N20: 0 | O20: 0 | P20: 0 | Q20: 0 | R20: 11 | S20: 0 | T20: 0 | U20: 0 | V20: 0 | W20: 0 | X20: 0 | Z20: =I90 -> 80 | AA20: 0 | AB20: 11 | AC20: 2 | AD20: 17 | AE20: 6 | AF20: 35 | AG20: 0 | AH20: 47 | AI20: 59 | AJ20: 0 | AK20: 0 | AL20: 38 | AM20: 5 | AN20: 0 | AO20: 4
B21: 190 | C21: 23.71428571 | D21: 10.97337532 | E21: 3.125 | F21: 1.912715908 | I21: 17 | J21: 6 | K21: 1 | L21: 1 | M21: 0 | N21: 2 | O21: 0 | P21: 0 | Q21: 0 | R21: 2 | S21: 0 | T21: 0 | U21: 0 | V21: 0 | W21: 0 | X21: 0 | Z21: =I101 -> 90 | AA21: 25 | AB21: 15 | AC21: 3 | AD21: 7 | AE21: 7 | AF21: 22 | AG21: 0 | AH21: 9 | AI21: 58 | AJ21: 0 | AK21: 0 | AL21: 45 | AM21: 10 | AN21: 0 | AO21: 25
B22: 200 | C22: 10 | D22: 5.744562647 | E22: 3.875 | F22: 2.255449749 | I22: 18 | J22: 11 | K22: 0 | L22: 3 | M22: 0 | N22: 0 | O22: 2 | P22: 0 | Q22: 1 | R22: 12 | S22: 2 | T22: 0 | U22: 0 | V22: 0 | W22: 0 | X22: 0 | Z22: =I112 -> 100 | AA22: 21 | AB22: 0 | AC22: 4 | AD22: 26 | AE22: 2 | AF22: 0 | AG22: 4 | AH22: 86 | AI22: 14 | AJ22: 0 | AK22: 0 | AL22: 40 | AM22: 2 | AN22: 0 | AO22: 39
B23: 210 | C23: 48.28571429 | D23: 15.30439446 | E23: 0.625 | F23: 0.4199277149 | I23: 19 | J23: 7 | K23: 1 | L23: 0 | M23: 0 | N23: 0 | O23: 6 | P23: 0 | Q23: 14 | R23: 2 | S23: 0 | T23: 0 | U23: 0 | V23: 0 | W23: 0 | X23: 0 | Z23: =I123 -> 110 | AA23: 0 | AB23: 11 | AC23: 9 | AD23: 31 | AE23: 1 | AF23: 48 | AG23: 0 | AH23: 0 | AI23: 51 | AJ23: 0 | AK23: 0 | AL23: 31 | AM23: 0 | AN23: 0 | AO23: 13
B24: 220 | C24: 19.57142857 | D24: 10.16730789 | E24: 0.25 | F24: 0.25 | H24: avg 10 min | I24: 20 | J24: =SUM(J14:J23) -> 79 | K24: 15 | L24: 16 | M24: 0 | N24: 6 | O24: 31 | P24: 0 | Q24: 34 | R24: 50 | S24: 2 | T24: 0 | U24: 1 | V24: 6 | W24: 1 | X24: 16 | Z24: =I134 -> 120 | AA24: 0 | AB24: 6 | AC24: 28 | AD24: 10 | AE24: 0 | AF24: 47 | AG24: 0 | AH24: 0 | AI24: 13 | AJ24: 0 | AK24: 0 | AL24: 0 | AM24: 0 | AN24: 0 | AO24: 0
B25: 230 | C25: 27.57142857 | D25: 11.06443712 | E25: 0 | F25: 0 | I25: 20 | J25: 0 | K25: 0 | L25: 7 | M25: 0 | N25: 4 | O25: 7 | P25: 0 | Q25: 5 | R25: 1 | S25: 2 | T25: 0 | U25: 0 | V25: 0 | W25: 0 | X25: 0 | Z25: =I145 -> 130 | AA25: 21 | AB25: 0 | AC25: 8 | AD25: 21 | AE25: 4 | AF25: 24 | AG25: 0 | AH25: 24 | AI25: 0 | AJ25: 0 | AK25: 0 | AL25: 16 | AM25: 0 | AN25: 2 | AO25: 0
B26: 240 | C26: 41.42857143 | D26: 13.22129801 | E26: 2.125 | F26: 1.025348373 | I26: 21 | J26: 2 | K26: 0 | L26: 0 | M26: 0 | N26: 0 | O26: 11 | P26: 0 | Q26: 0 | R26: 0 | S26: 0 | T26: 0 | U26: 0 | V26: 1 | W26: 0 | X26: 0 | Z26: =I156 -> 140 | AA26: 41 | AB26: 10 | AC26: 11 | AD26: 0 | AE26: 0 | AF26: 23 | AG26: 0 | AH26: 0 | AI26: 3 | AJ26: 0 | AK26: 0 | AL26: 0 | AM26: 0 | AN26: 6 | AO26: 7
I27: 22 | J27: 23 | K27: 0 | L27: 2 | M27: 13 | N27: 1 | O27: 15 | P27: 0 | Q27: 0 | R27: 9 | S27: 0 | T27: 0 | U27: 0 | V27: 0 | W27: 0 | X27: 0 | Z27: =I167 -> 150 | AA27: 74 | AB27: 4 | AC27: 0 | AD27: 0 | AE27: 0 | AF27: 0 | AG27: 0 | AH27: 0 | AI27: 31 | AJ27: 0 | AK27: 0 | AL27: 0 | AM27: 0 | AN27: 0 | AO27: 49
I28: 23 | J28: 5 | K28: 0 | L28: 0 | M28: 9 | N28: 1 | O28: 0 | P28: 0 | Q28: 0 | R28: 13 | S28: 0 | T28: 0 | U28: 0 | V28: 0 | W28: 0 | X28: 0 | Z28: =I178 -> 160 | AA28: 0 | AB28: 0 | AC28: 17 | AD28: 41 | AE28: 0 | AF28: 0 | AG28: 0 | AH28: 0 | AI28: 45 | AJ28: 0 | AK28: 0 | AL28: 0 | AM28: 5 | AN28: 1 | AO28: 16
I29: 24 | J29: 0 | K29: 0 | L29: 3 | M29: 0 | N29: 0 | O29: 0 | P29: 0 | Q29: 3 | R29: 0 | S29: 0 | T29: 0 | U29: 0 | V29: 0 | W29: 0 | X29: 0 | Z29: =I189 -> 170 | AA29: 0 | AB29: 7 | AC29: 9 | AD29: 14 | AE29: 2 | AF29: 40 | AG29: 0 | AH29: 0 | AI29: 3 | AJ29: 0 | AK29: 0 | AL29: 0 | AM29: 0 | AN29: 0 | AO29: 18
I30: 25 | J30: 0 | K30: 1 | L30: 7 | M30: 0 | N30: 0 | O30: 3 | P30: 0 | Q30: 1 | R30: 0 | S30: 0 | T30: 0 | U30: 0 | V30: 0 | W30: 0 | X30: 0 | Z30: =I200 -> 180 | AA30: 14 | AB30: 0 | AC30: 9 | AD30: 0 | AE30: 0 | AF30: 53 | AG30: 0 | AH30: 0 | AI30: 55 | AJ30: 17 | AK30: 0 | AL30: 63 | AM30: 1 | AN30: 0 | AO30: 0
I31: 26 | J31: 13 | K31: 2 | L31: 0 | M31: 1 | N31: 3 | O31: 0 | P31: 0 | Q31: 7 | R31: 0 | S31: 0 | T31: 0 | U31: 0 | V31: 0 | W31: 0 | X31: 0 | Z31: =I211 -> 190 | AA31: 57 | AB31: 7 | AC31: 0 | AD31: 26 | AE31: 0 | AF31: 0 | AG31: 0 | AH31: 0 | AI31: 70 | AJ31: 3 | AK31: 15 | AL31: 13 | AM31: 0 | AN31: 0 | AO31: 0
I32: 27 | J32: 1 | K32: 0 | L32: 0 | M32: 5 | N32: 0 | O32: 6 | P32: 0 | Q32: 6 | R32: 28 | S32: 0 | T32: 0 | U32: 0 | V32: 0 | W32: 0 | X32: 0 | Z32: =I222 -> 200 | AA32: 14 | AB32: 4 | AC32: 8 | AD32: 0 | AE32: 0 | AF32: 11 | AG32: 0 | AH32: 0 | AI32: 1 | AJ32: 18 | AK32: 1 | AL32: 42 | AM32: 0 | AN32: 0 | AO32: 2
I33: 28 | J33: 3 | K33: 0 | L33: 3 | M33: 0 | N33: 0 | O33: 5 | P33: 0 | Q33: 0 | R33: 6 | S33: 0 | T33: 0 | U33: 0 | V33: 0 | W33: 0 | X33: 0 | Z33: =I233 -> 210 | AA33: 47 | AB33: 0 | AC33: 2 | AD33: 33 | AE33: 0 | AF33: 25 | AG33: 0 | AH33: 27 | AI33: 0 | AJ33: 0 | AK33: 0 | AL33: 91 | AM33: 0 | AN33: 3 | AO33: 115
I34: 29 | J34: 3 | K34: 0 | L34: 0 | M34: 0 | N34: 0 | O34: 0 | P34: 0 | Q34: 18 | R34: 0 | S34: 0 | T34: 1 | U34: 0 | V34: 0 | W34: 0 | X34: 0 | Z34: =I244 -> 220 | AA34: 9 | AB34: 0 | AC34: 2 | AD34: 36 | AE34: 0 | AF34: 0 | AG34: 0 | AH34: 11 | AI34: 0 | AJ34: 0 | AK34: 0 | AL34: 7 | AM34: 0 | AN34: 0 | AO34: 74
H35: avg 10 min | I35: 30 | J35: =SUM(J25:J34) -> 50 | K35: 3 | L35: 22 | M35: 28 | N35: 9 | O35: 47 | P35: 0 | Q35: 40 | R35: 57 | S35: 2 | T35: 1 | U35: 0 | V35: 1 | W35: 0 | X35: 0 | Z35: =I255 -> 230 | AA35: 40 | AB35: 0 | AC35: 0 | AD35: 13 | AE35: 0 | AF35: 0 | AG35: 0 | AH35: 83 | AI35: 19 | AJ35: 0 | AK35: 0 | AL35: 0 | AM35: 0 | AN35: 0 | AO35: 38
I36: 0 | J36: 8 | K36: 0 | L36: 2 | M36: 0 | N36: 0 | O36: 1 | P36: 0 | Q36: 11 | R36: 0 | S36: 0 | T36: 0 | U36: 0 | V36: 2 | W36: 0 | X36: 5 | Z36: =I266 -> 240 | AA36: 34 | AB36: 3 | AC36: 7 | AD36: 70 | AE36: 1 | AF36: 29 | AG36: 0 | AH36: 55 | AI36: 97 | AJ36: 0 | AK36: 6 | AL36: 5 | AM36: 0 | AN36: 0 | AO36: 0
I37: 1 | J37: 0 | K37: 0 | L37: 5 | M37: 0 | N37: 0 | O37: 0 | P37: 0 | Q37: 0 | R37: 3 | S37: 0 | T37: 0 | U37: 0 | V37: 2 | W37: 5 | X37: 0
I38: 2 | J38: 2 | K38: 0 | L38: 0 | M38: 0 | N38: 5 | O38: 8 | P38: 0 | Q38: 0 | R38: 5 | S38: 0 | T38: 0 | U38: 0 | V38: 0 | W38: 0 | X38: 0
I39: 3 | J39: 14 | K39: 0 | L39: 1 | M39: 0 | N39: 0 | O39: 0 | P39: 0 | Q39: 0 | R39: 0 | S39: 0 | T39: 5 | U39: 0 | V39: 0 | W39: 0 | X39: 0
I40: 4 | J40: 22 | K40: 0 | L40: 7 | M40: 0 | N40: 0 | O40: 0 | P40: 0 | Q40: 10 | R40: 1 | S40: 0 | T40: 1 | U40: 0 | V40: 0 | W40: 0 | X40: 0
I41: 5 | J41: 7 | K41: 0 | L41: 2 | M41: 0 | N41: 1 | O41: 0 | P41: 0 | Q41: 13 | R41: 25 | S41: 0 | T41: 0 | U41: 0 | V41: 0 | W41: 0 | X41: 12
I42: 6 | J42: 10 | K42: 7 | L42: 4 | M42: 17 | N42: 3 | O42: 0 | P42: 0 | Q42: 0 | R42: 23 | S42: 0 | T42: 0 | U42: 0 | V42: 0 | W42: 0 | X42: 18
I43: 7 | J43: 30 | K43: 1 | L43: 3 | M43: 13 | N43: 0 | O43: 7 | P43: 0 | Q43: 15 | R43: 14 | S43: 0 | T43: 0 | U43: 0 | V43: 0 | W43: 0 | X43: 24
I44: 8 | J44: 7 | K44: 0 | L44: 2 | M44: 0 | N44: 0 | O44: 0 | P44: 0 | Q44: 6 | R44: 3 | S44: 0 | T44: 0 | U44: 0 | V44: 0 | W44: 0 | X44: 17
I45: 9 | J45: 7 | K45: 4 | L45: 0 | M45: 22 | N45: 0 | O45: 0 | P45: 0 | Q45: 14 | R45: 22 | S45: 0 | T45: 0 | U45: 0 | V45: 0 | W45: 0 | X45: 0
H46: avg 10 min | I46: 40 | J46: =SUM(J36:J45) -> 107 | K46: 12 | L46: 26 | M46: 52 | N46: 9 | O46: 16 | P46: 0 | Q46: 69 | R46: 96 | S46: 0 | T46: 6 | U46: 0 | V46: 4 | W46: 5 | X46: 76
I47: 10 | J47: 0 | K47: 0 | L47: 0 | M47: 0 | N47: 0 | O47: 4 | P47: 0 | Q47: 14 | R47: 5 | S47: 0 | T47: 0 | U47: 0 | V47: 0 | W47: 0 | X47: 0
I48: 11 | J48: 9 | K48: 0 | L48: 2 | M48: 0 | N48: 3 | O48: 2 | P48: 0 | Q48: 2 | R48: 1 | S48: 0 | T48: 0 | U48: 0 | V48: 0 | W48: 0 | X48: 1
I49: 12 | J49: 16 | K49: 0 | L49: 0 | M49: 3 | N49: 0 | O49: 0 | P49: 0 | Q49: 20 | R49: 4 | S49: 0 | T49: 0 | U49: 0 | V49: 0 | W49: 0 | X49: 0
I50: 13 | J50: 2 | K50: 0 | L50: 0 | M50: 0 | N50: 1 | O50: 6 | P50: 0 | Q50: 9 | R50: 0 | S50: 0 | T50: 0 | U50: 0 | V50: 0 | W50: 0 | X50: 0
I51: 14 | J51: 0 | K51: 3 | L51: 1 | M51: 14 | N51: 2 | O51: 16 | P51: 0 | Q51: 6 | R51: 10 | S51: 0 | T51: 0 | U51: 0 | V51: 0 | W51: 0 | X51: 0
I52: 15 | J52: 11 | K52: 0 | L52: 1 | M52: 0 | N52: 0 | O52: 8 | P52: 0 | Q52: 0 | R52: 11 | S52: 0 | T52: 0 | U52: 0 | V52: 0 | W52: 0 | X52: 0
I53: 16 | J53: 3 | K53: 4 | L53: 5 | M53: 1 | N53: 0 | O53: 8 | P53: 0 | Q53: 0 | R53: 25 | S53: 0 | T53: 0 | U53: 0 | V53: 1 | W53: 0 | X53: 0
I54: 17 | J54: 13 | K54: 0 | L54: 0 | M54: 7 | N54: 0 | O54: 1 | P54: 0 | Q54: 0 | R54: 15 | S54: 0 | T54: 0 | U54: 0 | V54: 0 | W54: 0 | X54: 0
I55: 18 | J55: 19 | K55: 0 | L55: 1 | M55: 0 | N55: 0 | O55: 0 | P55: 0 | Q55: 0 | R55: 0 | S55: 0 | T55: 0 | U55: 6 | V55: 0 | W55: 0 | X55: 0
I56: 19 | J56: 10 | K56: 7 | L56: 0 | M56: 0 | N56: 0 | O56: 12 | P56: 1 | Q56: 0 | R56: 0 | S56: 0 | T56: 0 | U56: 29 | V56: 0 | W56: 0 | X56: 0
H57: avg 10 min | I57: 50 | J57: =SUM(J47:J56) -> 83 | K57: 14 | L57: 10 | M57: 25 | N57: 6 | O57: 57 | P57: 1 | Q57: 51 | R57: 71 | S57: 0 | T57: 0 | U57: 35 | V57: 1 | W57: 0 | X57: 1
I58: 20 | J58: 22 | K58: 2 | L58: 0 | M58: 0 | N58: 0 | O58: 0 | P58: 0 | Q58: 0 | R58: 0 | S58: 0 | T58: 0 | U58: 7 | V58: 0 | W58: 0 | X58: 0
I59: 21 | J59: 9 | K59: 0 | L59: 2 | M59: 0 | N59: 0 | O59: 0 | P59: 0 | Q59: 0 | R59: 0 | S59: 0 | T59: 0 | U59: 0 | V59: 0 | W59: 0 | X59: 0
I60: 22 | J60: 2 | K60: 8 | L60: 2 | M60: 0 | N60: 4 | O60: 0 | P60: 0 | Q60: 0 | R60: 0 | S60: 0 | T60: 0 | U60: 19 | V60: 0 | W60: 0 | X60: 0
I61: 23 | J61: 1 | K61: 1 | L61: 0 | M61: 0 | N61: 0 | O61: 0 | P61: 0 | Q61: 0 | R61: 15 | S61: 25 | T61: 0 | U61: 1 | V61: 0 | W61: 0 | X61: 0
I62: 24 | J62: 6 | K62: 0 | L62: 0 | M62: 0 | N62: 0 | O62: 1 | P62: 0 | Q62: 0 | R62: 23 | S62: 0 | T62: 0 | U62: 0 | V62: 0 | W62: 0 | X62: 0
I63: 25 | J63: 0 | K63: 0 | L63: 0 | M63: 0 | N63: 4 | O63: 0 | P63: 0 | Q63: 0 | R63: 0 | S63: 0 | T63: 0 | U63: 0 | V63: 1 | W63: 0 | X63: 0
I64: 26 | J64: 2 | K64: 0 | L64: 3 | M64: 0 | N64: 0 | O64: 6 | P64: 0 | Q64: 0 | R64: 10 | S64: 2 | T64: 0 | U64: 0 | V64: 1 | W64: 0 | X64: 0
I65: 27 | J65: 11 | K65: 0 | L65: 10 | M65: 0 | N65: 2 | O65: 10 | P65: 0 | Q65: 0 | R65: 0 | S65: 0 | T65: 0 | U65: 0 | V65: 3 | W65: 0 | X65: 9
I66: 28 | J66: 1 | K66: 0 | L66: 3 | M66: 0 | N66: 0 | O66: 3 | P66: 0 | Q66: 0 | R66: 3 | S66: 0 | T66: 0 | U66: 0 | V66: 0 | W66: 0 | X66: 34
I67: 29 | J67: 4 | K67: 0 | L67: 10 | M67: 0 | N67: 0 | O67: 2 | P67: 0 | Q67: 0 | R67: 19 | S67: 0 | T67: 0 | U67: 0 | V67: 1 | W67: 0 | X67: 7
H68: avg 10 min | I68: 60 | J68: =SUM(J58:J67) -> 58 | K68: 11 | L68: 30 | M68: 0 | N68: 10 | O68: 22 | P68: 0 | Q68: 0 | R68: 70 | S68: 27 | T68: 0 | U68: 27 | V68: 6 | W68: 0 | X68: 50
I69: 0 | J69: 1 | K69: 1 | L69: 0 | M69: 0 | N69: 0 | O69: 2 | P69: 0 | Q69: 0 | R69: 0 | S69: 0 | T69: 0 | U69: 0 | V69: 0 | W69: 0 | X69: 0
I70: 1 | J70: 0 | K70: 0 | L70: 1 | M70: 4 | N70: 1 | O70: 0 | P70: 0 | Q70: 0 | R70: 5 | S70: 0 | T70: 0 | U70: 0 | V70: 2 | W70: 0 | X70: 0
I71: 2 | J71: 0 | K71: 2 | L71: 1 | M71: 0 | N71: 1 | O71: 0 | P71: 0 | Q71: 0 | R71: 14 | S71: 0 | T71: 0 | U71: 0 | V71: 1 | W71: 0 | X71: 0
I72: 3 | J72: 2 | K72: 0 | L72: 3 | M72: 0 | N72: 0 | O72: 0 | P72: 0 | Q72: 0 | R72: 19 | S72: 0 | T72: 0 | U72: 0 | V72: 0 | W72: 0 | X72: 0
I73: 4 | J73: 0 | K73: 0 | L73: 1 | M73: 0 | N73: 0 | O73: 0 | P73: 0 | Q73: 0 | R73: 6 | S73: 0 | T73: 0 | U73: 0 | V73: 1 | W73: 2 | X73: 0
I74: 5 | J74: 0 | K74: 0 | L74: 0 | M74: 0 | N74: 0 | O74: 0 | P74: 0 | Q74: 0 | R74: 7 | S74: 0 | T74: 0 | U74: 0 | V74: 0 | W74: 0 | X74: 0
I75: 6 | J75: 0 | K75: 0 | L75: 0 | M75: 0 | N75: 0 | O75: 0 | P75: 0 | Q75: 1 | R75: 0 | S75: 0 | T75: 0 | U75: 8 | V75: 0 | W75: 0 | X75: 0
I76: 7 | J76: 5 | K76: 0 | L76: 0 | M76: 10 | N76: 0 | O76: 0 | P76: 0 | Q76: 0 | R76: 0 | S76: 0 | T76: 0 | U76: 2 | V76: 0 | W76: 0 | X76: 0
I77: 8 | J77: 0 | K77: 2 | L77: 0 | M77: 0 | N77: 0 | O77: 0 | P77: 0 | Q77: 0 | R77: 0 | S77: 0 | T77: 0 | U77: 0 | V77: 0 | W77: 0 | X77: 0
I78: 9 | J78: 0 | K78: 1 | L78: 4 | M78: 3 | N78: 0 | O78: 0 | P78: 0 | Q78: 6 | R78: 11 | S78: 0 | T78: 0 | U78: 0 | V78: 0 | W78: 0 | X78: 0
H79: avg 10 min | I79: 70 | J79: =SUM(J69:J78) -> 8 | K79: 6 | L79: 10 | M79: 17 | N79: 2 | O79: 2 | P79: 0 | Q79: 7 | R79: 62 | S79: 0 | T79: 0 | U79: 10 | V79: 4 | W79: 2 | X79: 0
I80: 10 | J80: 0 | K80: 3 | L80: 0 | M80: 9 | N80: 0 | O80: 0 | P80: 0 | Q80: 10 | R80: 0 | S80: 0 | T80: 0 | U80: 0 | V80: 3 | W80: 0 | X80: 0
I81: 11 | J81: 0 | K81: 0 | L81: 1 | M81: 3 | N81: 0 | O81: 3 | P81: 0 | Q81: 5 | R81: 0 | S81: 0 | T81: 0 | U81: 0 | V81: 1 | W81: 0 | X81: 0
I82: 12 | J82: 0 | K82: 0 | L82: 1 | M82: 5 | N82: 5 | O82: 12 | P82: 0 | Q82: 5 | R82: 0 | S82: 0 | T82: 0 | U82: 0 | V82: 0 | W82: 0 | X82: 0
I83: 13 | J83: 0 | K83: 0 | L83: 0 | M83: 0 | N83: 0 | O83: 0 | P83: 0 | Q83: 3 | R83: 0 | S83: 0 | T83: 0 | U83: 0 | V83: 1 | W83: 0 | X83: 0
I84: 14 | J84: 0 | K84: 0 | L84: 0 | M84: 0 | N84: 0 | O84: 1 | P84: 0 | Q84: 0 | R84: 6 | S84: 0 | T84: 0 | U84: 0 | V84: 0 | W84: 0 | X84: 0
I85: 15 | J85: 0 | K85: 0 | L85: 0 | M85: 0 | N85: 1 | O85: 0 | P85: 0 | Q85: 6 | R85: 9 | S85: 0 | T85: 0 | U85: 0 | V85: 0 | W85: 0 | X85: 0
I86: 16 | J86: 0 | K86: 0 | L86: 0 | M86: 0 | N86: 0 | O86: 0 | P86: 0 | Q86: 13 | R86: 18 | S86: 0 | T86: 0 | U86: 18 | V86: 0 | W86: 0 | X86: 0
I87: 17 | J87: 0 | K87: 0 | L87: 0 | M87: 0 | N87: 0 | O87: 8 | P87: 0 | Q87: 0 | R87: 15 | S87: 0 | T87: 0 | U87: 20 | V87: 0 | W87: 0 | X87: 0
I88: 18 | J88: 0 | K88: 8 | L88: 0 | M88: 0 | N88: 0 | O88: 3 | P88: 0 | Q88: 5 | R88: 2 | S88: 0 | T88: 0 | U88: 0 | V88: 0 | W88: 0 | X88: 3
I89: 19 | J89: 0 | K89: 0 | L89: 0 | M89: 0 | N89: 0 | O89: 8 | P89: 0 | Q89: 0 | R89: 9 | S89: 0 | T89: 0 | U89: 0 | V89: 0 | W89: 0 | X89: 1
H90: avg 10 min | I90: 80 | J90: =SUM(J80:J89) -> 0 | K90: 11 | L90: 2 | M90: 17 | N90: 6 | O90: 35 | P90: 0 | Q90: 47 | R90: 59 | S90: 0 | T90: 0 | U90: 38 | V90: 5 | W90: 0 | X90: 4
I91: 20 | K91: 0 | L91: 0 | M91: 0 | N91: 0 | O91: 0 | P91: 0 | Q91: 0 | R91: 0 | S91: 0 | T91: 0 | U91: 21 | V91: 0 | W91: 0 | X91: 0
I92: 21 | J92: 0 | K92: 0 | L92: 0 | M92: 0 | N92: 0 | O92: 0 | P92: 0 | Q92: 0 | R92: 0 | S92: 0 | T92: 0 | U92: 24 | V92: 0 | W92: 0 | X92: 0
I93: 22 | J93: 0 | K93: 6 | L93: 1 | M93: 0 | N93: 0 | O93: 0 | P93: 0 | Q93: 0 | R93: 0 | S93: 0 | T93: 0 | U93: 0 | V93: 1 | W93: 0 | X93: 1
I94: 23 | J94: 0 | K94: 0 | L94: 0 | M94: 0 | N94: 0 | O94: 1 | P94: 0 | Q94: 0 | R94: 11 | S94: 0 | T94: 0 | U94: 0 | V94: 0 | W94: 0 | X94: 0
I95: 24 | J95: 8 | K95: 3 | L95: 0 | M95: 0 | N95: 2 | O95: 12 | P95: 0 | Q95: 0 | R95: 16 | S95: 0 | T95: 0 | U95: 0 | V95: 0 | W95: 0 | X95: 0
I96: 25 | J96: 0 | K96: 0 | L96: 0 | M96: 0 | N96: 0 | O96: 9 | P96: 0 | Q96: 0 | R96: 8 | S96: 0 | T96: 0 | U96: 0 | V96: 5 | W96: 0 | X96: 0
I97: 26 | J97: 0 | K97: 0 | L97: 0 | M97: 0 | N97: 1 | O97: 0 | P97: 0 | Q97: 0 | R97: 12 | S97: 0 | T97: 0 | U97: 0 | V97: 0 | W97: 0 | X97: 0
I98: 27 | J98: 4 | K98: 0 | L98: 0 | M98: 0 | N98: 0 | O98: 0 | P98: 0 | Q98: 0 | R98: 7 | S98: 0 | T98: 0 | U98: 0 | V98: 0 | W98: 0 | X98: 14
I99: 28 | J99: 7 | K99: 6 | L99: 0 | M99: 0 | N99: 0 | O99: 0 | P99: 0 | Q99: 9 | R99: 3 | S99: 0 | T99: 0 | U99: 0 | V99: 2 | W99: 0 | X99: 10
I100: 29 | J100: 6 | K100: 0 | L100: 2 | M100: 7 | N100: 4 | O100: 0 | P100: 0 | Q100: 0 | R100: 1 | S100: 0 | T100: 0 | U100: 0 | V100: 2 | W100: 0 | X100: 0
H101: avg 10 min | I101: 90 | J101: =SUM(J91:J100) -> 25 | K101: 15 | L101: 3 | M101: 7 | N101: 7 | O101: 22 | P101: 0 | Q101: 9 | R101: 58 | S101: 0 | T101: 0 | U101: 45 | V101: 10 | W101: 0 | X101: 25
I102: 0 | J102: 14 | K102: 0 | L102: 4 | M102: 17 | N102: 0 | O102: 0 | P102: 0 | Q102: 0 | R102: 0 | S102: 0 | T102: 0 | U102: 0 | V102: 0 | W102: 0 | X102: 5
I103: 1 | J103: 0 | K103: 0 | L103: 0 | M103: 7 | N103: 0 | O103: 0 | P103: 0 | Q103: 19 | R103: 0 | S103: 0 | T103: 0 | U103: 0 | V103: 0 | W103: 0 | X103: 1
I104: 2 | J104: 3 | K104: 0 | L104: 0 | M104: 2 | N104: 0 | O104: 0 | P104: 0 | Q104: 20 | R104: 0 | S104: 0 | T104: 0 | U104: 0 | V104: 0 | W104: 0 | X104: 0
I105: 3 | J105: 0 | K105: 0 | L105: 0 | M105: 0 | N105: 0 | O105: 0 | P105: 0 | Q105: 21 | R105: 0 | S105: 0 | T105: 0 | U105: 0 | V105: 0 | W105: 0 | X105: 0
I106: 4 | J106: 0 | K106: 0 | L106: 0 | M106: 0 | N106: 0 | O106: 0 | P106: 0 | Q106: 1 | R106: 0 | S106: 0 | T106: 0 | U106: 0 | V106: 0 | W106: 0 | X106: 2
I107: 5 | J107: 0 | K107: 0 | L107: 0 | M107: 0 | N107: 0 | O107: 0 | P107: 0 | Q107: 9 | R107: 0 | S107: 0 | T107: 0 | U107: 25 | V107: 0 | W107: 0 | X107: 6
I108: 6 | J108: 0 | K108: 0 | L108: 0 | M108: 0 | N108: 0 | O108: 0 | P108: 0 | Q108: 0 | R108: 7 | S108: 0 | T108: 0 | U108: 0 | V108: 0 | W108: 0 | X108: 6
I109: 7 | J109: 4 | K109: 0 | L109: 0 | M109: 0 | N109: 0 | O109: 0 | P109: 0 | Q109: 5 | R109: 0 | S109: 0 | T109: 0 | U109: 0 | V109: 0 | W109: 0 | X109: 10
I110: 8 | J110: 0 | K110: 0 | L110: 0 | M110: 0 | N110: 0 | O110: 0 | P110: 4 | Q110: 11 | R110: 0 | S110: 0 | T110: 0 | U110: 15 | V110: 0 | W110: 0 | X110: 8
I111: 9 | J111: 0 | K111: 0 | L111: 0 | M111: 0 | N111: 2 | O111: 0 | P111: 0 | Q111: 0 | R111: 7 | S111: 0 | T111: 0 | U111: 0 | V111: 2 | W111: 0 | X111: 1
H112: avg 10 min | I112: 100 | J112: =SUM(J102:J111) -> 21 | K112: 0 | L112: 4 | M112: 26 | N112: 2 | O112: 0 | P112: 4 | Q112: 86 | R112: 14 | S112: 0 | T112: 0 | U112: 40 | V112: 2 | W112: 0 | X112: 39
I113: 10 | J113: 0 | K113: 0 | L113: 0 | M113: 0 | N113: 0 | O113: 0 | P113: 0 | Q113: 0 | R113: 10 | S113: 0 | T113: 0 | U113: 0 | V113: 0 | W113: 0 | X113: 4
I114: 11 | J114: 0 | K114: 2 | L114: 0 | M114: 0 | N114: 1 | O114: 0 | P114: 0 | Q114: 0 | R114: 0 | S114: 0 | T114: 0 | U114: 0 | V114: 0 | W114: 0 | X114: 8
I115: 12 | J115: 0 | K115: 0 | L115: 0 | M115: 0 | N115: 0 | O115: 11 | P115: 0 | Q115: 0 | R115: 5 | S115: 0 | T115: 0 | U115: 0 | V115: 0 | W115: 0 | X115: 0
I116: 13 | J116: 0 | K116: 0 | L116: 0 | M116: 0 | N116: 0 | O116: 0 | P116: 0 | Q116: 0 | R116: 0 | S116: 0 | T116: 0 | U116: 0 | V116: 0 | W116: 0 | X116: 0
I117: 14 | J117: 0 | K117: 0 | L117: 0 | M117: 0 | N117: 0 | O117: 0 | P117: 0 | Q117: 0 | R117: 0 | S117: 0 | T117: 0 | U117: 0 | V117: 0 | W117: 0 | X117: 1
I118: 15 | J118: 0 | K118: 0 | L118: 0 | M118: 10 | N118: 0 | O118: 0 | P118: 0 | Q118: 0 | R118: 2 | S118: 0 | T118: 0 | U118: 0 | V118: 0 | W118: 0 | X118: 0
I119: 16 | J119: 0 | K119: 0 | L119: 0 | M119: 7 | N119: 0 | O119: 7 | P119: 0 | Q119: 0 | R119: 13 | S119: 0 | T119: 0 | U119: 0 | V119: 0 | W119: 0 | X119: 0
I120: 17 | J120: 0 | K120: 0 | L120: 0 | M120: 14 | N120: 0 | O120: 1 | P120: 0 | Q120: 0 | R120: 13 | S120: 0 | T120: 0 | U120: 0 | V120: 0 | W120: 0 | X120: 0
I121: 18 | J121: 0 | K121: 0 | L121: 9 | M121: 0 | N121: 0 | O121: 20 | P121: 0 | Q121: 0 | R121: 5 | S121: 0 | T121: 0 | U121: 31 | V121: 0 | W121: 0 | X121: 0
I122: 19 | J122: 0 | K122: 9 | L122: 0 | M122: 0 | N122: 0 | O122: 9 | P122: 0 | Q122: 0 | R122: 3 | S122: 0 | T122: 0 | U122: 0 | V122: 0 | W122: 0 | X122: 0
H123: avg 10 min | I123: 110 | J123: =SUM(J113:J122) -> 0 | K123: 11 | L123: 9 | M123: 31 | N123: 1 | O123: 48 | P123: 0 | Q123: 0 | R123: 51 | S123: 0 | T123: 0 | U123: 31 | V123: 0 | W123: 0 | X123: 13
I124: 20 | J124: 0 | K124: 2 | L124: 0 | M124: 0 | N124: 0 | O124: 5 | P124: 0 | Q124: 0 | R124: 0 | S124: 0 | T124: 0 | U124: 0 | V124: 0 | W124: 0 | X124: 0
I125: 21 | J125: 0 | K125: 4 | L125: 19 | M125: 0 | N125: 0 | O125: 11 | P125: 0 | Q125: 0 | R125: 6 | S125: 0 | T125: 0 | U125: 0 | V125: 0 | W125: 0 | X125: 0
I126: 22 | J126: 0 | K126: 0 | L126: 0 | M126: 0 | N126: 0 | O126: 2 | P126: 0 | Q126: 0 | R126: 1 | S126: 0 | T126: 0 | U126: 0 | V126: 0 | W126: 0 | X126: 0
I127: 23 | J127: 0 | K127: 0 | L127: 4 | M127: 0 | N127: 0 | O127: 0 | P127: 0 | Q127: 0 | R127: 0 | S127: 0 | T127: 0 | U127: 0 | V127: 0 | W127: 0 | X127: 0
I128: 24 | J128: 0 | K128: 0 | L128: 2 | M128: 0 | N128: 0 | O128: 11 | P128: 0 | Q128: 0 | R128: 0 | S128: 0 | T128: 0 | U128: 0 | V128: 0 | W128: 0 | X128: 0
I129: 25 | J129: 0 | K129: 0 | L129: 0 | M129: 0 | N129: 0 | O129: 7 | P129: 0 | Q129: 0 | R129: 3 | S129: 0 | T129: 0 | U129: 0 | V129: 0 | W129: 0 | X129: 0
I130: 26 | J130: 0 | K130: 0 | L130: 3 | M130: 0 | N130: 0 | O130: 0 | P130: 0 | Q130: 0 | R130: 3 | S130: 0 | T130: 0 | U130: 0 | V130: 0 | W130: 0 | X130: 0
I131: 27 | J131: 0 | K131: 0 | L131: 0 | M131: 0 | N131: 0 | O131: 5 | P131: 0 | Q131: 0 | R131: 0 | S131: 0 | T131: 0 | U131: 0 | V131: 0 | W131: 0 | X131: 0
I132: 28 | J132: 0 | K132: 0 | L132: 0 | M132: 0 | N132: 0 | O132: 0 | P132: 0 | Q132: 0 | R132: 0 | S132: 0 | T132: 0 | U132: 0 | V132: 0 | W132: 0 | X132: 0
I133: 29 | J133: 0 | K133: 0 | L133: 0 | M133: 10 | N133: 0 | O133: 6 | P133: 0 | Q133: 0 | R133: 0 | S133: 0 | T133: 0 | U133: 0 | V133: 0 | W133: 0 | X133: 0
H134: avg 10 min | I134: 120 | J134: =SUM(J124:J133) -> 0 | K134: 6 | L134: 28 | M134: 10 | N134: 0 | O134: 47 | P134: 0 | Q134: 0 | R134: 13 | S134: 0 | T134: 0 | U134: 0 | V134: 0 | W134: 0 | X134: 0
I135: 0 | J135: 0 | K135: 0 | L135: 0 | M135: 20 | N135: 3 | O135: 6 | P135: 0 | Q135: 0 | R135: 0 | S135: 0 | T135: 0 | U135: 0 | V135: 0 | W135: 0 | X135: 0
I136: 1 | J136: 10 | K136: 0 | L136: 0 | M136: 0 | N136: 1 | O136: 0 | P136: 0 | Q136: 0 | R136: 0 | S136: 0 | T136: 0 | U136: 0 | V136: 0 | W136: 0 | X136: 0
I137: 2 | J137: 4 | K137: 0 | L137: 0 | M137: 0 | N137: 0 | O137: 0 | P137: 0 | Q137: 0 | R137: 0 | S137: 0 | T137: 0 | U137: 0 | V137: 0 | W137: 0 | X137: 0
I138: 3 | J138: 0 | K138: 0 | L138: 4 | M138: 1 | N138: 0 | O138: 0 | P138: 0 | Q138: 0 | R138: 0 | S138: 0 | T138: 0 | U138: 0 | V138: 0 | W138: 0 | X138: 0
I139: 4 | J139: 7 | K139: 0 | L139: 0 | M139: 0 | N139: 0 | O139: 0 | P139: 0 | Q139: 0 | R139: 0 | S139: 0 | T139: 0 | U139: 16 | V139: 0 | W139: 0 | X139: 0
I140: 5 | J140: 0 | K140: 0 | L140: 4 | M140: 0 | N140: 0 | O140: 0 | P140: 0 | Q140: 0 | R140: 0 | S140: 0 | T140: 0 | U140: 0 | V140: 0 | W140: 0 | X140: 0
I141: 6 | J141: 0 | K141: 0 | L141: 0 | M141: 0 | N141: 0 | O141: 10 | P141: 0 | Q141: 0 | R141: 0 | S141: 0 | T141: 0 | U141: 0 | V141: 0 | W141: 0 | X141: 0
I142: 7 | J142: 0 | K142: 0 | L142: 0 | M142: 0 | N142: 0 | O142: 8 | P142: 0 | Q142: 0 | R142: 0 | S142: 0 | T142: 0 | U142: 0 | V142: 0 | W142: 0 | X142: 0
I143: 8 | J143: 0 | K143: 0 | L143: 0 | M143: 0 | N143: 0 | O143: 0 | P143: 0 | Q143: 8 | R143: 0 | S143: 0 | T143: 0 | U143: 0 | V143: 0 | W143: 2 | X143: 0
I144: 9 | J144: 0 | K144: 0 | L144: 0 | M144: 0 | N144: 0 | O144: 0 | P144: 0 | Q144: 16 | R144: 0 | S144: 0 | T144: 0 | U144: 0 | V144: 0 | W144: 0 | X144: 0
H145: avg 10 min | I145: 130 | J145: =SUM(J135:J144) -> 21 | K145: 0 | L145: 8 | M145: 21 | N145: 4 | O145: 24 | P145: 0 | Q145: 24 | R145: 0 | S145: 0 | T145: 0 | U145: 16 | V145: 0 | W145: 2 | X145: 0
I146: 10 | J146: 19 | K146: 0 | L146: 0 | M146: 0 | N146: 0 | O146: 0 | P146: 0 | Q146: 0 | R146: 0 | S146: 0 | T146: 0 | U146: 0 | V146: 0 | W146: 0 | X146: 0
I147: 11 | J147: 0 | K147: 0 | L147: 0 | M147: 0 | N147: 0 | O147: 0 | P147: 0 | Q147: 0 | R147: 0 | S147: 0 | T147: 0 | U147: 0 | V147: 0 | W147: 0 | X147: 0
I148: 12 | J148: 0 | K148: 0 | L148: 0 | M148: 0 | N148: 0 | O148: 3 | P148: 0 | Q148: 0 | R148: 0 | S148: 0 | T148: 0 | U148: 0 | V148: 0 | W148: 0 | X148: 0
I149: 13 | J149: 0 | K149: 9 | L149: 0 | M149: 0 | N149: 0 | O149: 14 | P149: 0 | Q149: 0 | R149: 0 | S149: 0 | T149: 0 | U149: 0 | V149: 0 | W149: 6 | X149: 0
I150: 14 | J150: 8 | K150: 1 | L150: 0 | M150: 0 | N150: 0 | O150: 0 | P150: 0 | Q150: 0 | R150: 0 | S150: 0 | T150: 0 | U150: 0 | V150: 0 | W150: 0 | X150: 0
I151: 15 | J151: 1 | K151: 0 | L151: 8 | M151: 0 | N151: 0 | O151: 0 | P151: 0 | Q151: 0 | R151: 0 | S151: 0 | T151: 0 | U151: 0 | V151: 0 | W151: 0 | X151: 7
I152: 16 | J152: 0 | K152: 0 | L152: 0 | M152: 0 | N152: 0 | O152: 0 | P152: 0 | Q152: 0 | R152: 1 | S152: 0 | T152: 0 | U152: 0 | V152: 0 | W152: 0 | X152: 0
I153: 17 | J153: 0 | K153: 0 | L153: 3 | M153: 0 | N153: 0 | O153: 6 | P153: 0 | Q153: 0 | R153: 2 | S153: 0 | T153: 0 | U153: 0 | V153: 0 | W153: 0 | X153: 0
I154: 18 | J154: 0 | K154: 0 | L154: 0 | M154: 0 | N154: 0 | O154: 0 | P154: 0 | Q154: 0 | R154: 0 | S154: 0 | T154: 0 | U154: 0 | V154: 0 | W154: 0 | X154: 0
I155: 19 | J155: 13 | K155: 0 | L155: 0 | M155: 0 | N155: 0 | O155: 0 | P155: 0 | Q155: 0 | R155: 0 | S155: 0 | T155: 0 | U155: 0 | V155: 0 | W155: 0 | X155: 0
H156: avg 10 min | I156: 140 | J156: =SUM(J146:J155) -> 41 | K156: 10 | L156: 11 | M156: 0 | N156: 0 | O156: 23 | P156: 0 | Q156: 0 | R156: 3 | S156: 0 | T156: 0 | U156: 0 | V156: 0 | W156: 6 | X156: 7
I157: 20 | J157: 0 | K157: 0 | L157: 0 | M157: 0 | N157: 0 | O157: 0 | P157: 0 | Q157: 0 | R157: 0 | S157: 0 | T157: 0 | U157: 0 | V157: 0 | W157: 0 | X157: 0
I158: 21 | J158: 0 | K158: 0 | L158: 0 | M158: 0 | N158: 0 | O158: 0 | P158: 0 | Q158: 0 | R158: 0 | S158: 0 | T158: 0 | U158: 0 | V158: 0 | W158: 0 | X158: 0
I159: 22 | J159: 0 | K159: 2 | L159: 0 | M159: 0 | N159: 0 | O159: 0 | P159: 0 | Q159: 0 | R159: 5 | S159: 0 | T159: 0 | U159: 0 | V159: 0 | W159: 0 | X159: 0
I160: 23 | J160: 19 | K160: 0 | L160: 0 | M160: 0 | N160: 0 | O160: 0 | P160: 0 | Q160: 0 | R160: 8 | S160: 0 | T160: 0 | U160: 0 | V160: 0 | W160: 0 | X160: 0
I161: 24 | J161: 8 | K161: 0 | L161: 0 | M161: 0 | N161: 0 | O161: 0 | P161: 0 | Q161: 0 | R161: 7 | S161: 0 | T161: 0 | U161: 0 | V161: 0 | W161: 0 | X161: 16
I162: 25 | J162: 18 | K162: 0 | L162: 0 | M162: 0 | N162: 0 | O162: 0 | P162: 0 | Q162: 0 | R162: 3 | S162: 0 | T162: 0 | U162: 0 | V162: 0 | W162: 0 | X162: 15
I163: 26 | J163: 19 | K163: 0 | L163: 0 | M163: 0 | N163: 0 | O163: 0 | P163: 0 | Q163: 0 | R163: 8 | S163: 0 | T163: 0 | U163: 0 | V163: 0 | W163: 0 | X163: 15
I164: 27 | J164: 10 | K164: 0 | L164: 0 | M164: 0 | N164: 0 | O164: 0 | P164: 0 | Q164: 0 | R164: 0 | S164: 0 | T164: 0 | U164: 0 | V164: 0 | W164: 0 | X164: 3
I165: 28 | J165: 0 | K165: 2 | L165: 0 | M165: 0 | N165: 0 | O165: 0 | P165: 0 | Q165: 0 | R165: 0 | S165: 0 | T165: 0 | U165: 0 | V165: 0 | W165: 0 | X165: 0
I166: 29 | J166: 0 | K166: 0 | L166: 0 | M166: 0 | N166: 0 | O166: 0 | P166: 0 | Q166: 0 | R166: 0 | S166: 0 | T166: 0 | U166: 0 | V166: 0 | W166: 0 | X166: 0
H167: avg 10 min | I167: 150 | J167: =SUM(J157:J166) -> 74 | K167: 4 | L167: 0 | M167: 0 | N167: 0 | O167: 0 | P167: 0 | Q167: 0 | R167: 31 | S167: 0 | T167: 0 | U167: 0 | V167: 0 | W167: 0 | X167: 49
I168: 0 | J168: 0 | K168: 0 | L168: 0 | M168: 0 | N168: 0 | O168: 0 | P168: 0 | Q168: 0 | R168: 14 | S168: 0 | T168: 0 | U168: 0 | V168: 0 | W168: 0 | X168: 4
I169: 1 | J169: 0 | K169: 0 | L169: 0 | M169: 7 | N169: 0 | O169: 0 | P169: 0 | Q169: 0 | R169: 0 | S169: 0 | T169: 0 | U169: 0 | V169: 0 | W169: 0 | X169: 0
I170: 2 | J170: 0 | K170: 0 | L170: 0 | M170: 0 | N170: 0 | O170: 0 | P170: 0 | Q170: 0 | R170: 0 | S170: 0 | T170: 0 | U170: 0 | V170: 0 | W170: 0 | X170: 0
I171: 3 | J171: 0 | K171: 0 | L171: 0 | M171: 14 | N171: 0 | O171: 0 | P171: 0 | Q171: 0 | R171: 0 | S171: 0 | T171: 0 | U171: 0 | V171: 2 | W171: 0 | X171: 0
I172: 4 | J172: 0 | K172: 0 | L172: 0 | M172: 0 | N172: 0 | O172: 0 | P172: 0 | Q172: 0 | R172: 8 | S172: 0 | T172: 0 | U172: 0 | V172: 3 | W172: 0 | X172: 11
I173: 5 | J173: 0 | K173: 0 | L173: 0 | M173: 12 | N173: 0 | O173: 0 | P173: 0 | Q173: 0 | R173: 6 | S173: 0 | T173: 0 | U173: 0 | V173: 0 | W173: 0 | X173: 0
I174: 6 | J174: 0 | K174: 0 | L174: 3 | M174: 0 | N174: 0 | O174: 0 | P174: 0 | Q174: 0 | R174: 4 | S174: 0 | T174: 0 | U174: 0 | V174: 0 | W174: 0 | X174: 0
I175: 7 | J175: 0 | K175: 0 | L175: 0 | M175: 0 | N175: 0 | O175: 0 | P175: 0 | Q175: 0 | R175: 6 | S175: 0 | T175: 0 | U175: 0 | V175: 0 | W175: 0 | X175: 0
I176: 8 | J176: 0 | K176: 0 | L176: 11 | M176: 8 | N176: 0 | O176: 0 | P176: 0 | Q176: 0 | R176: 7 | S176: 0 | T176: 0 | U176: 0 | V176: 0 | W176: 0 | X176: 1
I177: 9 | J177: 0 | K177: 0 | L177: 3 | M177: 0 | N177: 0 | O177: 0 | P177: 0 | Q177: 0 | R177: 0 | S177: 0 | T177: 0 | U177: 0 | V177: 0 | W177: 1 | X177: 0
H178: avg 10 min | I178: 160 | J178: =SUM(J168:J177) -> 0 | K178: 0 | L178: 17 | M178: 41 | N178: 0 | O178: 0 | P178: 0 | Q178: 0 | R178: 45 | S178: 0 | T178: 0 | U178: 0 | V178: 5 | W178: 1 | X178: 16
I179: 10 | J179: 0 | K179: 0 | L179: 0 | M179: 0 | N179: 2 | O179: 0 | P179: 0 | Q179: 0 | R179: 0 | S179: 0 | T179: 0 | U179: 0 | V179: 0 | W179: 0 | X179: 15
I180: 11 | J180: 0 | K180: 0 | L180: 0 | M180: 14 | N180: 0 | O180: 9 | P180: 0 | Q180: 0 | R180: 0 | S180: 0 | T180: 0 | U180: 0 | V180: 0 | W180: 0 | X180: 0
I181: 12 | J181: 0 | K181: 0 | L181: 0 | M181: 0 | N181: 0 | O181: 3 | P181: 0 | Q181: 0 | R181: 0 | S181: 0 | T181: 0 | U181: 0 | V181: 0 | W181: 0 | X181: 2
I182: 13 | J182: 0 | K182: 0 | L182: 0 | M182: 0 | N182: 0 | O182: 0 | P182: 0 | Q182: 0 | R182: 3 | S182: 0 | T182: 0 | U182: 0 | V182: 0 | W182: 0 | X182: 1
I183: 14 | J183: 0 | K183: 0 | L183: 0 | M183: 0 | N183: 0 | O183: 0 | P183: 0 | Q183: 0 | R183: 0 | S183: 0 | T183: 0 | U183: 0 | V183: 0 | W183: 0 | X183: 0
I184: 15 | J184: 0 | K184: 0 | L184: 0 | M184: 0 | N184: 0 | O184: 8 | P184: 0 | Q184: 0 | R184: 0 | S184: 0 | T184: 0 | U184: 0 | V184: 0 | W184: 0 | X184: 0
I185: 16 | J185: 0 | K185: 0 | L185: 0 | M185: 0 | N185: 0 | O185: 20 | P185: 0 | Q185: 0 | R185: 0 | S185: 0 | T185: 0 | U185: 0 | V185: 0 | W185: 0 | X185: 0
I186: 17 | J186: 0 | K186: 4 | L186: 9 | M186: 0 | N186: 0 | O186: 0 | P186: 0 | Q186: 0 | R186: 0 | S186: 0 | T186: 0 | U186: 0 | V186: 0 | W186: 0 | X186: 0
I187: 18 | J187: 0 | K187: 3 | L187: 0 | M187: 0 | N187: 0 | O187: 0 | P187: 0 | Q187: 0 | R187: 0 | S187: 0 | T187: 0 | U187: 0 | V187: 0 | W187: 0 | X187: 0
I188: 19 | J188: 0 | K188: 0 | L188: 0 | M188: 0 | N188: 0 | O188: 0 | P188: 0 | Q188: 0 | R188: 0 | S188: 0 | T188: 0 | U188: 0 | V188: 0 | W188: 0 | X188: 0
H189: avg 10 min | I189: 170 | J189: =SUM(J179:J188) -> 0 | K189: 7 | L189: 9 | M189: 14 | N189: 2 | O189: 40 | P189: 0 | Q189: 0 | R189: 3 | S189: 0 | T189: 0 | U189: 0 | V189: 0 | W189: 0 | X189: 18
I190: 20 | J190: 0 | K190: 0 | L190: 0 | M190: 0 | N190: 0 | O190: 3 | P190: 0 | Q190: 0 | R190: 0 | S190: 0 | T190: 0 | U190: 16 | V190: 0 | W190: 0 | X190: 0
I191: 21 | J191: 0 | K191: 0 | L191: 0 | M191: 0 | N191: 0 | O191: 3 | P191: 0 | Q191: 0 | R191: 10 | S191: 0 | T191: 0 | U191: 28 | V191: 1 | W191: 0 | X191: 0
I192: 22 | J192: 0 | K192: 0 | L192: 0 | M192: 0 | N192: 0 | O192: 6 | P192: 0 | Q192: 0 | R192: 7 | S192: 0 | T192: 0 | U192: 0 | V192: 0 | W192: 0 | X192: 0
I193: 23 | J193: 0 | K193: 0 | L193: 0 | M193: 0 | N193: 0 | O193: 18 | P193: 0 | Q193: 0 | R193: 13 | S193: 0 | T193: 0 | U193: 19 | V193: 0 | W193: 0 | X193: 0
I194: 24 | J194: 0 | K194: 0 | L194: 4 | M194: 0 | N194: 0 | O194: 12 | P194: 0 | Q194: 0 | R194: 5 | S194: 0 | T194: 0 | U194: 0 | V194: 0 | W194: 0 | X194: 0
I195: 25 | J195: 0 | K195: 0 | L195: 0 | M195: 0 | N195: 0 | O195: 0 | P195: 0 | Q195: 0 | R195: 1 | S195: 0 | T195: 0 | U195: 0 | V195: 0 | W195: 0 | X195: 0
I196: 26 | J196: 0 | K196: 0 | L196: 5 | M196: 0 | N196: 0 | O196: 0 | P196: 0 | Q196: 0 | R196: 0 | S196: 0 | T196: 0 | U196: 0 | V196: 0 | W196: 0 | X196: 0
I197: 27 | J197: 0 | K197: 0 | L197: 0 | M197: 0 | N197: 0 | O197: 0 | P197: 0 | Q197: 0 | R197: 0 | S197: 1 | T197: 0 | U197: 0 | V197: 0 | W197: 0 | X197: 0
I198: 28 | J198: 14 | K198: 0 | L198: 0 | M198: 0 | N198: 0 | O198: 8 | P198: 0 | Q198: 0 | R198: 0 | S198: 16 | T198: 0 | U198: 0 | V198: 0 | W198: 0 | X198: 0
I199: 29 | J199: 0 | K199: 0 | L199: 0 | M199: 0 | N199: 0 | O199: 3 | P199: 0 | Q199: 0 | R199: 19 | S199: 0 | T199: 0 | U199: 0 | V199: 0 | W199: 0 | X199: 0
H200: avg 10 min | I200: 180 | J200: =SUM(J190:J199) -> 14 | K200: 0 | L200: 9 | M200: 0 | N200: 0 | O200: 53 | P200: 0 | Q200: 0 | R200: 55 | S200: 17 | T200: 0 | U200: 63 | V200: 1 | W200: 0 | X200: 0
... 66 more rows

Sheet 3g
A1: α5
B2: time | C2: vehicle | E2: DZP | I2: treat | J2: D | K2: V | L2: D | M2: V | N2: D | O2: V | P2: V | Q2: D | R2: V | S2: D | T2: D | U2: V | V2: D | W2: V | X2: D | Y2: V
B3: 10 | C3: 47.25 | D3: 12.26165626 | E3: 23.75 | F3: 6.241422686 | I3: 0 | J3: 0 | K3: 9 | L3: 0 | M3: 0 | N3: 0 | O3: 2 | P3: 1 | Q3: 1 | R3: 0 | S3: 0 | T3: 0 | U3: 7 | V3: 0 | W3: 0 | X3: 0 | Y3: 1
B4: 20 | C4: 71.625 | D4: 20.33288812 | E4: 51.25 | F4: 11.16395667 | I4: 1 | J4: 0 | K4: 10 | L4: 0 | M4: 0 | N4: 1 | O4: 12 | P4: 3 | Q4: 0 | R4: 1 | S4: 0 | T4: 3 | U4: 16 | V4: 0 | W4: 0 | X4: 0 | Y4: 0
B5: 30 | C5: 75.75 | D5: 10.01917804 | E5: 30.875 | F5: 9.042434683 | I5: 2 | J5: 0 | K5: 20 | L5: 4 | M5: 15 | N5: 3 | O5: 9 | P5: 1 | Q5: 2 | R5: 1 | S5: 5 | T5: 4 | U5: 8 | V5: 0 | W5: 1 | X5: 0 | Y5: 2
B6: 40 | C6: 66.875 | D6: 17.83499519 | E6: 21.25 | F6: 6.405215509 | I6: 3 | J6: 0 | K6: 11 | L6: 0 | M6: 0 | N6: 0 | O6: 5 | P6: 1 | Q6: 0 | R6: 0 | S6: 0 | T6: 4 | U6: 0 | V6: 1 | W6: 0 | X6: 0 | Y6: 0
B7: 50 | C7: 67.625 | D7: 15.10550692 | E7: 26.75 | F7: 8.278090705 | I7: 4 | J7: 2 | K7: 0 | L7: 3 | M7: 21 | N7: 3 | O7: 8 | P7: 4 | Q7: 8 | R7: 0 | S7: 0 | T7: 2 | U7: 2 | V7: 0 | W7: 0 | X7: 0 | Y7: 0
B8: 60 | C8: 53.375 | D8: 15.17509414 | E8: 21.625 | F8: 8.396294889 | I8: 5 | J8: 0 | K8: 17 | L8: 5 | M8: 5 | N8: 0 | O8: 0 | P8: 0 | Q8: 3 | R8: 7 | S8: 1 | T8: 3 | U8: 3 | V8: 0 | W8: 0 | X8: 0 | Y8: 0
B9: 70 | C9: 33.125 | D9: 12.93726277 | E9: 21.25 | F9: 8.987590651 | I9: 6 | J9: 0 | K9: 11 | L9: 1 | M9: 0 | N9: 0 | O9: 9 | P9: 16 | Q9: 0 | R9: 10 | S9: 12 | T9: 3 | U9: 0 | V9: 0 | W9: 0 | X9: 0 | Y9: 0
B10: 80 | C10: 53 | D10: 13.26380682 | E10: 25.875 | F10: 9.070039967 | I10: 7 | J10: 4 | K10: 8 | L10: 1 | M10: 13 | N10: 7 | O10: 5 | P10: 0 | Q10: 0 | R10: 5 | S10: 2 | T10: 4 | U10: 0 | V10: 0 | W10: 0 | X10: 0 | Y10: 0
B11: 90 | C11: 32.375 | D11: 10.4127969 | E11: 11.75 | F11: 5.463351928 | I11: 8 | J11: 23 | K11: 4 | L11: 3 | M11: 9 | N11: 0 | O11: 8 | P11: 9 | Q11: 3 | R11: 8 | S11: 5 | T11: 3 | U11: 0 | V11: 2 | W11: 1 | X11: 0 | Y11: 0
B12: 100 | C12: 18.75 | D12: 10.61795985 | E12: 11 | F12: 5.532372263 | I12: 9 | J12: 23 | K12: 23 | L12: 1 | M12: 1 | N12: 16 | O12: 7 | P12: 5 | Q12: 0 | R12: 15 | S12: 7 | T12: 12 | U12: 0 | V12: 0 | W12: 4 | X12: 0 | Y12: 4 | AD12: D | AE12: V | AF12: D | AG12: V | AH12: D | AI12: V | AJ12: V | AK12: D | AL12: V | AM12: D | AN12: D | AO12: V | AP12: D | AQ12: V | AR12: D | AS12: V
B13: 110 | C13: 35.75 | D13: 11.76822295 | E13: 13.125 | F13: 6.308830263 | H13: avg 10 min | I13: 10 | J13: =SUM(J3:J12) -> 52 | K13: =SUM(K3:K12) -> 113 | L13: 18 | M13: 64 | N13: 30 | O13: 65 | P13: 40 | Q13: 17 | R13: 47 | S13: 32 | T13: 38 | U13: 36 | V13: 3 | W13: 6 | X13: 0 | Y13: 7 | AC13: =I13 -> 10 | AD13: =J13 -> 52 | AE13: =K13 -> 113 | AF13: 18 | AG13: 64 | AH13: 30 | AI13: 65 | AJ13: 40 | AK13: 17 | AL13: 47 | AM13: 32 | AN13: 38 | AO13: 36 | AP13: 3 | AQ13: 6 | AR13: 0 | AS13: 7
B14: 120 | C14: 36.125 | D14: 13.06089789 | E14: 26.625 | F14: 8.254733491 | I14: 10 | J14: 7 | K14: 14 | L14: 7 | M14: 0 | N14: 6 | O14: 2 | P14: 12 | Q14: 11 | R14: 8 | S14: 6 | T14: 7 | U14: 14 | V14: 2 | W14: 0 | X14: 0 | Y14: 0 | AC14: =I24 -> 20 | AD14: =J24 -> 42 | AE14: =K24 -> 112 | AF14: 17 | AG14: 181 | AH14: 104 | AI14: 53 | AJ14: 98 | AK14: 48 | AL14: 68 | AM14: 79 | AN14: 72 | AO14: 25 | AP14: 35 | AQ14: 1 | AR14: 13 | AS14: 35
B15: 130 | C15: 10.75 | D15: 8.871603978 | E15: 21.75 | F15: 9.342204543 | I15: 11 | J15: 1 | K15: 23 | L15: 0 | M15: 7 | N15: 21 | O15: 6 | P15: 24 | Q15: 2 | R15: 4 | S15: 13 | T15: 10 | U15: 1 | V15: 0 | W15: 0 | X15: 0 | Y15: 1 | AC15: =I35 -> 30 | AD15: =J35 -> 23 | AE15: =K35 -> 103 | AF15: 9 | AG15: 100 | AH15: 74 | AI15: 76 | AJ15: 47 | AK15: 17 | AL15: 49 | AM15: 56 | AN15: 50 | AO15: 105 | AP15: 5 | AQ15: 35 | AR15: 13 | AS15: 91
B16: 140 | C16: 21.625 | D16: 11.31203136 | E16: 17.125 | F16: 5.491673893 | I16: 12 | J16: 1 | K16: 2 | L16: 0 | M16: 12 | N16: 0 | O16: 7 | P16: 9 | Q16: 2 | R16: 15 | S16: 8 | T16: 0 | U16: 0 | V16: 0 | W16: 0 | X16: 0 | Y16: 2 | AC16: =I46 -> 40 | AD16: =J46 -> 1 | AE16: =K46 -> 147 | AF16: 32 | AG16: 83 | AH16: 27 | AI16: 69 | AJ16: 97 | AK16: 14 | AL16: 101 | AM16: 34 | AN16: 52 | AO16: 19 | AP16: 10 | AQ16: 0 | AR16: 0 | AS16: 19
B17: 150 | C17: 31.75 | D17: 12.77099112 | E17: 10.375 | F17: 5.226776868 | I17: 13 | J17: 2 | K17: 4 | L17: 0 | M17: 11 | N17: 8 | O17: 8 | P17: 5 | Q17: 1 | R17: 10 | S17: 10 | T17: 10 | U17: 2 | V17: 0 | W17: 0 | X17: 0 | Y17: 10 | AC17: =I57 -> 50 | AD17: =J57 -> 23 | AE17: =K57 -> 113 | AF17: 60 | AG17: 71 | AH17: 63 | AI17: 52 | AJ17: 94 | AK17: 17 | AL17: 118 | AM17: 2 | AN17: 21 | AO17: 77 | AP17: 27 | AQ17: 4 | AR17: 1 | AS17: 12
B18: 160 | C18: 23.5 | D18: 7.063487605 | E18: 12.75 | F18: 4.262586405 | I18: 14 | J18: 1 | K18: 0 | L18: 0 | M18: 5 | N18: 11 | O18: 0 | P18: 19 | Q18: 0 | R18: 7 | S18: 8 | T18: 4 | U18: 2 | V18: 0 | W18: 0 | X18: 13 | Y18: 11 | AC18: =I68 -> 60 | AD18: =J68 -> 32 | AE18: =K68 -> 86 | AF18: 7 | AG18: 92 | AH18: 1 | AI18: 66 | AJ18: 11 | AK18: 40 | AL18: 113 | AM18: 13 | AN18: 69 | AO18: 0 | AP18: 2 | AQ18: 9 | AR18: 9 | AS18: 50
B19: 170 | C19: 43.25 | D19: 9.029218444 | E19: 26.375 | F19: 9.61386183 | I19: 15 | J19: 10 | K19: 20 | L19: 2 | M19: 15 | N19: 8 | O19: 1 | P19: 0 | Q19: 7 | R19: 7 | S19: 6 | T19: 3 | U19: 6 | V19: 0 | W19: 0 | X19: 0 | Y19: 0 | AC19: =I79 -> 70 | AD19: =J79 -> 41 | AE19: =K79 -> 90 | AF19: 0 | AG19: 71 | AH19: 54 | AI19: 61 | AJ19: 35 | AK19: 1 | AL19: 0 | AM19: 57 | AN19: 0 | AO19: 8 | AP19: 17 | AQ19: 0 | AR19: 0 | AS19: 0
B20: 180 | C20: 37.125 | D20: 11.86597401 | E20: 11.625 | F20: 5.264223929 | I20: 16 | J20: 7 | K20: 7 | L20: 0 | M20: 87 | N20: 9 | O20: 16 | P20: 5 | Q20: 0 | R20: 1 | S20: 9 | T20: 21 | U20: 0 | V20: 0 | W20: 0 | X20: 0 | Y20: 0 | AC20: =I90 -> 80 | AD20: =J90 -> 0 | AE20: =K90 -> 89 | AF20: 15 | AG20: 93 | AH20: 48 | AI20: 88 | AJ20: 56 | AK20: 35 | AL20: 43 | AM20: 69 | AN20: 38 | AO20: 55 | AP20: 0 | AQ20: 0 | AR20: 2 | AS20: 0
B21: 190 | C21: 21.625 | D21: 8.411169232 | E21: 19.5 | F21: 8.020064125 | I21: 17 | J21: 10 | K21: 14 | L21: 0 | M21: 9 | N21: 12 | O21: 11 | P21: 15 | Q21: 8 | R21: 3 | S21: 7 | T21: 8 | U21: 0 | V21: 12 | W21: 0 | X21: 0 | Y21: 0 | AC21: =I101 -> 90 | AD21: =J101 -> 13 | AE21: =K101 -> 71 | AF21: 0 | AG21: 62 | AH21: 22 | AI21: 56 | AJ21: 8 | AK21: 0 | AL21: 46 | AM21: 7 | AN21: 45 | AO21: 0 | AP21: 0 | AQ21: 0 | AR21: 7 | AS21: 16
B22: 200 | C22: 24.625 | D22: 10.49138677 | E22: 11 | F22: 6.085697518 | I22: 18 | J22: 3 | K22: 17 | L22: 3 | M22: 17 | N22: 19 | O22: 0 | P22: 6 | Q22: 12 | R22: 3 | S22: 8 | T22: 3 | U22: 0 | V22: 16 | W22: 1 | X22: 0 | Y22: 0 | AC22: =I112 -> 100 | AD22: =J112 -> 10 | AE22: =K112 -> 0 | AF22: 45 | AG22: 78 | AH22: 19 | AI22: 0 | AJ22: 0 | AK22: 0 | AL22: 51 | AM22: 0 | AN22: 14 | AO22: 21 | AP22: 0 | AQ22: 0 | AR22: 0 | AS22: 0
B23: 210 | C23: 29.625 | D23: 12.02814779 | E23: 21.875 | F23: 7.929235011 | I23: 19 | J23: 0 | K23: 11 | L23: 5 | M23: 18 | N23: 10 | O23: 2 | P23: 3 | Q23: 5 | R23: 10 | S23: 4 | T23: 6 | U23: 0 | V23: 5 | W23: 0 | X23: 0 | Y23: 11 | AC23: =I123 -> 110 | AD23: =J123 -> 30 | AE23: =K123 -> 51 | AF23: 32 | AG23: 78 | AH23: 41 | AI23: 83 | AJ23: 5 | AK23: 0 | AL23: 35 | AM23: 0 | AN23: 1 | AO23: 34 | AP23: 0 | AQ23: 0 | AR23: 1 | AS23: 0
B24: 220 | C24: 25.75 | D24: 10.06008733 | E24: 6.625 | F24: 5.341674096 | H24: avg 10 min | I24: 20 | J24: =SUM(J14:J23) -> 42 | K24: =SUM(K14:K23) -> 112 | L24: 17 | M24: 181 | N24: 104 | O24: 53 | P24: 98 | Q24: 48 | R24: 68 | S24: 79 | T24: 72 | U24: 25 | V24: 35 | W24: 1 | X24: 13 | Y24: =SUM(Y14:Y23) -> 35 | AC24: =I134 -> 120 | AD24: =J134 -> 54 | AE24: =K134 -> 102 | AF24: 43 | AG24: 28 | AH24: 11 | AI24: 56 | AJ24: 17 | AK24: 36 | AL24: 0 | AM24: 13 | AN24: 56 | AO24: 0 | AP24: 0 | AQ24: 72 | AR24: 0 | AS24: 14
B25: 230 | C25: 20.125 | D25: 8.069867896 | E25: 23.25 | F25: 9.193844991 | I25: 20 | J25: 0 | K25: 17 | L25: 2 | M25: 6 | N25: 19 | O25: 0 | P25: 6 | Q25: 8 | R25: 4 | S25: 0 | T25: 2 | U25: 8 | V25: 0 | W25: 0 | X25: 0 | Y25: 22 | AC25: =I145 -> 130 | AD25: =J145 -> 11 | AE25: =K145 -> 72 | AF25: 5 | AG25: 0 | AH25: 31 | AI25: 12 | AJ25: 0 | AK25: 0 | AL25: 0 | AM25: 68 | AN25: 0 | AO25: 0 | AP25: 54 | AQ25: 2 | AR25: 5 | AS25: 0
B26: 240 | C26: 15.75 | D26: 8.410771155 | E26: 19.75 | F26: 9.607939425 | I26: 21 | J26: 3 | K26: 15 | L26: 0 | M26: 27 | N26: 16 | O26: 0 | P26: 4 | Q26: 3 | R26: 6 | S26: 1 | T26: 19 | U26: 15 | V26: 0 | W26: 0 | X26: 0 | Y26: 31 | AC26: =I156 -> 140 | AD26: =J156 -> 21 | AE26: =K156 -> 85 | AF26: 20 | AG26: 0 | AH26: 23 | AI26: 3 | AJ26: 48 | AK26: 1 | AL26: 0 | AM26: 30 | AN26: 0 | AO26: 0 | AP26: 42 | AQ26: 0 | AR26: 0 | AS26: 37
I27: 22 | J27: 0 | K27: 11 | L27: 0 | M27: 10 | N27: 9 | O27: 15 | P27: 3 | Q27: 2 | R27: 6 | S27: 1 | T27: 16 | U27: 2 | V27: 0 | W27: 0 | X27: 0 | Y27: 1 | AC27: =I167 -> 150 | AD27: =J167 -> 35 | AE27: =K167 -> 85 | AF27: 14 | AG27: 39 | AH27: 31 | AI27: 64 | AJ27: 66 | AK27: 0 | AL27: 0 | AM27: 0 | AN27: 0 | AO27: 0 | AP27: 0 | AQ27: 0 | AR27: 3 | AS27: 0
I28: 23 | J28: 8 | K28: 19 | L28: 0 | M28: 16 | N28: 5 | O28: 12 | P28: 2 | Q28: 4 | R28: 1 | S28: 1 | T28: 6 | U28: 6 | V28: 0 | W28: 0 | X28: 1 | Y28: 0 | AC28: =I178 -> 160 | AD28: =J178 -> 18 | AE28: =K178 -> 3 | AF28: 15 | AG28: 40 | AH28: 30 | AI28: 41 | AJ28: 19 | AK28: 9 | AL28: 52 | AM28: 0 | AN28: 28 | AO28: 29 | AP28: 0 | AQ28: 4 | AR28: 2 | AS28: 0
I29: 24 | J29: 11 | K29: 13 | L29: 0 | M29: 0 | N29: 2 | O29: 9 | P29: 2 | Q29: 0 | R29: 2 | S29: 1 | T29: 2 | U29: 0 | V29: 0 | W29: 0 | X29: 2 | Y29: 2 | AC29: =I189 -> 170 | AD29: =J189 -> 44 | AE29: =K189 -> 78 | AF29: 27 | AG29: 46 | AH29: 15 | AI29: 18 | AJ29: 1 | AK29: 71 | AL29: 50 | AM29: 0 | AN29: 53 | AO29: 45 | AP29: 0 | AQ29: 72 | AR29: 1 | AS29: 36
I30: 25 | J30: 0 | K30: 4 | L30: 0 | M30: 13 | N30: 2 | O30: 10 | P30: 0 | Q30: 0 | R30: 7 | S30: 25 | T30: 1 | U30: 2 | V30: 0 | W30: 29 | X30: 2 | Y30: 17 | AC30: =I200 -> 180 | AD30: =J200 -> 12 | AE30: =K200 -> 15 | AF30: 22 | AG30: 47 | AH30: 41 | AI30: 16 | AJ30: 0 | AK30: 18 | AL30: 70 | AM30: 0 | AN30: 0 | AO30: 64 | AP30: 0 | AQ30: 0 | AR30: 0 | AS30: 85
I31: 26 | J31: 1 | K31: 8 | L31: 0 | M31: 17 | N31: 10 | O31: 0 | P31: 0 | Q31: 0 | R31: 8 | S31: 9 | T31: 0 | U31: 20 | V31: 4 | W31: 5 | X31: 8 | Y31: 18 | AC31: =I211 -> 190 | AD31: =J211 -> 28 | AE31: =K211 -> 19 | AF31: 41 | AG31: 63 | AH31: 21 | AI31: 0 | AJ31: 0 | AK31: 1 | AL31: 52 | AM31: 4 | AN31: 61 | AO31: 13 | AP31: 0 | AQ31: 22 | AR31: 0 | AS31: 4
I32: 27 | J32: 0 | K32: 4 | L32: 1 | M32: 7 | N32: 0 | O32: 12 | P32: 1 | Q32: 0 | R32: 8 | S32: 12 | T32: 0 | U32: 26 | V32: 0 | W32: 1 | X32: 0 | Y32: 0 | AC32: =I222 -> 200 | AD32: =J222 -> 10 | AE32: =K222 -> 31 | AF32: 0 | AG32: 71 | AH32: 33 | AI32: 65 | AJ32: 2 | AK32: 0 | AL32: 0 | AM32: 43 | AN32: 0 | AO32: 0 | AP32: 0 | AQ32: 0 | AR32: 2 | AS32: 28
I33: 28 | J33: 0 | K33: 11 | L33: 0 | M33: 0 | N33: 1 | O33: 14 | P33: 19 | Q33: 0 | R33: 6 | S33: 4 | T33: 0 | U33: 20 | V33: 1 | W33: 0 | X33: 0 | Y33: 0 | AC33: =I233 -> 210 | AD33: 4 | AE33: 86 | AF33: 25 | AG33: 49 | AH33: 32 | AI33: 11 | AJ33: 0 | AK33: 52 | AL33: 70 | AM33: 54 | AN33: 0 | AO33: 17 | AP33: 0 | AQ33: 0 | AR33: 8 | AS33: 4
I34: 29 | J34: 0 | K34: 1 | L34: 6 | M34: 4 | N34: 10 | O34: 4 | P34: 10 | Q34: 0 | R34: 1 | S34: 2 | T34: 4 | U34: 6 | V34: 0 | W34: 0 | X34: 0 | Y34: 0 | AC34: =I244 -> 220 | AD34: 0 | AE34: 42 | AF34: 0 | AG34: 62 | AH34: 10 | AI34: 60 | AJ34: 0 | AK34: 0 | AL34: 0 | AM34: 0 | AN34: 0 | AO34: 42 | AP34: 43 | AQ34: 0 | AR34: 0 | AS34: 0
H35: avg 10 min | I35: 30 | J35: =SUM(J25:J34) -> 23 | K35: =SUM(K25:K34) -> 103 | L35: 9 | M35: 100 | N35: 74 | O35: 76 | P35: 47 | Q35: 17 | R35: 49 | S35: 56 | T35: 50 | U35: 105 | V35: 5 | W35: 35 | X35: 13 | Y35: =SUM(Y25:Y34) -> 91 | AC35: =I255 -> 230 | AD35: 9 | AE35: 30 | AF35: 34 | AG35: 50 | AH35: 24 | AI35: 53 | AJ35: 0 | AK35: 0 | AL35: 1 | AM35: 0 | AN35: 38 | AO35: 0 | AP35: 76 | AQ35: 26 | AR35: 5 | AS35: 1
I36: 0 | J36: 0 | K36: 0 | L36: 11 | M36: 12 | N36: 8 | O36: 19 | P36: 17 | Q36: 0 | R36: 1 | S36: 8 | T36: 11 | U36: 0 | V36: 0 | W36: 0 | X36: 0 | Y36: 0 | AC36: =I266 -> 240 | AD36: 0 | AE36: 4 | AF36: 3 | AG36: 25 | AH36: 15 | AI36: 9 | AJ36: 70 | AK36: 36 | AL36: 18 | AM36: 0 | AN36: 18 | AO36: 0 | AP36: 80 | AQ36: 0 | AR36: 6 | AS36: 0
I37: 1 | J37: 0 | K37: 20 | L37: 11 | M37: 18 | N37: 1 | O37: 16 | P37: 20 | Q37: 0 | R37: 11 | S37: 13 | T37: 8 | U37: 1 | V37: 0 | W37: 0 | X37: 0 | Y37: 0
I38: 2 | J38: 0 | K38: 8 | L38: 5 | M38: 4 | N38: 1 | O38: 1 | P38: 11 | Q38: 0 | R38: 7 | S38: 7 | T38: 8 | U38: 14 | V38: 0 | W38: 0 | X38: 0 | Y38: 0
I39: 3 | J39: 0 | K39: 8 | L39: 2 | M39: 8 | N39: 0 | O39: 1 | P39: 7 | Q39: 2 | R39: 8 | S39: 4 | T39: 3 | U39: 1 | V39: 9 | W39: 0 | X39: 0 | Y39: 0
I40: 4 | J40: 0 | K40: 35 | L40: 2 | M40: 4 | N40: 3 | O40: 0 | P40: 3 | Q40: 4 | R40: 3 | S40: 0 | T40: 5 | U40: 2 | V40: 1 | W40: 0 | X40: 0 | Y40: 0
I41: 5 | J41: 0 | K41: 24 | L41: 1 | M41: 4 | N41: 3 | O41: 18 | P41: 16 | Q41: 0 | R41: 8 | S41: 1 | T41: 4 | U41: 0 | V41: 0 | W41: 0 | X41: 0 | Y41: 0
I42: 6 | J42: 0 | K42: 12 | L42: 0 | M42: 6 | N42: 5 | O42: 0 | P42: 14 | Q42: 7 | R42: 31 | S42: 1 | T42: 1 | U42: 0 | V42: 0 | W42: 0 | X42: 0 | Y42: 0
I43: 7 | J43: 0 | K43: 11 | L43: 0 | M43: 18 | N43: 6 | O43: 1 | P43: 1 | Q43: 0 | R43: 5 | S43: 0 | T43: 1 | U43: 1 | V43: 0 | W43: 0 | X43: 0 | Y43: 0
I44: 8 | J44: 0 | K44: 15 | L44: 0 | M44: 9 | N44: 0 | O44: 13 | P44: 0 | Q44: 1 | R44: 13 | S44: 0 | T44: 1 | U44: 0 | V44: 0 | W44: 0 | X44: 0 | Y44: 6
I45: 9 | J45: 1 | K45: 14 | L45: 0 | M45: 0 | N45: 0 | O45: 0 | P45: 8 | Q45: 0 | R45: 14 | S45: 0 | T45: 10 | U45: 0 | V45: 0 | W45: 0 | X45: 0 | Y45: 13
H46: avg 10 min | I46: 40 | J46: =SUM(J36:J45) -> 1 | K46: =SUM(K36:K45) -> 147 | L46: 32 | M46: 83 | N46: 27 | O46: 69 | P46: 97 | Q46: 14 | R46: 101 | S46: 34 | T46: 52 | U46: 19 | V46: 10 | W46: 0 | X46: 0 | Y46: =SUM(Y36:Y45) -> 19
I47: 10 | J47: 1 | K47: 0 | L47: 0 | M47: 0 | N47: 0 | O47: 24 | P47: 3 | Q47: 0 | R47: 14 | S47: 1 | T47: 10 | U47: 0 | V47: 0 | W47: 0 | X47: 0 | Y47: 8
I48: 11 | J48: 8 | K48: 9 | L48: 0 | M48: 11 | N48: 0 | O48: 1 | P48: 10 | Q48: 0 | R48: 16 | S48: 0 | T48: 8 | U48: 0 | V48: 0 | W48: 0 | X48: 0 | Y48: 3
I49: 12 | J49: 12 | K49: 14 | L49: 0 | M49: 3 | N49: 13 | O49: 16 | P49: 13 | Q49: 0 | R49: 16 | S49: 0 | T49: 0 | U49: 0 | V49: 0 | W49: 0 | X49: 0 | Y49: 1
I50: 13 | J50: 2 | K50: 29 | L50: 0 | M50: 19 | N50: 16 | O50: 10 | P50: 12 | Q50: 0 | R50: 1 | S50: 0 | T50: 0 | U50: 7 | V50: 0 | W50: 0 | X50: 0 | Y50: 0
I51: 14 | J51: 0 | K51: 15 | L51: 14 | M51: 1 | N51: 16 | O51: 0 | P51: 15 | Q51: 0 | R51: 8 | S51: 0 | T51: 0 | U51: 6 | V51: 0 | W51: 0 | X51: 0 | Y51: 0
I52: 15 | J52: 0 | K52: 9 | L52: 5 | M52: 0 | N52: 10 | O52: 1 | P52: 0 | Q52: 0 | R52: 20 | S52: 1 | T52: 0 | U52: 8 | V52: 13 | W52: 0 | X52: 0 | Y52: 0
I53: 16 | J53: 0 | K53: 14 | L53: 10 | M53: 2 | N53: 7 | O53: 0 | P53: 14 | Q53: 0 | R53: 4 | S53: 0 | T53: 0 | U53: 24 | V53: 6 | W53: 0 | X53: 0 | Y53: 0
I54: 17 | J54: 0 | K54: 6 | L54: 11 | M54: 18 | N54: 1 | O54: 0 | P54: 11 | Q54: 0 | R54: 0 | S54: 0 | T54: 0 | U54: 26 | V54: 0 | W54: 0 | X54: 0 | Y54: 0
I55: 18 | J55: 0 | K55: 11 | L55: 9 | M55: 14 | N55: 0 | O55: 0 | P55: 9 | Q55: 3 | R55: 11 | S55: 0 | T55: 0 | U55: 6 | V55: 8 | W55: 4 | X55: 1 | Y55: 0
I56: 19 | J56: 0 | K56: 6 | L56: 11 | M56: 3 | N56: 0 | O56: 0 | P56: 7 | Q56: 14 | R56: 28 | S56: 0 | T56: 3 | U56: 0 | V56: 0 | W56: 0 | X56: 0 | Y56: 0
H57: avg 10 min | I57: 50 | J57: =SUM(J47:J56) -> 23 | K57: =SUM(K47:K56) -> 113 | L57: 60 | M57: 71 | N57: 63 | O57: 52 | P57: 94 | Q57: 17 | R57: 118 | S57: 2 | T57: 21 | U57: 77 | V57: 27 | W57: 4 | X57: 1 | Y57: =SUM(Y47:Y56) -> 12
I58: 20 | J58: 0 | K58: 7 | L58: 4 | M58: 10 | N58: 0 | O58: 0 | P58: 4 | Q58: 0 | R58: 23 | S58: 0 | T58: 21 | U58: 0 | V58: 1 | W58: 8 | X58: 0 | Y58: 0
I59: 21 | J59: 0 | K59: 7 | L59: 0 | M59: 0 | N59: 0 | O59: 0 | P59: 1 | Q59: 17 | R59: 11 | S59: 0 | T59: 5 | U59: 0 | V59: 0 | W59: 0 | X59: 0 | Y59: 2
I60: 22 | J60: 0 | K60: 17 | L60: 0 | M60: 2 | N60: 0 | O60: 0 | P60: 3 | Q60: 9 | R60: 6 | S60: 0 | T60: 14 | U60: 0 | V60: 1 | W60: 1 | X60: 1 | Y60: 6
I61: 23 | J61: 0 | K61: 17 | L61: 0 | M61: 1 | N61: 0 | O61: 0 | P61: 0 | Q61: 9 | R61: 15 | S61: 0 | T61: 9 | U61: 0 | V61: 0 | W61: 0 | X61: 1 | Y61: 16
I62: 24 | J62: 0 | K62: 17 | L62: 3 | M62: 15 | N62: 0 | O62: 0 | P62: 0 | Q62: 5 | R62: 15 | S62: 0 | T62: 9 | U62: 0 | V62: 0 | W62: 0 | X62: 0 | Y62: 12
I63: 25 | J63: 0 | K63: 2 | L63: 0 | M63: 16 | N63: 0 | O63: 6 | P63: 0 | Q63: 0 | R63: 13 | S63: 0 | T63: 9 | U63: 0 | V63: 0 | W63: 0 | X63: 0 | Y63: 13
I64: 26 | J64: 0 | K64: 5 | L64: 0 | M64: 18 | N64: 0 | O64: 11 | P64: 0 | Q64: 0 | R64: 8 | S64: 0 | T64: 0 | U64: 0 | V64: 0 | W64: 0 | X64: 1 | Y64: 1
I65: 27 | J65: 7 | K65: 11 | L65: 0 | M65: 8 | N65: 1 | O65: 20 | P65: 0 | Q65: 0 | R65: 11 | S65: 0 | T65: 2 | U65: 0 | V65: 0 | W65: 0 | X65: 0 | Y65: 0
I66: 28 | J66: 18 | K66: 0 | L66: 0 | M66: 13 | N66: 0 | O66: 17 | P66: 0 | Q66: 0 | R66: 9 | S66: 2 | T66: 0 | U66: 0 | V66: 0 | W66: 0 | X66: 6 | Y66: 0
I67: 29 | J67: 7 | K67: 3 | L67: 0 | M67: 9 | N67: 0 | O67: 12 | P67: 3 | Q67: 0 | R67: 2 | S67: 11 | T67: 0 | U67: 0 | V67: 0 | W67: 0 | X67: 0 | Y67: 0
H68: avg 10 min | I68: 60 | J68: =SUM(J58:J67) -> 32 | K68: =SUM(K58:K67) -> 86 | L68: 7 | M68: 92 | N68: 1 | O68: 66 | P68: 11 | Q68: 40 | R68: 113 | S68: 13 | T68: 69 | U68: 0 | V68: 2 | W68: 9 | X68: 9 | Y68: =SUM(Y58:Y67) -> 50
I69: 0 | J69: 6 | K69: 5 | L69: 0 | M69: 2 | N69: 0 | O69: 24 | P69: 11 | Q69: 0 | R69: 0 | S69: 6 | T69: 0 | U69: 0 | V69: 0 | W69: 0 | X69: 0 | Y69: 0
I70: 1 | J70: 14 | K70: 19 | L70: 0 | M70: 15 | N70: 0 | O70: 0 | P70: 19 | Q70: 0 | R70: 0 | S70: 3 | T70: 0 | U70: 0 | V70: 0 | W70: 0 | X70: 0 | Y70: 0
I71: 2 | J71: 14 | K71: 11 | L71: 0 | M71: 21 | N71: 15 | O71: 14 | P71: 5 | Q71: 0 | R71: 0 | S71: 10 | T71: 0 | U71: 1 | V71: 0 | W71: 0 | X71: 0 | Y71: 0
I72: 3 | J72: 7 | K72: 3 | L72: 0 | M72: 6 | N72: 0 | O72: 3 | P72: 0 | Q72: 0 | R72: 0 | S72: 2 | T72: 0 | U72: 0 | V72: 4 | W72: 0 | X72: 0 | Y72: 0
I73: 4 | J73: 0 | K73: 3 | L73: 0 | M73: 15 | N73: 8 | O73: 5 | P73: 0 | Q73: 0 | R73: 0 | S73: 0 | T73: 0 | U73: 0 | V73: 0 | W73: 0 | X73: 0 | Y73: 0
I74: 5 | J74: 0 | K74: 0 | L74: 0 | M74: 0 | N74: 2 | O74: 0 | P74: 0 | Q74: 0 | R74: 0 | S74: 4 | T74: 0 | U74: 0 | V74: 6 | W74: 0 | X74: 0 | Y74: 0
I75: 6 | J75: 0 | K75: 12 | L75: 0 | M75: 3 | N75: 21 | O75: 1 | P75: 0 | Q75: 0 | R75: 0 | S75: 12 | T75: 0 | U75: 0 | V75: 6 | W75: 0 | X75: 0 | Y75: 0
I76: 7 | J76: 0 | K76: 15 | L76: 0 | M76: 0 | N76: 3 | O76: 0 | P76: 0 | Q76: 0 | R76: 0 | S76: 2 | T76: 0 | U76: 0 | V76: 1 | W76: 0 | X76: 0 | Y76: 0
I77: 8 | J77: 0 | K77: 5 | L77: 0 | M77: 5 | N77: 5 | O77: 7 | P77: 0 | Q77: 0 | R77: 0 | S77: 5 | T77: 0 | U77: 4 | V77: 0 | W77: 0 | X77: 0 | Y77: 0
I78: 9 | J78: 0 | K78: 17 | L78: 0 | M78: 4 | N78: 0 | O78: 7 | P78: 0 | Q78: 1 | R78: 0 | S78: 13 | T78: 0 | U78: 3 | V78: 0 | W78: 0 | X78: 0 | Y78: 0
H79: avg 10 min | I79: 70 | J79: =SUM(J69:J78) -> 41 | K79: =SUM(K69:K78) -> 90 | L79: 0 | M79: 71 | N79: 54 | O79: 61 | P79: 35 | Q79: 1 | R79: 0 | S79: 57 | T79: 0 | U79: 8 | V79: 17 | W79: 0 | X79: 0 | Y79: =SUM(Y69:Y78) -> 0
I80: 10 | J80: 0 | K80: 4 | L80: 0 | M80: 7 | N80: 0 | O80: 15 | P80: 3 | Q80: 2 | R80: 0 | S80: 0 | T80: 0 | U80: 4 | V80: 0 | W80: 0 | X80: 1 | Y80: 0
I81: 11 | J81: 0 | K81: 12 | L81: 0 | M81: 8 | N81: 2 | O81: 0 | P81: 0 | Q81: 6 | R81: 0 | S81: 10 | T81: 0 | U81: 3 | V81: 0 | W81: 0 | X81: 0 | Y81: 0
I82: 12 | J82: 0 | K82: 9 | L82: 0 | M82: 11 | N82: 0 | O82: 10 | P82: 11 | Q82: 0 | R82: 0 | S82: 9 | T82: 12 | U82: 27 | V82: 0 | W82: 0 | X82: 0 | Y82: 0
I83: 13 | J83: 0 | K83: 24 | L83: 10 | M83: 18 | N83: 0 | O83: 12 | P83: 11 | Q83: 10 | R83: 0 | S83: 26 | T83: 0 | U83: 3 | V83: 0 | W83: 0 | X83: 0 | Y83: 0
I84: 14 | J84: 0 | K84: 10 | L84: 5 | M84: 5 | N84: 0 | O84: 9 | P84: 0 | Q84: 1 | R84: 14 | S84: 2 | T84: 4 | U84: 8 | V84: 0 | W84: 0 | X84: 0 | Y84: 0
I85: 15 | J85: 0 | K85: 0 | L85: 0 | M85: 6 | N85: 14 | O85: 0 | P85: 4 | Q85: 13 | R85: 5 | S85: 8 | T85: 8 | U85: 10 | V85: 0 | W85: 0 | X85: 1 | Y85: 0
I86: 16 | J86: 0 | K86: 11 | L86: 0 | M86: 0 | N86: 14 | O86: 16 | P86: 1 | Q86: 3 | R86: 16 | S86: 3 | T86: 9 | U86: 0 | V86: 0 | W86: 0 | X86: 0 | Y86: 0
I87: 17 | J87: 0 | K87: 0 | L87: 0 | M87: 19 | N87: 5 | O87: 5 | P87: 7 | Q87: 0 | R87: 7 | S87: 3 | T87: 5 | U87: 0 | V87: 0 | W87: 0 | X87: 0 | Y87: 0
I88: 18 | J88: 0 | K88: 3 | L88: 0 | M88: 0 | N88: 1 | O88: 14 | P88: 17 | Q88: 0 | R88: 1 | S88: 2 | T88: 0 | U88: 0 | V88: 0 | W88: 0 | X88: 0 | Y88: 0
I89: 19 | J89: 0 | K89: 16 | L89: 0 | M89: 19 | N89: 12 | O89: 7 | P89: 2 | Q89: 0 | R89: 0 | S89: 6 | T89: 0 | U89: 0 | V89: 0 | W89: 0 | X89: 0 | Y89: 0
H90: avg 10 min | I90: 80 | J90: =SUM(J80:J89) -> 0 | K90: =SUM(K80:K89) -> 89 | L90: 15 | M90: 93 | N90: 48 | O90: 88 | P90: 56 | Q90: 35 | R90: 43 | S90: 69 | T90: 38 | U90: 55 | V90: 0 | W90: 0 | X90: 2 | Y90: =SUM(Y80:Y89) -> 0
I91: 20 | J91: 0 | K91: 0 | L91: 0 | M91: 18 | N91: 12 | O91: 0 | P91: 8 | Q91: 0 | R91: 0 | S91: 0 | T91: 14 | U91: 0 | V91: 0 | W91: 0 | X91: 2 | Y91: 0
I92: 21 | J92: 0 | K92: 0 | L92: 0 | M92: 5 | N92: 9 | O92: 5 | P92: 0 | Q92: 0 | R92: 1 | S92: 6 | T92: 10 | U92: 0 | V92: 0 | W92: 0 | X92: 2 | Y92: 0
I93: 22 | J93: 0 | K93: 14 | L93: 0 | M93: 1 | N93: 0 | O93: 4 | P93: 0 | Q93: 0 | R93: 2 | S93: 0 | T93: 13 | U93: 0 | V93: 0 | W93: 0 | X93: 2 | Y93: 0
I94: 23 | J94: 0 | K94: 20 | L94: 0 | M94: 0 | N94: 0 | O94: 1 | P94: 0 | Q94: 0 | R94: 5 | S94: 0 | T94: 5 | U94: 0 | V94: 0 | W94: 0 | X94: 0 | Y94: 14
I95: 24 | J95: 0 | K95: 8 | L95: 0 | M95: 0 | N95: 0 | O95: 6 | P95: 0 | Q95: 0 | R95: 11 | S95: 0 | T95: 2 | U95: 0 | V95: 0 | W95: 0 | X95: 1 | Y95: 2
I96: 25 | J96: 0 | K96: 0 | L96: 0 | M96: 0 | N96: 0 | O96: 15 | P96: 0 | Q96: 0 | R96: 17 | S96: 0 | T96: 1 | U96: 0 | V96: 0 | W96: 0 | X96: 0 | Y96: 0
I97: 26 | J97: 7 | K97: 0 | L97: 0 | M97: 0 | N97: 0 | O97: 16 | P97: 0 | Q97: 0 | R97: 10 | S97: 1 | T97: 0 | U97: 0 | V97: 0 | W97: 0 | X97: 0 | Y97: 0
I98: 27 | J98: 6 | K98: 13 | L98: 0 | M98: 0 | N98: 1 | O98: 9 | P98: 0 | Q98: 0 | R98: 0 | S98: 0 | T98: 0 | U98: 0 | V98: 0 | W98: 0 | X98: 0 | Y98: 0
I99: 28 | J99: 0 | K99: 0 | L99: 0 | M99: 14 | N99: 0 | O99: 0 | P99: 0 | Q99: 0 | R99: 0 | S99: 0 | T99: 0 | U99: 0 | V99: 0 | W99: 0 | X99: 0 | Y99: 0
I100: 29 | J100: 0 | K100: 16 | L100: 0 | M100: 24 | N100: 0 | O100: 0 | P100: 0 | Q100: 0 | R100: 0 | S100: 0 | T100: 0 | U100: 0 | V100: 0 | W100: 0 | X100: 0 | Y100: 0
H101: avg 10 min | I101: 90 | J101: =SUM(J91:J100) -> 13 | K101: =SUM(K91:K100) -> 71 | L101: 0 | M101: 62 | N101: 22 | O101: 56 | P101: 8 | Q101: 0 | R101: 46 | S101: 7 | T101: 45 | U101: 0 | V101: 0 | W101: 0 | X101: 7 | Y101: =SUM(Y91:Y100) -> 16
I102: 0 | J102: 1 | K102: 0 | L102: 0 | M102: 19 | N102: 0 | O102: 0 | P102: 0 | Q102: 0 | R102: 5 | S102: 0 | T102: 0 | U102: 0 | V102: 0 | W102: 0 | X102: 0 | Y102: 0
I103: 1 | J103: 0 | K103: 0 | L103: 0 | M103: 12 | N103: 0 | O103: 0 | P103: 0 | Q103: 0 | R103: 3 | S103: 0 | T103: 0 | U103: 0 | V103: 0 | W103: 0 | X103: 0 | Y103: 0
I104: 2 | J104: 0 | K104: 0 | L104: 0 | M104: 20 | N104: 0 | O104: 0 | P104: 0 | Q104: 0 | R104: 0 | S104: 0 | T104: 0 | U104: 0 | V104: 0 | W104: 0 | X104: 0 | Y104: 0
I105: 3 | J105: 0 | K105: 0 | L105: 13 | M105: 0 | N105: 0 | O105: 0 | P105: 0 | Q105: 0 | R105: 0 | S105: 0 | T105: 0 | U105: 0 | V105: 0 | W105: 0 | X105: 0 | Y105: 0
I106: 4 | J106: 0 | K106: 0 | L106: 4 | M106: 4 | N106: 0 | O106: 0 | P106: 0 | Q106: 0 | R106: 13 | S106: 0 | T106: 0 | U106: 0 | V106: 0 | W106: 0 | X106: 0 | Y106: 0
I107: 5 | J107: 0 | K107: 0 | L107: 4 | M107: 5 | N107: 0 | O107: 0 | P107: 0 | Q107: 0 | R107: 8 | S107: 0 | T107: 0 | U107: 0 | V107: 0 | W107: 0 | X107: 0 | Y107: 0
I108: 6 | J108: 0 | K108: 0 | L108: 17 | M108: 2 | N108: 0 | O108: 0 | P108: 0 | Q108: 0 | R108: 0 | S108: 0 | T108: 0 | U108: 0 | V108: 0 | W108: 0 | X108: 0 | Y108: 0
I109: 7 | J109: 9 | K109: 0 | L109: 5 | M109: 3 | N109: 1 | O109: 0 | P109: 0 | Q109: 0 | R109: 4 | S109: 0 | T109: 0 | U109: 15 | V109: 0 | W109: 0 | X109: 0 | Y109: 0
I110: 8 | J110: 0 | K110: 0 | L110: 2 | M110: 2 | N110: 9 | O110: 0 | P110: 0 | Q110: 0 | R110: 7 | S110: 0 | T110: 5 | U110: 1 | V110: 0 | W110: 0 | X110: 0 | Y110: 0
I111: 9 | J111: 0 | K111: 0 | L111: 0 | M111: 11 | N111: 9 | O111: 0 | P111: 0 | Q111: 0 | R111: 11 | S111: 0 | T111: 9 | U111: 5 | V111: 0 | W111: 0 | X111: 0 | Y111: 0
H112: avg 10 min | I112: 100 | J112: =SUM(J102:J111) -> 10 | K112: =SUM(K102:K111) -> 0 | L112: 45 | M112: 78 | N112: 19 | O112: 0 | P112: 0 | Q112: 0 | R112: 51 | S112: 0 | T112: 14 | U112: 21 | V112: 0 | W112: 0 | X112: 0 | Y112: =SUM(Y102:Y111) -> 0
I113: 10 | J113: 0 | K113: 0 | L113: 4 | M113: 10 | N113: 5 | O113: 4 | P113: 0 | Q113: 0 | R113: 10 | S113: 0 | T113: 1 | U113: 4 | V113: 0 | W113: 0 | X113: 0 | Y113: 0
I114: 11 | J114: 0 | K114: 0 | L114: 0 | M114: 26 | N114: 3 | O114: 5 | P114: 0 | Q114: 0 | R114: 17 | S114: 0 | T114: 0 | U114: 2 | V114: 0 | W114: 0 | X114: 1 | Y114: 0
I115: 12 | J115: 0 | K115: 0 | L115: 0 | M115: 9 | N115: 6 | O115: 19 | P115: 0 | Q115: 0 | R115: 4 | S115: 0 | T115: 0 | U115: 7 | V115: 0 | W115: 0 | X115: 0 | Y115: 0
I116: 13 | J116: 0 | K116: 16 | L116: 11 | M116: 20 | N116: 4 | O116: 16 | P116: 5 | Q116: 0 | R116: 4 | S116: 0 | T116: 0 | U116: 0 | V116: 0 | W116: 0 | X116: 0 | Y116: 0
I117: 14 | J117: 0 | K117: 0 | L117: 2 | M117: 3 | N117: 8 | O117: 7 | P117: 0 | Q117: 0 | R117: 0 | S117: 0 | T117: 0 | U117: 5 | V117: 0 | W117: 0 | X117: 0 | Y117: 0
I118: 15 | J118: 0 | K118: 0 | L118: 5 | M118: 7 | N118: 1 | O118: 3 | P118: 0 | Q118: 0 | R118: 0 | S118: 0 | T118: 0 | U118: 10 | V118: 0 | W118: 0 | X118: 0 | Y118: 0
I119: 16 | J119: 0 | K119: 0 | L119: 1 | M119: 1 | N119: 3 | O119: 14 | P119: 0 | Q119: 0 | R119: 0 | S119: 0 | T119: 0 | U119: 6 | V119: 0 | W119: 0 | X119: 0 | Y119: 0
I120: 17 | J120: 5 | K120: 21 | L120: 5 | M120: 2 | N120: 5 | O120: 5 | P120: 0 | Q120: 0 | R120: 0 | S120: 0 | T120: 0 | U120: 0 | V120: 0 | W120: 0 | X120: 0 | Y120: 0
I121: 18 | J121: 13 | K121: 8 | L121: 0 | M121: 0 | N121: 0 | O121: 7 | P121: 0 | Q121: 0 | R121: 0 | S121: 0 | T121: 0 | U121: 0 | V121: 0 | W121: 0 | X121: 0 | Y121: 0
I122: 19 | J122: 12 | K122: 6 | L122: 4 | M122: 0 | N122: 6 | O122: 3 | P122: 0 | Q122: 0 | R122: 0 | S122: 0 | T122: 0 | U122: 0 | V122: 0 | W122: 0 | X122: 0 | Y122: 0
H123: avg 10 min | I123: 110 | J123: =SUM(J113:J122) -> 30 | K123: =SUM(K113:K122) -> 51 | L123: 32 | M123: 78 | N123: 41 | O123: 83 | P123: 5 | Q123: 0 | R123: 35 | S123: 0 | T123: 1 | U123: 34 | V123: 0 | W123: 0 | X123: 1 | Y123: =SUM(Y113:Y122) -> 0
I124: 20 | J124: 3 | K124: 8 | L124: 3 | M124: 0 | N124: 2 | O124: 0 | P124: 0 | Q124: 0 | R124: 0 | S124: 0 | T124: 0 | U124: 0 | V124: 0 | W124: 0 | X124: 0 | Y124: 0
I125: 21 | J125: 19 | K125: 3 | L125: 5 | M125: 0 | N125: 0 | O125: 9 | P125: 4 | Q125: 0 | R125: 0 | S125: 0 | T125: 0 | U125: 0 | V125: 0 | W125: 0 | X125: 0 | Y125: 0
I126: 22 | J126: 7 | K126: 7 | L126: 0 | M126: 0 | N126: 2 | O126: 4 | P126: 13 | Q126: 0 | R126: 0 | S126: 0 | T126: 0 | U126: 0 | V126: 0 | W126: 0 | X126: 0 | Y126: 2
I127: 23 | J127: 3 | K127: 9 | L127: 0 | M127: 0 | N127: 2 | O127: 14 | P127: 0 | Q127: 3 | R127: 0 | S127: 0 | T127: 9 | U127: 0 | V127: 0 | W127: 23 | X127: 0 | Y127: 10
I128: 24 | J128: 0 | K128: 21 | L128: 0 | M128: 0 | N128: 0 | O128: 0 | P128: 0 | Q128: 5 | R128: 0 | S128: 0 | T128: 16 | U128: 0 | V128: 0 | W128: 10 | X128: 0 | Y128: 2
I129: 25 | J129: 8 | K129: 10 | L129: 6 | M129: 0 | N129: 0 | O129: 2 | P129: 0 | Q129: 2 | R129: 0 | S129: 0 | T129: 11 | U129: 0 | V129: 0 | W129: 11 | X129: 0 | Y129: 0
I130: 26 | J130: 0 | K130: 0 | L130: 17 | M130: 6 | N130: 0 | O130: 23 | P130: 0 | Q130: 14 | R130: 0 | S130: 0 | T130: 12 | U130: 0 | V130: 0 | W130: 1 | X130: 0 | Y130: 0
I131: 27 | J131: 3 | K131: 20 | L131: 3 | M131: 14 | N131: 0 | O131: 0 | P131: 0 | Q131: 10 | R131: 0 | S131: 0 | T131: 0 | U131: 0 | V131: 0 | W131: 19 | X131: 0 | Y131: 0
I132: 28 | J132: 6 | K132: 19 | L132: 8 | M132: 8 | N132: 5 | O132: 4 | P132: 0 | Q132: 2 | R132: 0 | S132: 3 | T132: 4 | U132: 0 | V132: 0 | W132: 8 | X132: 0 | Y132: 0
I133: 29 | J133: 5 | K133: 5 | L133: 1 | M133: 0 | N133: 0 | O133: 0 | P133: 0 | Q133: 0 | R133: 0 | S133: 10 | T133: 4 | U133: 0 | V133: 0 | W133: 0 | X133: 0 | Y133: 0
H134: avg 10 min | I134: 120 | J134: =SUM(J124:J133) -> 54 | K134: =SUM(K124:K133) -> 102 | L134: 43 | M134: 28 | N134: 11 | O134: 56 | P134: 17 | Q134: 36 | R134: 0 | S134: 13 | T134: 56 | U134: 0 | V134: 0 | W134: 72 | X134: 0 | Y134: =SUM(Y124:Y133) -> 14
I135: 0 | J135: 1 | K135: 10 | L135: 1 | M135: 0 | N135: 0 | O135: 11 | P135: 0 | Q135: 0 | R135: 0 | S135: 1 | T135: 0 | U135: 0 | V135: 0 | W135: 1 | X135: 0 | Y135: 0
I136: 1 | J136: 4 | K136: 11 | L136: 3 | M136: 0 | N136: 8 | O136: 0 | P136: 0 | Q136: 0 | R136: 0 | S136: 8 | T136: 0 | U136: 0 | V136: 0 | W136: 0 | X136: 0 | Y136: 0
I137: 2 | J137: 0 | K137: 4 | L137: 1 | M137: 0 | N137: 4 | O137: 0 | P137: 0 | Q137: 0 | R137: 0 | S137: 12 | T137: 0 | U137: 0 | V137: 0 | W137: 0 | X137: 5 | Y137: 0
I138: 3 | J138: 0 | K138: 10 | L138: 0 | M138: 0 | N138: 5 | O138: 0 | P138: 0 | Q138: 0 | R138: 0 | S138: 11 | T138: 0 | U138: 0 | V138: 0 | W138: 0 | X138: 0 | Y138: 0
I139: 4 | J139: 0 | K139: 19 | L139: 0 | M139: 0 | N139: 9 | O139: 0 | P139: 0 | Q139: 0 | R139: 0 | S139: 4 | T139: 0 | U139: 0 | V139: 0 | W139: 0 | X139: 0 | Y139: 0
I140: 5 | J140: 0 | K140: 0 | L140: 0 | M140: 0 | N140: 5 | O140: 0 | P140: 0 | Q140: 0 | R140: 0 | S140: 5 | T140: 0 | U140: 0 | V140: 5 | W140: 0 | X140: 0 | Y140: 0
I141: 6 | J141: 0 | K141: 0 | L141: 0 | M141: 0 | N141: 0 | O141: 0 | P141: 0 | Q141: 0 | R141: 0 | S141: 4 | T141: 0 | U141: 0 | V141: 22 | W141: 1 | X141: 0 | Y141: 0
I142: 7 | J142: 1 | K142: 0 | L142: 0 | M142: 0 | N142: 0 | O142: 0 | P142: 0 | Q142: 0 | R142: 0 | S142: 0 | T142: 0 | U142: 0 | V142: 19 | W142: 0 | X142: 0 | Y142: 0
I143: 8 | J143: 2 | K143: 18 | L143: 0 | M143: 0 | N143: 0 | O143: 1 | P143: 0 | Q143: 0 | R143: 0 | S143: 8 | T143: 0 | U143: 0 | V143: 0 | W143: 0 | X143: 0 | Y143: 0
I144: 9 | J144: 3 | K144: 0 | L144: 0 | M144: 0 | N144: 0 | O144: 0 | P144: 0 | Q144: 0 | R144: 0 | S144: 15 | T144: 0 | U144: 0 | V144: 8 | W144: 0 | X144: 0 | Y144: 0
H145: avg 10 min | I145: 130 | J145: =SUM(J135:J144) -> 11 | K145: =SUM(K135:K144) -> 72 | L145: 5 | M145: 0 | N145: 31 | O145: 12 | P145: 0 | Q145: 0 | R145: 0 | S145: 68 | T145: 0 | U145: 0 | V145: 54 | W145: 2 | X145: 5 | Y145: =SUM(Y135:Y144) -> 0
I146: 10 | J146: 0 | K146: 10 | L146: 8 | M146: 0 | N146: 0 | O146: 0 | P146: 0 | Q146: 0 | R146: 0 | S146: 13 | T146: 0 | U146: 0 | V146: 9 | W146: 0 | X146: 0 | Y146: 0
I147: 11 | J147: 1 | K147: 20 | L147: 5 | M147: 0 | N147: 7 | O147: 0 | P147: 0 | Q147: 0 | R147: 0 | S147: 12 | T147: 0 | U147: 0 | V147: 2 | W147: 0 | X147: 0 | Y147: 9
I148: 12 | J148: 10 | K148: 6 | L148: 0 | M148: 0 | N148: 5 | O148: 0 | P148: 0 | Q148: 0 | R148: 0 | S148: 1 | T148: 0 | U148: 0 | V148: 0 | W148: 0 | X148: 0 | Y148: 0
I149: 13 | J149: 10 | K149: 0 | L149: 5 | M149: 0 | N149: 0 | O149: 0 | P149: 0 | Q149: 0 | R149: 0 | S149: 4 | T149: 0 | U149: 0 | V149: 3 | W149: 0 | X149: 0 | Y149: 9
I150: 14 | J150: 0 | K150: 11 | L150: 2 | M150: 0 | N150: 5 | O150: 0 | P150: 0 | Q150: 0 | R150: 0 | S150: 0 | T150: 0 | U150: 0 | V150: 12 | W150: 0 | X150: 0 | Y150: 13
I151: 15 | J151: 0 | K151: 12 | L151: 0 | M151: 0 | N151: 2 | O151: 0 | P151: 0 | Q151: 0 | R151: 0 | S151: 0 | T151: 0 | U151: 0 | V151: 14 | W151: 0 | X151: 0 | Y151: 4
I152: 16 | J152: 0 | K152: 3 | L152: 0 | M152: 0 | N152: 0 | O152: 0 | P152: 6 | Q152: 1 | R152: 0 | S152: 0 | T152: 0 | U152: 0 | V152: 2 | W152: 0 | X152: 0 | Y152: 1
I153: 17 | J153: 0 | K153: 7 | L153: 0 | M153: 0 | N153: 3 | O153: 0 | P153: 21 | Q153: 0 | R153: 0 | S153: 0 | T153: 0 | U153: 0 | V153: 0 | W153: 0 | X153: 0 | Y153: 0
I154: 18 | J154: 0 | K154: 10 | L154: 0 | M154: 0 | N154: 1 | O154: 0 | P154: 10 | Q154: 0 | R154: 0 | S154: 0 | T154: 0 | U154: 0 | V154: 0 | W154: 0 | X154: 0 | Y154: 1
I155: 19 | J155: 0 | K155: 6 | L155: 0 | M155: 0 | N155: 0 | O155: 3 | P155: 11 | Q155: 0 | R155: 0 | S155: 0 | T155: 0 | U155: 0 | V155: 0 | W155: 0 | X155: 0 | Y155: 0
H156: avg 10 min | I156: 140 | J156: =SUM(J146:J155) -> 21 | K156: =SUM(K146:K155) -> 85 | L156: 20 | M156: 0 | N156: 23 | O156: 3 | P156: 48 | Q156: 1 | R156: 0 | S156: 30 | T156: 0 | U156: 0 | V156: 42 | W156: 0 | X156: 0 | Y156: =SUM(Y146:Y155) -> 37
I157: 20 | J157: 0 | K157: 5 | L157: 0 | M157: 0 | N157: 0 | O157: 0 | P157: 6 | Q157: 0 | R157: 0 | S157: 0 | T157: 0 | U157: 0 | V157: 0 | W157: 0 | X157: 2 | Y157: 0
I158: 21 | J158: 0 | K158: 0 | L158: 0 | M158: 0 | N158: 0 | O158: 8 | P158: 14 | Q158: 0 | R158: 0 | S158: 0 | T158: 0 | U158: 0 | V158: 0 | W158: 0 | X158: 0 | Y158: 0
I159: 22 | J159: 0 | K159: 0 | L159: 0 | M159: 0 | N159: 6 | O159: 15 | P159: 11 | Q159: 0 | R159: 0 | S159: 0 | T159: 0 | U159: 0 | V159: 0 | W159: 0 | X159: 1 | Y159: 0
I160: 23 | J160: 0 | K160: 7 | L160: 0 | M160: 0 | N160: 1 | O160: 11 | P160: 12 | Q160: 0 | R160: 0 | S160: 0 | T160: 0 | U160: 0 | V160: 0 | W160: 0 | X160: 0 | Y160: 0
I161: 24 | J161: 0 | K161: 18 | L161: 0 | M161: 13 | N161: 1 | O161: 1 | P161: 6 | Q161: 0 | R161: 0 | S161: 0 | T161: 0 | U161: 0 | V161: 0 | W161: 0 | X161: 0 | Y161: 0
I162: 25 | J162: 0 | K162: 11 | L162: 0 | M162: 10 | N162: 4 | O162: 9 | P162: 1 | Q162: 0 | R162: 0 | S162: 0 | T162: 0 | U162: 0 | V162: 0 | W162: 0 | X162: 0 | Y162: 0
I163: 26 | J163: 0 | K163: 24 | L163: 0 | M163: 3 | N163: 1 | O163: 7 | P163: 3 | Q163: 0 | R163: 0 | S163: 0 | T163: 0 | U163: 0 | V163: 0 | W163: 0 | X163: 0 | Y163: 0
I164: 27 | J164: 11 | K164: 5 | L164: 9 | M164: 4 | N164: 9 | O164: 12 | P164: 0 | Q164: 0 | R164: 0 | S164: 0 | T164: 0 | U164: 0 | V164: 0 | W164: 0 | X164: 0 | Y164: 0
I165: 28 | J165: 15 | K165: 13 | L165: 0 | M165: 5 | N165: 2 | O165: 1 | P165: 11 | Q165: 0 | R165: 0 | S165: 0 | T165: 0 | U165: 0 | V165: 0 | W165: 0 | X165: 0 | Y165: 0
I166: 29 | J166: 9 | K166: 2 | L166: 5 | M166: 4 | N166: 7 | O166: 0 | P166: 2 | Q166: 0 | R166: 0 | S166: 0 | T166: 0 | U166: 0 | V166: 0 | W166: 0 | X166: 0 | Y166: 0
H167: avg 10 min | I167: 150 | J167: =SUM(J157:J166) -> 35 | K167: =SUM(K157:K166) -> 85 | L167: 14 | M167: 39 | N167: 31 | O167: 64 | P167: 66 | Q167: 0 | R167: 0 | S167: 0 | T167: 0 | U167: 0 | V167: 0 | W167: 0 | X167: 3 | Y167: =SUM(Y157:Y166) -> 0
I168: 0 | J168: 7 | K168: 0 | L168: 2 | M168: 6 | N168: 11 | O168: 7 | P168: 14 | Q168: 0 | R168: 9 | S168: 0 | T168: 0 | U168: 0 | V168: 0 | W168: 0 | X168: 0 | Y168: 0
I169: 1 | J169: 8 | K169: 0 | L169: 8 | M169: 7 | N169: 12 | O169: 0 | P169: 3 | Q169: 1 | R169: 0 | S169: 0 | T169: 0 | U169: 0 | V169: 0 | W169: 0 | X169: 0 | Y169: 0
I170: 2 | J170: 2 | K170: 0 | L170: 4 | M170: 0 | N170: 0 | O170: 5 | P170: 0 | Q170: 0 | R170: 8 | S170: 0 | T170: 4 | U170: 0 | V170: 0 | W170: 0 | X170: 0 | Y170: 0
I171: 3 | J171: 1 | K171: 0 | L171: 1 | M171: 6 | N171: 0 | O171: 1 | P171: 0 | Q171: 0 | R171: 11 | S171: 0 | T171: 3 | U171: 0 | V171: 0 | W171: 0 | X171: 0 | Y171: 0
I172: 4 | J172: 0 | K172: 0 | L172: 0 | M172: 0 | N172: 0 | O172: 11 | P172: 0 | Q172: 0 | R172: 0 | S172: 0 | T172: 7 | U172: 1 | V172: 0 | W172: 0 | X172: 0 | Y172: 0
I173: 5 | J173: 0 | K173: 0 | L173: 0 | M173: 7 | N173: 0 | O173: 6 | P173: 0 | Q173: 0 | R173: 11 | S173: 0 | T173: 3 | U173: 6 | V173: 0 | W173: 0 | X173: 0 | Y173: 0
I174: 6 | J174: 0 | K174: 0 | L174: 0 | M174: 3 | N174: 0 | O174: 0 | P174: 2 | Q174: 0 | R174: 1 | S174: 0 | T174: 4 | U174: 0 | V174: 0 | W174: 0 | X174: 0 | Y174: 0
I175: 7 | J175: 0 | K175: 3 | L175: 0 | M175: 2 | N175: 0 | O175: 11 | P175: 0 | Q175: 0 | R175: 0 | S175: 0 | T175: 7 | U175: 10 | V175: 0 | W175: 0 | X175: 0 | Y175: 0
I176: 8 | J176: 0 | K176: 0 | L176: 0 | M176: 4 | N176: 2 | O176: 0 | P176: 0 | Q176: 0 | R176: 3 | S176: 0 | T176: 0 | U176: 0 | V176: 0 | W176: 0 | X176: 0 | Y176: 0
I177: 9 | J177: 0 | K177: 0 | L177: 0 | M177: 5 | N177: 5 | O177: 0 | P177: 0 | Q177: 8 | R177: 9 | S177: 0 | T177: 0 | U177: 12 | V177: 0 | W177: 4 | X177: 2 | Y177: 0
H178: avg 10 min | I178: 160 | J178: =SUM(J168:J177) -> 18 | K178: =SUM(K168:K177) -> 3 | L178: 15 | M178: 40 | N178: 30 | O178: 41 | P178: 19 | Q178: 9 | R178: 52 | S178: 0 | T178: 28 | U178: 29 | V178: 0 | W178: 4 | X178: 2 | Y178: =SUM(Y168:Y177) -> 0
I179: 10 | J179: 0 | K179: 11 | L179: 0 | M179: 4 | N179: 6 | O179: 0 | P179: 0 | Q179: 9 | R179: 0 | S179: 0 | T179: 9 | U179: 0 | V179: 0 | W179: 0 | X179: 0 | Y179: 0
I180: 11 | J180: 0 | K180: 15 | L180: 0 | M180: 16 | N180: 7 | O180: 0 | P180: 0 | Q180: 0 | R180: 0 | S180: 0 | T180: 4 | U180: 1 | V180: 0 | W180: 28 | X180: 0 | Y180: 0
I181: 12 | J181: 20 | K181: 19 | L181: 0 | M181: 7 | N181: 0 | O181: 0 | P181: 1 | Q181: 0 | R181: 0 | S181: 0 | T181: 2 | U181: 0 | V181: 0 | W181: 17 | X181: 1 | Y181: 0
I182: 13 | J182: 5 | K182: 11 | L182: 0 | M182: 1 | N182: 0 | O182: 0 | P182: 0 | Q182: 0 | R182: 0 | S182: 0 | T182: 3 | U182: 2 | V182: 0 | W182: 22 | X182: 0 | Y182: 0
I183: 14 | J183: 7 | K183: 0 | L183: 0 | M183: 0 | N183: 0 | O183: 0 | P183: 0 | Q183: 9 | R183: 0 | S183: 0 | T183: 4 | U183: 8 | V183: 0 | W183: 2 | X183: 0 | Y183: 0
I184: 15 | J184: 8 | K184: 1 | L184: 4 | M184: 0 | N184: 0 | O184: 0 | P184: 0 | Q184: 4 | R184: 0 | S184: 0 | T184: 9 | U184: 16 | V184: 0 | W184: 0 | X184: 0 | Y184: 13
I185: 16 | J185: 4 | K185: 13 | L185: 16 | M185: 11 | N185: 0 | O185: 0 | P185: 0 | Q185: 15 | R185: 9 | S185: 0 | T185: 17 | U185: 8 | V185: 0 | W185: 0 | X185: 0 | Y185: 0
I186: 17 | J186: 0 | K186: 8 | L186: 4 | M186: 6 | N186: 0 | O186: 18 | P186: 0 | Q186: 5 | R186: 7 | S186: 0 | T186: 3 | U186: 10 | V186: 0 | W186: 0 | X186: 0 | Y186: 0
I187: 18 | J187: 0 | K187: 0 | L187: 3 | M187: 1 | N187: 2 | O187: 0 | P187: 0 | Q187: 11 | R187: 34 | S187: 0 | T187: 2 | U187: 0 | V187: 0 | W187: 0 | X187: 0 | Y187: 0
I188: 19 | J188: 0 | K188: 0 | L188: 0 | M188: 0 | N188: 0 | O188: 0 | P188: 0 | Q188: 18 | R188: 0 | S188: 0 | T188: 0 | U188: 0 | V188: 0 | W188: 3 | X188: 0 | Y188: 23
H189: avg 10 min | I189: 170 | J189: =SUM(J179:J188) -> 44 | K189: =SUM(K179:K188) -> 78 | L189: 27 | M189: 46 | N189: 15 | O189: 18 | P189: 1 | Q189: 71 | R189: 50 | S189: 0 | T189: 53 | U189: 45 | V189: 0 | W189: 72 | X189: 1 | Y189: =SUM(Y179:Y188) -> 36
I190: 20 | J190: 0 | K190: 0 | L190: 0 | M190: 0 | N190: 5 | O190: 5 | P190: 0 | Q190: 1 | R190: 0 | S190: 0 | T190: 0 | U190: 6 | V190: 0 | W190: 0 | X190: 0 | Y190: 15
I191: 21 | J191: 3 | K191: 0 | L191: 2 | M191: 2 | N191: 3 | O191: 11 | P191: 0 | Q191: 10 | R191: 19 | S191: 0 | T191: 0 | U191: 8 | V191: 0 | W191: 0 | X191: 0 | Y191: 29
I192: 22 | J192: 1 | K192: 0 | L192: 1 | M192: 4 | N192: 8 | O192: 0 | P192: 0 | Q192: 7 | R192: 26 | S192: 0 | T192: 0 | U192: 5 | V192: 0 | W192: 0 | X192: 0 | Y192: 31
I193: 23 | J193: 1 | K193: 0 | L193: 3 | M193: 2 | N193: 0 | O193: 0 | P193: 0 | Q193: 0 | R193: 6 | S193: 0 | T193: 0 | U193: 0 | V193: 0 | W193: 0 | X193: 0 | Y193: 9
I194: 24 | J194: 0 | K194: 0 | L194: 4 | M194: 9 | N194: 0 | O194: 0 | P194: 0 | Q194: 0 | R194: 15 | S194: 0 | T194: 0 | U194: 0 | V194: 0 | W194: 0 | X194: 0 | Y194: 1
I195: 25 | J195: 0 | K195: 0 | L195: 7 | M195: 3 | N195: 7 | O195: 0 | P195: 0 | Q195: 0 | R195: 0 | S195: 0 | T195: 0 | U195: 1 | V195: 0 | W195: 0 | X195: 0 | Y195: 0
I196: 26 | J196: 0 | K196: 0 | L196: 0 | M196: 3 | N196: 9 | O196: 0 | P196: 0 | Q196: 0 | R196: 4 | S196: 0 | T196: 0 | U196: 0 | V196: 0 | W196: 0 | X196: 0 | Y196: 0
I197: 27 | J197: 0 | K197: 0 | L197: 2 | M197: 3 | N197: 5 | O197: 0 | P197: 0 | Q197: 0 | R197: 0 | S197: 0 | T197: 0 | U197: 19 | V197: 0 | W197: 0 | X197: 0 | Y197: 0
I198: 28 | J198: 0 | K198: 0 | L198: 2 | M198: 17 | N198: 2 | O198: 0 | P198: 0 | Q198: 0 | R198: 0 | S198: 0 | T198: 0 | U198: 10 | V198: 0 | W198: 0 | X198: 0 | Y198: 0
I199: 29 | J199: 7 | K199: 15 | L199: 1 | M199: 4 | N199: 2 | O199: 0 | P199: 0 | Q199: 0 | R199: 0 | S199: 0 | T199: 0 | U199: 15 | V199: 0 | W199: 0 | X199: 0 | Y199: 0
H200: avg 10 min | I200: 180 | J200: =SUM(J190:J199) -> 12 | K200: =SUM(K190:K199) -> 15 | L200: 22 | M200: 47 | N200: 41 | O200: 16 | P200: 0 | Q200: 18 | R200: 70 | S200: 0 | T200: 0 | U200: 64 | V200: 0 | W200: 0 | X200: 0 | Y200: =SUM(Y190:Y199) -> 85
... 66 more rows

Sheet 3h
A1: Scatter plot
B3: α2 | D3: α3 | F3: α5
B4: veh | C4: dzp | D4: veh | E4: dzp | F4: veh | G4: dzp
B5: 608 | C5: 528 | D5: 842 | E5: 140 | F5: 1627 | G5: 513
B6: 726 | C6: 295 | D6: 468 | E6: 242 | F6: 1493 | G6: 484
B7: 1664 | C7: 427 | D7: 540 | E7: 80 | F7: 1077 | G7: 800
B8: 1092 | C8: 271 | D8: 555 | E8: 5 | F8: 714 | G8: 413
B9: 925 | C9: 61 | D9: 944 | E9: 70 | F9: 984 | G9: 561
B10: 525 | C10: 422 | D10: 500 | E10: 29 | F10: 583 | G10: 654
B11: 544 | C11: 257 | D11: 543 | E11: 47 | F11: 253 | G11: 394
C12: 338 | E12: 20 | F12: 439 | G12: 78
A14: avg | B14: =AVERAGE(B5:B12) -> 869.1428571 | C14: =AVERAGE(C5:C12) -> 324.875 | D14: 627.4285714 | E14: 79.125 | F14: 896.25 | G14: 487.125
A15: SEM | B15: =STDEV(B5:B12)/SQRT(COUNT(B5:B12)) -> 154.1042363 | C15: =STDEV(C5:C12)/SQRT(COUNT(C5:C12)) -> 49.87965428 | D15: 70.36160247 | E15: 27.66278928 | F15: 173.4454165 | G15: 74.81225012
